Organisation Code,Organisation Label,Effective Date,Organisational Unit,Service Division Label,Category Internal Name,Purpose,Detailed Expenditure Code,Payment Date,Transaction Number,Irrecoverable VAT Amount,Amount,Capital Or Revenue,Beneficiary Name,Procurement Card
Http://opendatacommunities.org/id/metropolitan-district-council/leeds,Leeds City Council,31/08/2023,Strategy and Resources,Leeds Building Services,Supplies and Services,Operational Materials,205,23/08/2023,2308-00001,0.00,183.76,R,A & A ELECTRICAL DISTRIBUTORS LTD,No
Http://opendatacommunities.org/id/metropolitan-district-council/leeds,Leeds City Council,31/08/2023,Children and Families,Social Care,Supplies and Services,Consultancy Services,259,31/08/2023,2308-00002,0.00,9856.25,R,A & F Lloyd Training Limited,No
Http://opendatacommunities.org/id/metropolitan-district-council/leeds,Leeds City Council,31/08/2023,Children and Families,Social Care,Supplies and Services,Consultancy Services,259,31/08/2023,2308-00003,0.00,9143.75,R,A & F Lloyd Training Limited,No
Http://opendatacommunities.org/id/metropolitan-district-council/leeds,Leeds City Council,31/08/2023,Adults and Health,Services For Older People Under 65 P/Dis,Agency Payments,Sheltered Accommodation,569,16/08/2023,2308-00004,0.00,5400.00,R,A & V TRANSITIONAL HOMES,No
Http://opendatacommunities.org/id/metropolitan-district-council/leeds,Leeds City Council,31/08/2023,Children and Families,Social Care,Agency Payments,Section 17,551,16/08/2023,2308-00005,0.00,250.00,R,REDACTED PERSONAL DATA,No
Http://opendatacommunities.org/id/metropolitan-district-council/leeds,Leeds City Council,31/08/2023,Children and Families,Social Care,Agency Payments,Section 17,551,22/08/2023,2308-00006,0.00,250.00,R,REDACTED PERSONAL DATA,No
Http://opendatacommunities.org/id/metropolitan-district-council/leeds,Leeds City Council,31/08/2023,Strategic Landlord,HRA Housing Leeds,Capital,CONSTRUCTION,3,24/08/2023,2308-00007,0.00,99038.45,C,A Connolly Limited,No
Http://opendatacommunities.org/id/metropolitan-district-council/leeds,Leeds City Council,31/08/2023,Strategy and Resources,Leeds Building Services,Supplies and Services,Other Hired And Contracted Services,265,02/08/2023,2308-00008,0.00,9382.35,R,A Coole Electrical Ltd,No
Http://opendatacommunities.org/id/metropolitan-district-council/leeds,Leeds City Council,31/08/2023,Strategy and Resources,Leeds Building Services,Supplies and Services,Other Hired And Contracted Services,265,04/08/2023,2308-00009,0.00,267.49,R,A Coole Electrical Ltd,No
Http://opendatacommunities.org/id/metropolitan-district-council/leeds,Leeds City Council,31/08/2023,Strategy and Resources,Leeds Building Services,Supplies and Services,Other Hired And Contracted Services,265,10/08/2023,2308-00010,0.00,16766.58,R,A Coole Electrical Ltd,No
Http://opendatacommunities.org/id/metropolitan-district-council/leeds,Leeds City Council,31/08/2023,Strategy and Resources,Leeds Building Services,Supplies and Services,Other Hired And Contracted Services,265,18/08/2023,2308-00011,0.00,15246.83,R,A Coole Electrical Ltd,No
Http://opendatacommunities.org/id/metropolitan-district-council/leeds,Leeds City Council,31/08/2023,Strategy and Resources,Leeds Building Services,Supplies and Services,Other Hired And Contracted Services,265,25/08/2023,2308-00012,0.00,3117.32,R,A Coole Electrical Ltd,No
Http://opendatacommunities.org/id/metropolitan-district-council/leeds,Leeds City Council,31/08/2023,Communities Housing and Environment,Customer Access,Supplies and Services,Bought In Professional Services,277,02/08/2023,2308-00013,0.00,18.00,R,REDACTED COMMERCIAL CONFIDENTIALITY,No
Http://opendatacommunities.org/id/metropolitan-district-council/leeds,Leeds City Council,31/08/2023,Communities Housing and Environment,Customer Access,Supplies and Services,Bought In Professional Services,277,02/08/2023,2308-00014,0.00,18.00,R,REDACTED COMMERCIAL CONFIDENTIALITY,No
Http://opendatacommunities.org/id/metropolitan-district-council/leeds,Leeds City Council,31/08/2023,Communities Housing and Environment,Customer Access,Supplies and Services,Bought In Professional Services,277,23/08/2023,2308-00015,0.00,11.10,R,REDACTED COMMERCIAL CONFIDENTIALITY,No
Http://opendatacommunities.org/id/metropolitan-district-council/leeds,Leeds City Council,31/08/2023,Communities Housing and Environment,Customer Access,Supplies and Services,Bought In Professional Services,277,23/08/2023,2308-00016,0.00,9.90,R,REDACTED COMMERCIAL CONFIDENTIALITY,No
Http://opendatacommunities.org/id/metropolitan-district-council/leeds,Leeds City Council,31/08/2023,Communities Housing and Environment,Customer Access,Supplies and Services,Bought In Professional Services,277,23/08/2023,2308-00017,0.00,18.00,R,REDACTED COMMERCIAL CONFIDENTIALITY,No
Http://opendatacommunities.org/id/metropolitan-district-council/leeds,Leeds City Council,31/08/2023,Communities Housing and Environment,Customer Access,Supplies and Services,Bought In Professional Services,277,31/08/2023,2308-00018,0.00,18.00,R,REDACTED COMMERCIAL CONFIDENTIALITY,No
Http://opendatacommunities.org/id/metropolitan-district-council/leeds,Leeds City Council,31/08/2023,Communities Housing and Environment,Customer Access,Supplies and Services,Bought In Professional Services,277,31/08/2023,2308-00019,0.00,18.00,R,REDACTED COMMERCIAL CONFIDENTIALITY,No
Http://opendatacommunities.org/id/metropolitan-district-council/leeds,Leeds City Council,31/08/2023,Communities Housing and Environment,Customer Access,Supplies and Services,Bought In Professional Services,277,31/08/2023,2308-00020,0.00,9.00,R,REDACTED COMMERCIAL CONFIDENTIALITY,No
Http://opendatacommunities.org/id/metropolitan-district-council/leeds,Leeds City Council,31/08/2023,Communities Housing and Environment,Customer Access,Supplies and Services,Bought In Professional Services,277,31/08/2023,2308-00021,0.00,9.00,R,REDACTED COMMERCIAL CONFIDENTIALITY,No
Http://opendatacommunities.org/id/metropolitan-district-council/leeds,Leeds City Council,31/08/2023,Communities Housing and Environment,Customer Access,Supplies and Services,Bought In Professional Services,277,31/08/2023,2308-00022,0.00,18.00,R,REDACTED COMMERCIAL CONFIDENTIALITY,No
Http://opendatacommunities.org/id/metropolitan-district-council/leeds,Leeds City Council,31/08/2023,Children and Families,Social Care,Agency Payments,Services Rendered By Voluntary Sector,505,02/08/2023,2308-00023,0.00,1144.65,R,REDACTED PERSONAL DATA,No
Http://opendatacommunities.org/id/metropolitan-district-council/leeds,Leeds City Council,31/08/2023,Children and Families,Social Care,Agency Payments,Services Rendered By Voluntary Sector,505,04/08/2023,2308-00024,0.00,8596.22,R,REDACTED PERSONAL DATA,No
Http://opendatacommunities.org/id/metropolitan-district-council/leeds,Leeds City Council,31/08/2023,Children and Families,Social Care,Agency Payments,Services Rendered By Voluntary Sector,505,04/08/2023,2308-00025,0.00,1656.00,R,REDACTED PERSONAL DATA,No
Http://opendatacommunities.org/id/metropolitan-district-council/leeds,Leeds City Council,31/08/2023,Children and Families,Social Care,Agency Payments,Services Rendered By Voluntary Sector,505,04/08/2023,2308-00026,0.00,547.56,R,REDACTED PERSONAL DATA,No
Http://opendatacommunities.org/id/metropolitan-district-council/leeds,Leeds City Council,31/08/2023,Children and Families,Social Care,Agency Payments,Services Rendered By Voluntary Sector,505,04/08/2023,2308-00027,0.00,241.80,R,REDACTED PERSONAL DATA,No
Http://opendatacommunities.org/id/metropolitan-district-council/leeds,Leeds City Council,31/08/2023,Children and Families,Social Care,Agency Payments,Services Rendered By Other Organisations,511,02/08/2023,2308-00028,0.00,228.93,R,REDACTED PERSONAL DATA,No
Http://opendatacommunities.org/id/metropolitan-district-council/leeds,Leeds City Council,31/08/2023,Children and Families,Social Care,Agency Payments,Services Rendered By Other Organisations,511,04/08/2023,2308-00029,0.00,147.60,R,REDACTED PERSONAL DATA,No
Http://opendatacommunities.org/id/metropolitan-district-council/leeds,Leeds City Council,31/08/2023,Children and Families,Social Care,Agency Payments,Services Rendered By Other Organisations,511,04/08/2023,2308-00030,0.00,1170.46,R,REDACTED PERSONAL DATA,No
Http://opendatacommunities.org/id/metropolitan-district-council/leeds,Leeds City Council,31/08/2023,Adults and Health,Other Generic Services,Agency Payments,Fees To Carers,563,16/08/2023,2308-00031,0.00,531.10,R,REDACTED PERSONAL DATA,No
Http://opendatacommunities.org/id/metropolitan-district-council/leeds,Leeds City Council,31/08/2023,Adults and Health,Other Generic Services,Agency Payments,Fees To Carers,563,16/08/2023,2308-00032,0.00,50.40,R,REDACTED PERSONAL DATA,No
Http://opendatacommunities.org/id/metropolitan-district-council/leeds,Leeds City Council,31/08/2023,Communities Housing and Environment,Strategic Housing Partnership & Support,Supplies and Services,Other Hired And Contracted Services,265,21/08/2023,2308-00033,0.00,500.00,R,REDACTED PERSONAL DATA,No
Http://opendatacommunities.org/id/metropolitan-district-council/leeds,Leeds City Council,31/08/2023,Strategy and Resources,Leeds Building Services,Supplies and Services,Operational Materials,205,09/08/2023,2308-00034,0.00,204.00,R,A J H  Pump Supply & Repair Ltd,No
Http://opendatacommunities.org/id/metropolitan-district-council/leeds,Leeds City Council,31/08/2023,Communities Housing and Environment,Customer Access,Supplies and Services,Resaleable Materials,204,16/08/2023,2308-00035,0.00,50.10,R,A J PROMOTIONS,No
Http://opendatacommunities.org/id/metropolitan-district-council/leeds,Leeds City Council,31/08/2023,Communities Housing and Environment,Climate Energy & Greenspaces,Supplies and Services,Resaleable Materials,204,18/08/2023,2308-00036,0.00,282.24,R,A J PROMOTIONS,No
Http://opendatacommunities.org/id/metropolitan-district-council/leeds,Leeds City Council,31/08/2023,Children and Families,Social Care,Agency Payments,Services Rendered By Other Organisations,511,04/08/2023,2308-00037,0.00,1151.28,R,REDACTED PERSONAL DATA,No
Http://opendatacommunities.org/id/metropolitan-district-council/leeds,Leeds City Council,31/08/2023,Strategic Landlord,HRA Housing Leeds,Capital,LAND,1,03/08/2023,2308-00038,0.00,6297.67,C,REDACTED PERSONAL DATA,No
Http://opendatacommunities.org/id/metropolitan-district-council/leeds,Leeds City Council,31/08/2023,Children and Families,Social Care,Agency Payments,Services Rendered By Other Organisations,511,02/08/2023,2308-00039,0.00,2799.99,R,REDACTED PERSONAL DATA,No
Http://opendatacommunities.org/id/metropolitan-district-council/leeds,Leeds City Council,31/08/2023,Children and Families,Social Care,Agency Payments,Services Rendered By Other Organisations,511,04/08/2023,2308-00040,0.00,575.64,R,REDACTED PERSONAL DATA,No
Http://opendatacommunities.org/id/metropolitan-district-council/leeds,Leeds City Council,31/08/2023,Children and Families,Social Care,Agency Payments,Services Rendered By Other Organisations,511,04/08/2023,2308-00041,0.00,547.95,R,REDACTED PERSONAL DATA,No
Http://opendatacommunities.org/id/metropolitan-district-council/leeds,Leeds City Council,31/08/2023,Children and Families,Social Care,Agency Payments,Services Rendered By Other Organisations,511,04/08/2023,2308-00042,0.00,241.80,R,REDACTED PERSONAL DATA,No
Http://opendatacommunities.org/id/metropolitan-district-council/leeds,Leeds City Council,31/08/2023,Communities Housing and Environment,Customer Access,Supplies and Services,Bought In Professional Services,277,02/08/2023,2308-00043,0.00,94.50,R,A NAMAKI,No
Http://opendatacommunities.org/id/metropolitan-district-council/leeds,Leeds City Council,31/08/2023,Communities Housing and Environment,Customer Access,Supplies and Services,Bought In Professional Services,277,02/08/2023,2308-00044,0.00,106.50,R,A NAMAKI,No
Http://opendatacommunities.org/id/metropolitan-district-council/leeds,Leeds City Council,31/08/2023,Communities Housing and Environment,Customer Access,Supplies and Services,Bought In Professional Services,277,02/08/2023,2308-00045,0.00,54.00,R,A NAMAKI,No
Http://opendatacommunities.org/id/metropolitan-district-council/leeds,Leeds City Council,31/08/2023,Communities Housing and Environment,Customer Access,Supplies and Services,Bought In Professional Services,277,09/08/2023,2308-00046,0.00,108.00,R,A NAMAKI,No
Http://opendatacommunities.org/id/metropolitan-district-council/leeds,Leeds City Council,31/08/2023,Communities Housing and Environment,Customer Access,Supplies and Services,Bought In Professional Services,277,09/08/2023,2308-00047,0.00,94.50,R,A NAMAKI,No
Http://opendatacommunities.org/id/metropolitan-district-council/leeds,Leeds City Council,31/08/2023,Communities Housing and Environment,Customer Access,Supplies and Services,Bought In Professional Services,277,09/08/2023,2308-00048,0.00,102.00,R,A NAMAKI,No
Http://opendatacommunities.org/id/metropolitan-district-council/leeds,Leeds City Council,31/08/2023,Communities Housing and Environment,Customer Access,Supplies and Services,Bought In Professional Services,277,09/08/2023,2308-00049,0.00,108.00,R,A NAMAKI,No
Http://opendatacommunities.org/id/metropolitan-district-council/leeds,Leeds City Council,31/08/2023,Communities Housing and Environment,Customer Access,Supplies and Services,Bought In Professional Services,277,09/08/2023,2308-00050,0.00,18.00,R,A NAMAKI,No
Http://opendatacommunities.org/id/metropolitan-district-council/leeds,Leeds City Council,31/08/2023,Communities Housing and Environment,Customer Access,Supplies and Services,Bought In Professional Services,277,09/08/2023,2308-00051,0.00,99.00,R,A NAMAKI,No
Http://opendatacommunities.org/id/metropolitan-district-council/leeds,Leeds City Council,31/08/2023,Communities Housing and Environment,Customer Access,Supplies and Services,Bought In Professional Services,277,09/08/2023,2308-00052,0.00,18.00,R,A NAMAKI,No
Http://opendatacommunities.org/id/metropolitan-district-council/leeds,Leeds City Council,31/08/2023,Communities Housing and Environment,Customer Access,Supplies and Services,Bought In Professional Services,277,09/08/2023,2308-00053,0.00,99.00,R,A NAMAKI,No
Http://opendatacommunities.org/id/metropolitan-district-council/leeds,Leeds City Council,31/08/2023,Communities Housing and Environment,Customer Access,Supplies and Services,Bought In Professional Services,277,09/08/2023,2308-00054,0.00,18.00,R,A NAMAKI,No
Http://opendatacommunities.org/id/metropolitan-district-council/leeds,Leeds City Council,31/08/2023,Communities Housing and Environment,Customer Access,Supplies and Services,Bought In Professional Services,277,16/08/2023,2308-00055,0.00,54.00,R,A NAMAKI,No
Http://opendatacommunities.org/id/metropolitan-district-council/leeds,Leeds City Council,31/08/2023,Communities Housing and Environment,Customer Access,Supplies and Services,Bought In Professional Services,277,16/08/2023,2308-00056,0.00,99.00,R,A NAMAKI,No
Http://opendatacommunities.org/id/metropolitan-district-council/leeds,Leeds City Council,31/08/2023,Communities Housing and Environment,Customer Access,Supplies and Services,Bought In Professional Services,277,16/08/2023,2308-00057,0.00,102.00,R,A NAMAKI,No
Http://opendatacommunities.org/id/metropolitan-district-council/leeds,Leeds City Council,31/08/2023,Communities Housing and Environment,Customer Access,Supplies and Services,Bought In Professional Services,277,16/08/2023,2308-00058,0.00,90.00,R,A NAMAKI,No
Http://opendatacommunities.org/id/metropolitan-district-council/leeds,Leeds City Council,31/08/2023,Communities Housing and Environment,Customer Access,Supplies and Services,Bought In Professional Services,277,16/08/2023,2308-00059,0.00,112.50,R,A NAMAKI,No
Http://opendatacommunities.org/id/metropolitan-district-council/leeds,Leeds City Council,31/08/2023,Communities Housing and Environment,Customer Access,Supplies and Services,Bought In Professional Services,277,16/08/2023,2308-00060,0.00,54.00,R,A NAMAKI,No
Http://opendatacommunities.org/id/metropolitan-district-council/leeds,Leeds City Council,31/08/2023,Communities Housing and Environment,Customer Access,Supplies and Services,Bought In Professional Services,277,23/08/2023,2308-00061,0.00,108.00,R,A NAMAKI,No
Http://opendatacommunities.org/id/metropolitan-district-council/leeds,Leeds City Council,31/08/2023,Communities Housing and Environment,Customer Access,Supplies and Services,Bought In Professional Services,277,23/08/2023,2308-00062,0.00,99.00,R,A NAMAKI,No
Http://opendatacommunities.org/id/metropolitan-district-council/leeds,Leeds City Council,31/08/2023,Communities Housing and Environment,Customer Access,Supplies and Services,Bought In Professional Services,277,23/08/2023,2308-00063,0.00,108.00,R,A NAMAKI,No
Http://opendatacommunities.org/id/metropolitan-district-council/leeds,Leeds City Council,31/08/2023,Communities Housing and Environment,Customer Access,Supplies and Services,Bought In Professional Services,277,23/08/2023,2308-00064,0.00,85.50,R,A NAMAKI,No
Http://opendatacommunities.org/id/metropolitan-district-council/leeds,Leeds City Council,31/08/2023,Communities Housing and Environment,Customer Access,Supplies and Services,Bought In Professional Services,277,31/08/2023,2308-00065,0.00,144.00,R,A NAMAKI,No
Http://opendatacommunities.org/id/metropolitan-district-council/leeds,Leeds City Council,31/08/2023,Communities Housing and Environment,Customer Access,Supplies and Services,Bought In Professional Services,277,31/08/2023,2308-00066,0.00,99.00,R,A NAMAKI,No
Http://opendatacommunities.org/id/metropolitan-district-council/leeds,Leeds City Council,31/08/2023,Communities Housing and Environment,Customer Access,Supplies and Services,Bought In Professional Services,277,31/08/2023,2308-00067,0.00,99.00,R,A NAMAKI,No
Http://opendatacommunities.org/id/metropolitan-district-council/leeds,Leeds City Council,31/08/2023,Communities Housing and Environment,Customer Access,Supplies and Services,Bought In Professional Services,277,31/08/2023,2308-00068,0.00,93.00,R,A NAMAKI,No
Http://opendatacommunities.org/id/metropolitan-district-council/leeds,Leeds City Council,31/08/2023,Communities Housing and Environment,Customer Access,Supplies and Services,Bought In Professional Services,277,31/08/2023,2308-00069,0.00,54.00,R,A NAMAKI,No
Http://opendatacommunities.org/id/metropolitan-district-council/leeds,Leeds City Council,31/08/2023,Children and Families,Social Care,Agency Payments,Services Rendered By Other Organisations,511,04/08/2023,2308-00070,0.00,383.76,R,REDACTED PERSONAL DATA,No
Http://opendatacommunities.org/id/metropolitan-district-council/leeds,Leeds City Council,31/08/2023,Strategy and Resources,Leeds Building Services,Supplies and Services,Operational Materials,205,17/08/2023,2308-00071,0.00,79.95,R,A S Catering Supplies,No
Http://opendatacommunities.org/id/metropolitan-district-council/leeds,Leeds City Council,31/08/2023,Strategy and Resources,Commercial Services,Supplies and Services,Other Hired And Contracted Services,265,01/08/2023,2308-00072,0.00,422.40,R,REDACTED PERSONAL DATA,No
Http://opendatacommunities.org/id/metropolitan-district-council/leeds,Leeds City Council,31/08/2023,Strategic Landlord,HRA Housing Leeds,Capital,OTHER COSTS,7,23/08/2023,2308-00073,0.00,80.00,C,REDACTED PERSONAL DATA,No
Http://opendatacommunities.org/id/metropolitan-district-council/leeds,Leeds City Council,31/08/2023,Children and Families,Social Care,Agency Payments,Services Rendered By Other Organisations,511,02/08/2023,2308-00074,0.00,457.86,R,REDACTED PERSONAL DATA,No
Http://opendatacommunities.org/id/metropolitan-district-council/leeds,Leeds City Council,31/08/2023,Strategy and Resources,Shared Services,Supplies and Services,Other Hired And Contracted Services,265,02/08/2023,2308-00075,0.00,165.00,R,A Star Couriers Ltd,No
Http://opendatacommunities.org/id/metropolitan-district-council/leeds,Leeds City Council,31/08/2023,Communities Housing and Environment,Waste Management,Employees,Training & Development,70,04/08/2023,2308-00076,0.00,403.80,R,A T Nerac Ltd,No
Http://opendatacommunities.org/id/metropolitan-district-council/leeds,Leeds City Council,31/08/2023,Communities Housing and Environment,Waste Management,Employees,Training & Development,70,11/08/2023,2308-00077,0.00,307.80,R,A T Nerac Ltd,No
Http://opendatacommunities.org/id/metropolitan-district-council/leeds,Leeds City Council,31/08/2023,City Development,Highways ,Supplies and Services,Operational Materials,205,04/07/2023,2308-00078,0.00,144.37,R,A T Plant Services Ltd,Yes
Http://opendatacommunities.org/id/metropolitan-district-council/leeds,Leeds City Council,31/08/2023,Children and Families,Social Care,Agency Payments,Services Rendered By Other Organisations,511,02/08/2023,2308-00079,0.00,228.93,R,REDACTED PERSONAL DATA,No
Http://opendatacommunities.org/id/metropolitan-district-council/leeds,Leeds City Council,31/08/2023,City Development,Libraries Arts & Heritage,Transport,Car & Motorcycle Allowances,311,09/08/2023,2308-00080,0.00,66.00,R,REDACTED PERSONAL DATA,No
Http://opendatacommunities.org/id/metropolitan-district-council/leeds,Leeds City Council,31/08/2023,Communities Housing and Environment,Waste Management,Capital,FURNITURE AND EQUIPMENT,5,11/08/2023,2308-00081,0.00,750.00,C,A&C Weber Uk Ltd,No
Http://opendatacommunities.org/id/metropolitan-district-council/leeds,Leeds City Council,31/08/2023,Communities Housing and Environment,Waste Management,Supplies and Services,Office Consumables,210,11/08/2023,2308-00082,0.00,61.50,R,A&C Weber Uk Ltd,No
Http://opendatacommunities.org/id/metropolitan-district-council/leeds,Leeds City Council,31/08/2023,Strategy and Resources,Leeds Building Services,Supplies and Services,Other Hired And Contracted Services,265,09/08/2023,2308-00083,0.00,2842.00,R,A1 SHEET METAL FLUES LTD,No
Http://opendatacommunities.org/id/metropolitan-district-council/leeds,Leeds City Council,31/08/2023,Strategy and Resources,Leeds Building Services,Supplies and Services,Operational Materials,205,02/08/2023,2308-00084,0.00,495.00,R,A1 STAIR LIFT SERVICES,No
Http://opendatacommunities.org/id/metropolitan-district-council/leeds,Leeds City Council,31/08/2023,Strategy and Resources,Leeds Building Services,Supplies and Services,Other Hired And Contracted Services,265,17/08/2023,2308-00085,0.00,1772.50,R,A1 STAIR LIFT SERVICES,No
Http://opendatacommunities.org/id/metropolitan-district-council/leeds,Leeds City Council,31/08/2023,Strategy and Resources,Leeds Building Services,Supplies and Services,Operational Materials,205,18/08/2023,2308-00086,0.00,185.00,R,A1 STAIR LIFT SERVICES,No
Http://opendatacommunities.org/id/metropolitan-district-council/leeds,Leeds City Council,31/08/2023,Strategy and Resources,Leeds Building Services,Supplies and Services,Operational Materials,205,18/08/2023,2308-00087,0.00,110.00,R,A1 STAIR LIFT SERVICES,No
Http://opendatacommunities.org/id/metropolitan-district-council/leeds,Leeds City Council,31/08/2023,Communities Housing and Environment,Climate Energy & Greenspaces ,Supplies and Services,Resaleable Materials,204,05/07/2023,2308-00088,0.00,168.60,R,Aagrah Foods,Yes
Http://opendatacommunities.org/id/metropolitan-district-council/leeds,Leeds City Council,31/08/2023,Children and Families,Social Care ,Supplies and Services,Subsistence,256,01/07/2023,2308-00089,0.00,56.12,R,Aagrah Skipton,Yes
Http://opendatacommunities.org/id/metropolitan-district-council/leeds,Leeds City Council,31/08/2023,Children and Families,Social Care ,Supplies and Services,Subsistence,256,03/07/2023,2308-00090,0.00,80.80,R,Aagrah Skipton,Yes
Http://opendatacommunities.org/id/metropolitan-district-council/leeds,Leeds City Council,31/08/2023,Adults and Health,Services For Older People - 65 And Over,Agency Payments,Residential Care Dementia,571,16/08/2023,2308-00091,0.00,2469.52,R,Aaron Court Care Home,No
Http://opendatacommunities.org/id/metropolitan-district-council/leeds,Leeds City Council as Accountable Body,31/08/2023,Social Services Pooled Budgets,Leeds Community Equip Store Pooled Budgt,Supplies and Services,Other Equipment,203,04/08/2023,2308-00092,0.00,1413.00,R,AAT (GB) LTD,No
Http://opendatacommunities.org/id/metropolitan-district-council/leeds,Leeds City Council,31/08/2023,City Development,Libraries Arts & Heritage,Supplies and Services,Other Hired And Contracted Services,265,25/08/2023,2308-00093,0.00,289.00,R,AAT (GB) LTD,No
Http://opendatacommunities.org/id/metropolitan-district-council/leeds,Leeds City Council as Accountable Body,31/08/2023,Social Services Pooled Budgets,Jcs For People With Learning Disabilitie,Supplies and Services,Other Equipment,203,25/08/2023,2308-00094,0.00,2104.00,R,AAT (GB) LTD,No
Http://opendatacommunities.org/id/metropolitan-district-council/leeds,Leeds City Council,31/08/2023,Communities Housing and Environment,Car Parking Services ,Supplies and Services,Postages,212,10/07/2023,2308-00095,0.00,18.50,R,Abacus Express,Yes
Http://opendatacommunities.org/id/metropolitan-district-council/leeds,Leeds City Council,31/08/2023,Communities Housing and Environment,Car Parking Services ,Supplies and Services,Postages,212,17/07/2023,2308-00096,0.00,18.50,R,Abacus Express,Yes
Http://opendatacommunities.org/id/metropolitan-district-council/leeds,Leeds City Council,31/08/2023,Communities Housing and Environment,Customer Access,Supplies and Services,Bought In Professional Services,277,09/08/2023,2308-00097,0.00,18.00,R,Abadit Kiros,No
Http://opendatacommunities.org/id/metropolitan-district-council/leeds,Leeds City Council,31/08/2023,Communities Housing and Environment,Customer Access,Supplies and Services,Bought In Professional Services,277,09/08/2023,2308-00098,0.00,18.00,R,Abadit Kiros,No
Http://opendatacommunities.org/id/metropolitan-district-council/leeds,Leeds City Council,31/08/2023,Communities Housing and Environment,Customer Access,Supplies and Services,Bought In Professional Services,277,09/08/2023,2308-00099,0.00,18.00,R,Abadit Kiros,No
Http://opendatacommunities.org/id/metropolitan-district-council/leeds,Leeds City Council,31/08/2023,Communities Housing and Environment,Customer Access,Supplies and Services,Bought In Professional Services,277,09/08/2023,2308-00100,0.00,18.00,R,Abadit Kiros,No
Http://opendatacommunities.org/id/metropolitan-district-council/leeds,Leeds City Council,31/08/2023,Communities Housing and Environment,Customer Access,Supplies and Services,Bought In Professional Services,277,09/08/2023,2308-00101,0.00,18.00,R,Abadit Kiros,No
Http://opendatacommunities.org/id/metropolitan-district-council/leeds,Leeds City Council,31/08/2023,Communities Housing and Environment,Customer Access,Supplies and Services,Bought In Professional Services,277,09/08/2023,2308-00102,0.00,18.00,R,Abadit Kiros,No
Http://opendatacommunities.org/id/metropolitan-district-council/leeds,Leeds City Council,31/08/2023,Communities Housing and Environment,Customer Access,Supplies and Services,Bought In Professional Services,277,16/08/2023,2308-00103,0.00,18.00,R,Abadit Kiros,No
Http://opendatacommunities.org/id/metropolitan-district-council/leeds,Leeds City Council,31/08/2023,Communities Housing and Environment,Customer Access,Supplies and Services,Bought In Professional Services,277,16/08/2023,2308-00104,0.00,27.00,R,Abadit Kiros,No
Http://opendatacommunities.org/id/metropolitan-district-council/leeds,Leeds City Council,31/08/2023,Communities Housing and Environment,Customer Access,Supplies and Services,Bought In Professional Services,277,16/08/2023,2308-00105,0.00,18.00,R,Abadit Kiros,No
Http://opendatacommunities.org/id/metropolitan-district-council/leeds,Leeds City Council,31/08/2023,Communities Housing and Environment,Customer Access,Supplies and Services,Bought In Professional Services,277,23/08/2023,2308-00106,0.00,13.50,R,Abadit Kiros,No
Http://opendatacommunities.org/id/metropolitan-district-council/leeds,Leeds City Council,31/08/2023,Communities Housing and Environment,Customer Access,Supplies and Services,Bought In Professional Services,277,23/08/2023,2308-00107,0.00,27.00,R,Abadit Kiros,No
Http://opendatacommunities.org/id/metropolitan-district-council/leeds,Leeds City Council,31/08/2023,Communities Housing and Environment,Customer Access,Supplies and Services,Bought In Professional Services,277,23/08/2023,2308-00108,0.00,27.00,R,Abadit Kiros,No
Http://opendatacommunities.org/id/metropolitan-district-council/leeds,Leeds City Council,31/08/2023,Communities Housing and Environment,Customer Access,Supplies and Services,Bought In Professional Services,277,23/08/2023,2308-00109,0.00,18.00,R,Abadit Kiros,No
Http://opendatacommunities.org/id/metropolitan-district-council/leeds,Leeds City Council,31/08/2023,Adults and Health,Public Health,Agency Payments,Public Health Commissioned Services,526,09/08/2023,2308-00110,0.00,1903.04,R,Abbey Grange Medical Practice,No
Http://opendatacommunities.org/id/metropolitan-district-council/leeds,Leeds City Council,31/08/2023,Children and Families,Social Care,Agency Payments,Services Rendered By Other Organisations,511,04/08/2023,2308-00111,0.00,46390.68,R,Abbey Multi Academy Trust,No
Http://opendatacommunities.org/id/metropolitan-district-council/leeds,Leeds City Council,31/08/2023,Children and Families,Social Care,Agency Payments,Services Rendered By Other Organisations,511,04/08/2023,2308-00112,0.00,906.33,R,Abbey Multi Academy Trust,No
Http://opendatacommunities.org/id/metropolitan-district-council/leeds,Leeds City Council,31/08/2023,Children and Families,Social Care,Agency Payments,Services Rendered By Other Organisations,511,04/08/2023,2308-00113,0.00,301.32,R,Abbey Multi Academy Trust,No
Http://opendatacommunities.org/id/metropolitan-district-council/leeds,Leeds City Council,31/08/2023,Adults and Health,Services For Adults Under 65 Mental/Dis,Agency Payments,Home Care,568,11/08/2023,2308-00114,0.00,252.00,R,Abbeyfield The Dales Limited,No
Http://opendatacommunities.org/id/metropolitan-district-council/leeds,Leeds City Council,31/08/2023,Adults and Health,Services For Adults Under 65 Mental/Dis,Agency Payments,Home Care,568,30/08/2023,2308-00115,0.00,378.00,R,Abbeyfield The Dales Limited,No
Http://opendatacommunities.org/id/metropolitan-district-council/leeds,Leeds City Council,31/08/2023,Strategic Landlord,Housing Management,Supplies and Services,Compensation Claims,200,14/08/2023,2308-00116,0.00,750.00,R,REDACTED PERSONAL DATA,No
Http://opendatacommunities.org/id/metropolitan-district-council/leeds,Leeds City Council,31/08/2023,Children and Families,Social Care,Agency Payments,Allowances,546,03/08/2023,2308-00117,0.00,971.87,R,Abbie O Mahony ,No
Http://opendatacommunities.org/id/metropolitan-district-council/leeds,Leeds City Council,31/08/2023,Children and Families,Social Care,Agency Payments,Allowances,546,25/08/2023,2308-00118,0.00,784.45,R,Abbie O Mahony ,No
Http://opendatacommunities.org/id/metropolitan-district-council/leeds,Leeds City Council,31/08/2023,Children and Families,Social Care,Agency Payments,Services Rendered By Other Organisations,511,04/08/2023,2308-00119,0.00,383.76,R,REDACTED PERSONAL DATA,No
Http://opendatacommunities.org/id/metropolitan-district-council/leeds,Leeds City Council,31/08/2023,Children and Families,Social Care,Agency Payments,Services Rendered By Other Organisations,511,04/08/2023,2308-00120,0.00,485.55,R,REDACTED PERSONAL DATA,No
Http://opendatacommunities.org/id/metropolitan-district-council/leeds,Leeds City Council,31/08/2023,Communities Housing and Environment,Climate Energy & Greenspaces ,Supplies and Services,Other Hired And Contracted Services,265,05/07/2023,2308-00121,0.00,3150.00,R,Abbotts Memorial Compa,Yes
Http://opendatacommunities.org/id/metropolitan-district-council/leeds,Leeds City Council,31/08/2023,Communities Housing and Environment,Climate Energy & Greenspaces ,Supplies and Services,Other Hired And Contracted Services,265,18/07/2023,2308-00122,0.00,600.00,R,Abbotts Memorial Compa,Yes
Http://opendatacommunities.org/id/metropolitan-district-council/leeds,Leeds City Council,31/08/2023,Communities Housing and Environment,Climate Energy & Greenspaces ,Supplies and Services,Other Hired And Contracted Services,265,25/07/2023,2308-00123,0.00,1200.00,R,Abbotts Memorial Compa,Yes
Http://opendatacommunities.org/id/metropolitan-district-council/leeds,Leeds City Council,31/08/2023,Children and Families,Social Care,Agency Payments,General External Residential Placements,507,02/08/2023,2308-00124,0.00,34465.18,R,Abc Care And Education Ltd,No
Http://opendatacommunities.org/id/metropolitan-district-council/leeds,Leeds City Council,31/08/2023,Children and Families,Social Care,Agency Payments,General External Residential Placements,507,17/08/2023,2308-00125,0.00,17515.09,R,Abc Care And Education Ltd,No
Http://opendatacommunities.org/id/metropolitan-district-council/leeds,Leeds City Council,31/08/2023,Children and Families,Social Care,Agency Payments,Services Rendered By Other Organisations,511,02/08/2023,2308-00126,0.00,4860.36,R,ABC NURSERY AT LUFC,No
Http://opendatacommunities.org/id/metropolitan-district-council/leeds,Leeds City Council,31/08/2023,Children and Families,Social Care,Agency Payments,Services Rendered By Other Organisations,511,04/08/2023,2308-00127,0.00,10644.78,R,ABC NURSERY AT LUFC,No
Http://opendatacommunities.org/id/metropolitan-district-council/leeds,Leeds City Council,31/08/2023,Children and Families,Social Care,Agency Payments,Services Rendered By Other Organisations,511,04/08/2023,2308-00128,0.00,2789.55,R,ABC NURSERY AT LUFC,No
Http://opendatacommunities.org/id/metropolitan-district-council/leeds,Leeds City Council,31/08/2023,Children and Families,Social Care,Agency Payments,Services Rendered By Other Organisations,511,04/08/2023,2308-00129,0.00,967.20,R,ABC NURSERY AT LUFC,No
Http://opendatacommunities.org/id/metropolitan-district-council/leeds,Leeds City Council,31/08/2023,Children and Families,Social Care,Agency Payments,Services Rendered By Other Organisations,511,02/08/2023,2308-00130,0.00,915.72,R,Abc@D'S Childcare,No
Http://opendatacommunities.org/id/metropolitan-district-council/leeds,Leeds City Council,31/08/2023,Children and Families,Social Care,Agency Payments,Services Rendered By Other Organisations,511,04/08/2023,2308-00131,0.00,7291.44,R,Abc@D'S Childcare,No
Http://opendatacommunities.org/id/metropolitan-district-council/leeds,Leeds City Council,31/08/2023,Children and Families,Social Care,Agency Payments,Services Rendered By Other Organisations,511,04/08/2023,2308-00132,0.00,1154.40,R,Abc@D'S Childcare,No
Http://opendatacommunities.org/id/metropolitan-district-council/leeds,Leeds City Council,31/08/2023,Communities Housing and Environment,Customer Access,Supplies and Services,Bought In Professional Services,277,09/08/2023,2308-00133,0.00,9.00,R,Abdalla Ahmed,No
Http://opendatacommunities.org/id/metropolitan-district-council/leeds,Leeds City Council,31/08/2023,Communities Housing and Environment,Customer Access,Supplies and Services,Bought In Professional Services,277,09/08/2023,2308-00134,0.00,9.00,R,Abdalla Ahmed,No
Http://opendatacommunities.org/id/metropolitan-district-council/leeds,Leeds City Council,31/08/2023,Communities Housing and Environment,Customer Access,Supplies and Services,Bought In Professional Services,277,16/08/2023,2308-00135,0.00,18.00,R,Abdalla Ahmed,No
Http://opendatacommunities.org/id/metropolitan-district-council/leeds,Leeds City Council,31/08/2023,Communities Housing and Environment,Customer Access,Supplies and Services,Bought In Professional Services,277,23/08/2023,2308-00136,0.00,30.00,R,Abdalla Ahmed,No
Http://opendatacommunities.org/id/metropolitan-district-council/leeds,Leeds City Council,31/08/2023,Communities Housing and Environment,Customer Access,Supplies and Services,Bought In Professional Services,277,23/08/2023,2308-00137,0.00,18.00,R,Abdalla Ahmed,No
Http://opendatacommunities.org/id/metropolitan-district-council/leeds,Leeds City Council,31/08/2023,Communities Housing and Environment,Customer Access,Supplies and Services,Bought In Professional Services,277,23/08/2023,2308-00138,0.00,54.00,R,Abdalla Ahmed,No
Http://opendatacommunities.org/id/metropolitan-district-council/leeds,Leeds City Council,31/08/2023,Communities Housing and Environment,Customer Access,Supplies and Services,Bought In Professional Services,277,09/08/2023,2308-00139,0.00,34.80,R,Abdiqafar Abdullahi,No
Http://opendatacommunities.org/id/metropolitan-district-council/leeds,Leeds City Council,31/08/2023,Communities Housing and Environment,Customer Access,Supplies and Services,Bought In Professional Services,277,23/08/2023,2308-00140,0.00,18.00,R,Abdiqafar Abdullahi,No
Http://opendatacommunities.org/id/metropolitan-district-council/leeds,Leeds City Council,31/08/2023,Communities Housing and Environment,Customer Access,Supplies and Services,Bought In Professional Services,277,31/08/2023,2308-00141,0.00,18.00,R,Abdiqafar Abdullahi,No
Http://opendatacommunities.org/id/metropolitan-district-council/leeds,Leeds City Council,31/08/2023,Communities Housing and Environment,Customer Access,Supplies and Services,Bought In Professional Services,277,31/08/2023,2308-00142,0.00,18.00,R,Abdiqafar Abdullahi,No
Http://opendatacommunities.org/id/metropolitan-district-council/leeds,Leeds City Council,31/08/2023,Communities Housing and Environment,Customer Access,Supplies and Services,Bought In Professional Services,277,23/08/2023,2308-00143,0.00,22.50,R,Abdul Kalam,No
Http://opendatacommunities.org/id/metropolitan-district-council/leeds,Leeds City Council,31/08/2023,Communities Housing and Environment,Customer Access,Supplies and Services,Bought In Professional Services,277,09/08/2023,2308-00144,0.00,22.50,R,Abdulahad Denha,No
Http://opendatacommunities.org/id/metropolitan-district-council/leeds,Leeds City Council,31/08/2023,Communities Housing and Environment,Customer Access,Supplies and Services,Bought In Professional Services,277,09/08/2023,2308-00145,0.00,18.00,R,Abdulahad Denha,No
Http://opendatacommunities.org/id/metropolitan-district-council/leeds,Leeds City Council,31/08/2023,Communities Housing and Environment,Customer Access,Supplies and Services,Bought In Professional Services,277,09/08/2023,2308-00146,0.00,18.00,R,Abdulahad Denha,No
Http://opendatacommunities.org/id/metropolitan-district-council/leeds,Leeds City Council,31/08/2023,Communities Housing and Environment,Customer Access,Supplies and Services,Bought In Professional Services,277,16/08/2023,2308-00147,0.00,22.50,R,Abdulahad Denha,No
Http://opendatacommunities.org/id/metropolitan-district-council/leeds,Leeds City Council,31/08/2023,Communities Housing and Environment,Customer Access,Supplies and Services,Bought In Professional Services,277,16/08/2023,2308-00148,0.00,18.00,R,Abdulahad Denha,No
Http://opendatacommunities.org/id/metropolitan-district-council/leeds,Leeds City Council,31/08/2023,Communities Housing and Environment,Customer Access,Supplies and Services,Bought In Professional Services,277,16/08/2023,2308-00149,0.00,18.00,R,Abdulahad Denha,No
Http://opendatacommunities.org/id/metropolitan-district-council/leeds,Leeds City Council,31/08/2023,Communities Housing and Environment,Customer Access,Supplies and Services,Bought In Professional Services,277,23/08/2023,2308-00150,0.00,9.00,R,Abdulahad Denha,No
Http://opendatacommunities.org/id/metropolitan-district-council/leeds,Leeds City Council,31/08/2023,Communities Housing and Environment,Customer Access,Supplies and Services,Bought In Professional Services,277,31/08/2023,2308-00151,0.00,18.00,R,Abdulahad Denha,No
Http://opendatacommunities.org/id/metropolitan-district-council/leeds,Leeds City Council,31/08/2023,Communities Housing and Environment,Customer Access,Supplies and Services,Bought In Professional Services,277,31/08/2023,2308-00152,0.00,27.00,R,Abdulahad Denha,No
Http://opendatacommunities.org/id/metropolitan-district-council/leeds,Leeds City Council,31/08/2023,Communities Housing and Environment,Customer Access,Supplies and Services,Bought In Professional Services,277,31/08/2023,2308-00153,0.00,27.00,R,Abdulahad Denha,No
Http://opendatacommunities.org/id/metropolitan-district-council/leeds,Leeds City Council,31/08/2023,Communities Housing and Environment,Customer Access,Supplies and Services,Bought In Professional Services,277,31/08/2023,2308-00154,0.00,18.00,R,Abdulahad Denha,No
Http://opendatacommunities.org/id/metropolitan-district-council/leeds,Leeds City Council,31/08/2023,Communities Housing and Environment,Customer Access,Supplies and Services,Bought In Professional Services,277,02/08/2023,2308-00155,0.00,9.00,R,Abdulrahim Dastyar,No
Http://opendatacommunities.org/id/metropolitan-district-council/leeds,Leeds City Council,31/08/2023,Communities Housing and Environment,Customer Access,Supplies and Services,Bought In Professional Services,277,02/08/2023,2308-00156,0.00,18.00,R,Abdulrahim Dastyar,No
Http://opendatacommunities.org/id/metropolitan-district-council/leeds,Leeds City Council,31/08/2023,Communities Housing and Environment,Communities,Supplies and Services,'Well Being' Large Grants Projects,230,22/08/2023,2308-00157,0.00,260.00,R,ABERFORD AND DISTRICT PARISH COUNCIL,No
Http://opendatacommunities.org/id/metropolitan-district-council/leeds,Leeds City Council,31/08/2023,Children and Families,Social Care,Agency Payments,Placement Support,550,21/08/2023,2308-00158,0.00,626.00,R,Aberford Childcare Services,No
Http://opendatacommunities.org/id/metropolitan-district-council/leeds,Leeds City Council,31/08/2023,Children and Families,Social Care,Agency Payments,Placement Support,550,23/08/2023,2308-00159,0.00,452.00,R,Aberford Childcare Services,No
Http://opendatacommunities.org/id/metropolitan-district-council/leeds,Leeds City Council,31/08/2023,Adults and Health,Services For Older People - 65 And Over,Agency Payments,Nursing Home,570,16/08/2023,2308-00160,0.00,39240.77,R,Aberford Hall,No
Http://opendatacommunities.org/id/metropolitan-district-council/leeds,Leeds City Council,31/08/2023,Adults and Health,Services For Older People Under 65 P/Dis,Agency Payments,Nursing Home,570,16/08/2023,2308-00161,0.00,3016.00,R,Aberford Hall,No
Http://opendatacommunities.org/id/metropolitan-district-council/leeds,Leeds City Council,31/08/2023,Children and Families,Learning,Agency Payments,SEN Placements,566,03/08/2023,2308-00162,0.00,880.00,R,Aberford Village Hall,No
Http://opendatacommunities.org/id/metropolitan-district-council/leeds,Leeds City Council,31/08/2023,Strategy and Resources,Leeds Building Services,Supplies and Services,Operational Materials,205,04/08/2023,2308-00163,0.00,437.20,R,ABI GARAGE DOORS LTD,No
Http://opendatacommunities.org/id/metropolitan-district-council/leeds,Leeds City Council,31/08/2023,Strategy and Resources,Leeds Building Services,Supplies and Services,Operational Materials,205,04/08/2023,2308-00164,0.00,437.20,R,ABI GARAGE DOORS LTD,No
Http://opendatacommunities.org/id/metropolitan-district-council/leeds,Leeds City Council,31/08/2023,Strategy and Resources,Leeds Building Services,Supplies and Services,Operational Materials,205,18/08/2023,2308-00165,0.00,10.83,R,ABI GARAGE DOORS LTD,No
Http://opendatacommunities.org/id/metropolitan-district-council/leeds,Leeds City Council,31/08/2023,Strategy and Resources,Leeds Building Services,Supplies and Services,Operational Materials,205,18/08/2023,2308-00166,0.00,46.75,R,ABI GARAGE DOORS LTD,No
Http://opendatacommunities.org/id/metropolitan-district-council/leeds,Leeds City Council,31/08/2023,Strategy and Resources,Leeds Building Services,Supplies and Services,Operational Materials,205,23/08/2023,2308-00167,0.00,46.75,R,ABI GARAGE DOORS LTD,No
Http://opendatacommunities.org/id/metropolitan-district-council/leeds,Leeds City Council,31/08/2023,Strategy and Resources,Leeds Building Services,Supplies and Services,Operational Materials,205,25/08/2023,2308-00168,0.00,420.90,R,ABI GARAGE DOORS LTD,No
Http://opendatacommunities.org/id/metropolitan-district-council/leeds,Leeds City Council,31/08/2023,Strategy and Resources,Leeds Building Services,Supplies and Services,Operational Materials,205,30/08/2023,2308-00169,0.00,471.20,R,ABI GARAGE DOORS LTD,No
Http://opendatacommunities.org/id/metropolitan-district-council/leeds,Leeds City Council,31/08/2023,Strategy and Resources,Leeds Building Services,Supplies and Services,Operational Materials,205,30/08/2023,2308-00170,0.00,420.90,R,ABI GARAGE DOORS LTD,No
Http://opendatacommunities.org/id/metropolitan-district-council/leeds,Leeds City Council,31/08/2023,Strategy and Resources,Leeds Building Services,Supplies and Services,Operational Materials,205,30/08/2023,2308-00171,0.00,420.90,R,ABI GARAGE DOORS LTD,No
Http://opendatacommunities.org/id/metropolitan-district-council/leeds,Leeds City Council,31/08/2023,Strategy and Resources,Leeds Building Services,Supplies and Services,Operational Materials,205,30/08/2023,2308-00172,0.00,420.90,R,ABI GARAGE DOORS LTD,No
Http://opendatacommunities.org/id/metropolitan-district-council/leeds,Leeds City Council,31/08/2023,Communities Housing and Environment,Customer Access,Supplies and Services,Bought In Professional Services,277,31/08/2023,2308-00173,0.00,13.50,R,Abida Begum,No
Http://opendatacommunities.org/id/metropolitan-district-council/leeds,Leeds City Council,31/08/2023,Strategic Landlord,Property and Contracts,Internal Recharges,Legal Disbursements,411,02/08/2023,2308-00174,0.00,1000.00,R,Abigail Cheetham,No
Http://opendatacommunities.org/id/metropolitan-district-council/leeds,Leeds City Council,31/08/2023,Children and Families,Social Care,Appropriations,Leaving Care Allowances,634,11/08/2023,2308-00175,0.00,15.20,R,REDACTED PERSONAL DATA,No
Http://opendatacommunities.org/id/metropolitan-district-council/leeds,Leeds City Council,31/08/2023,Children and Families,Social Care,Agency Payments,General External Residential Placements,507,25/08/2023,2308-00176,0.00,17692.01,R,Absolute Children's Services Ltd,No
Http://opendatacommunities.org/id/metropolitan-district-council/leeds,Leeds City Council,31/08/2023,Children and Families,Social Care ,Supplies and Services,Bedding & Linen,222,21/07/2023,2308-00177,0.00,391.00,R,Absolute Home Textiles,Yes
Http://opendatacommunities.org/id/metropolitan-district-council/leeds,Leeds City Council,31/08/2023,City Development,Libraries Arts & Heritage ,Premises,Furniture And Fittings,195,12/07/2023,2308-00178,0.00,123.11,R,Absoluteproduct.Co,Yes
Http://opendatacommunities.org/id/metropolitan-district-council/leeds,Leeds City Council,31/08/2023,Children and Families,Social Care,Agency Payments,Services Rendered By Other Organisations,511,02/08/2023,2308-00179,0.00,8276.70,R,Academies Enterprise Trust (AET),No
Http://opendatacommunities.org/id/metropolitan-district-council/leeds,Leeds City Council,31/08/2023,Children and Families,Social Care,Agency Payments,Services Rendered By Other Organisations,511,04/08/2023,2308-00180,0.00,42730.20,R,Academies Enterprise Trust (AET),No
Http://opendatacommunities.org/id/metropolitan-district-council/leeds,Leeds City Council,31/08/2023,Children and Families,Social Care,Agency Payments,Services Rendered By Other Organisations,511,04/08/2023,2308-00181,0.00,3199.95,R,Academies Enterprise Trust (AET),No
Http://opendatacommunities.org/id/metropolitan-district-council/leeds,Leeds City Council,31/08/2023,Children and Families,Social Care,Agency Payments,Services Rendered By Other Organisations,511,04/08/2023,2308-00182,0.00,120.90,R,Academies Enterprise Trust (AET),No
Http://opendatacommunities.org/id/metropolitan-district-council/leeds,Leeds City Council,31/08/2023,Strategy and Resources,Human Resources ,Supplies and Services,Memberships,226,04/07/2023,2308-00183,0.00,70.00,R,Access Association,Yes
Http://opendatacommunities.org/id/metropolitan-district-council/leeds,Leeds City Council,31/08/2023,Strategy and Resources,Technology,Supplies and Services,Computer Software & Equipment,214,10/08/2023,2308-00184,0.00,7145.07,R,Access Uk Ltd,No
Http://opendatacommunities.org/id/metropolitan-district-council/leeds,Leeds City Council,31/08/2023,Children and Families,Social Care,Supplies and Services,Computer Software & Equipment,214,17/08/2023,2308-00185,0.00,950.00,R,Access Uk Ltd,No
Http://opendatacommunities.org/id/metropolitan-district-council/leeds,Leeds City Council,31/08/2023,Strategy and Resources,Technology,Supplies and Services,Computer Software & Equipment,214,23/08/2023,2308-00186,0.00,1545.00,R,Access Uk Ltd,No
Http://opendatacommunities.org/id/metropolitan-district-council/leeds,Leeds City Council,31/08/2023,Children and Families,Resources & Strategy,Supplies and Services,Computer Software & Equipment,214,25/08/2023,2308-00187,0.00,2850.00,R,Access Uk Ltd,No
Http://opendatacommunities.org/id/metropolitan-district-council/leeds,Leeds City Council,31/08/2023,Communities Housing and Environment,Environmental Action (City Centre),Supplies and Services,CCTV,252,24/08/2023,2308-00188,0.00,94.00,R,AccessCCTV,No
Http://opendatacommunities.org/id/metropolitan-district-council/leeds,Leeds City Council,31/08/2023,Insurance,Insurance,Supplies and Services,Insurance Claims,248,14/08/2023,2308-00189,0.00,4867.06,R,Accident Exchange Ltd,No
Http://opendatacommunities.org/id/metropolitan-district-council/leeds,Leeds City Council as Accountable Body,31/08/2023,Social Services Pooled Budgets,Leeds Community Equip Store Pooled Budgt,Supplies and Services,Other Equipment,203,04/08/2023,2308-00190,0.00,284.00,R,Accora,No
Http://opendatacommunities.org/id/metropolitan-district-council/leeds,Leeds City Council,31/08/2023,Insurance,Insurance,Supplies and Services,Insurance Claims,248,31/08/2023,2308-00191,0.00,4000.00,R,Accountant General Of The Senior Courts,No
Http://opendatacommunities.org/id/metropolitan-district-council/leeds,Leeds City Council,31/08/2023,City Development,Recreation,Transport,External Hire -Occasional,304,02/08/2023,2308-00192,0.00,128.65,R,ACE CONTAINER SERVICES LIMITED,No
Http://opendatacommunities.org/id/metropolitan-district-council/leeds,Leeds City Council,31/08/2023,City Development,Recreation,Transport,External Hire -Occasional,304,31/08/2023,2308-00193,0.00,128.65,R,ACE CONTAINER SERVICES LIMITED,No
Http://opendatacommunities.org/id/metropolitan-district-council/leeds,Leeds City Council,31/08/2023,Strategy and Resources,Leeds Building Services,Supplies and Services,Other Hired And Contracted Services,265,04/08/2023,2308-00194,0.00,2000.00,R,Ace Elevators Limited,No
Http://opendatacommunities.org/id/metropolitan-district-council/leeds,Leeds City Council,31/08/2023,Strategy and Resources,Leeds Building Services,Supplies and Services,Other Hired And Contracted Services,265,09/08/2023,2308-00195,0.00,1280.00,R,Ace Elevators Limited,No
Http://opendatacommunities.org/id/metropolitan-district-council/leeds,Leeds City Council,31/08/2023,Strategy and Resources,Leeds Building Services,Supplies and Services,Other Hired And Contracted Services,265,09/08/2023,2308-00196,0.00,400.00,R,Ace Elevators Limited,No
Http://opendatacommunities.org/id/metropolitan-district-council/leeds,Leeds City Council,31/08/2023,Strategy and Resources,Leeds Building Services,Supplies and Services,Other Hired And Contracted Services,265,11/08/2023,2308-00197,0.00,440.00,R,Ace Elevators Limited,No
Http://opendatacommunities.org/id/metropolitan-district-council/leeds,Leeds City Council,31/08/2023,Children and Families,Learning,Agency Payments,SEN Placements,566,07/08/2023,2308-00198,0.00,27821.66,R,ACKWORTH SCHOOL,No
Http://opendatacommunities.org/id/metropolitan-district-council/leeds,Leeds City Council,31/08/2023,Communities Housing and Environment,Climate Energy & Greenspaces ,Supplies and Services,Other Hired And Contracted Services,265,18/07/2023,2308-00199,0.00,1256.67,R,Acme Facilities Group,Yes
Http://opendatacommunities.org/id/metropolitan-district-council/leeds,Leeds City Council as Accountable Body,31/08/2023,Social Services Pooled Budgets,Jcs For People With Learning Disabilitie,Agency Payments,Residential,580,16/08/2023,2308-00200,0.00,103912.96,R,Acorn Care & Education Limited,No
Http://opendatacommunities.org/id/metropolitan-district-council/leeds,Leeds City Council as Accountable Body,31/08/2023,Social Services Pooled Budgets,Jcs For People With Learning Disabilitie,Agency Payments,Residential,580,16/08/2023,2308-00201,0.00,21536.80,R,Acorn Care & Education Limited (Ofg),No
Http://opendatacommunities.org/id/metropolitan-district-council/leeds,Leeds City Council,31/08/2023,Children and Families,Learning,Agency Payments,SEN Placements,566,02/08/2023,2308-00202,0.00,19827.00,R,Acorn Care & Education Ltd (Sales),No
Http://opendatacommunities.org/id/metropolitan-district-council/leeds,Leeds City Council,31/08/2023,Children and Families,Learning,Agency Payments,SEN Placements,566,02/08/2023,2308-00203,0.00,496.02,R,Acorn Care & Education Ltd (Sales),No
Http://opendatacommunities.org/id/metropolitan-district-council/leeds,Leeds City Council,31/08/2023,Children and Families,Learning,Agency Payments,SEN Placements,566,02/08/2023,2308-00204,0.00,19827.02,R,Acorn Care & Education Ltd (Sales),No
Http://opendatacommunities.org/id/metropolitan-district-council/leeds,Leeds City Council,31/08/2023,Children and Families,Learning,Agency Payments,SEN Placements,566,02/08/2023,2308-00205,0.00,496.00,R,Acorn Care & Education Ltd (Sales),No
Http://opendatacommunities.org/id/metropolitan-district-council/leeds,Leeds City Council,31/08/2023,Children and Families,Learning,Agency Payments,SEN Placements,566,02/08/2023,2308-00206,0.00,19762.73,R,Acorn Care & Education Ltd (Sales),No
Http://opendatacommunities.org/id/metropolitan-district-council/leeds,Leeds City Council,31/08/2023,Children and Families,Learning,Agency Payments,SEN Placements,566,02/08/2023,2308-00207,0.00,494.00,R,Acorn Care & Education Ltd (Sales),No
Http://opendatacommunities.org/id/metropolitan-district-council/leeds,Leeds City Council,31/08/2023,Adults and Health,Services For Adults Under 65 Learn/Dis,Agency Payments,General External Residential Placements,507,02/08/2023,2308-00208,0.00,-16431.42,R,Acorn Care & Education Ltd (Sales),No
Http://opendatacommunities.org/id/metropolitan-district-council/leeds,Leeds City Council,31/08/2023,Children and Families,Learning,Agency Payments,SEN Placements,566,03/08/2023,2308-00209,0.00,48696.43,R,Acorn Care & Education Ltd (Sales),No
Http://opendatacommunities.org/id/metropolitan-district-council/leeds,Leeds City Council,31/08/2023,Children and Families,Learning,Agency Payments,SEN Placements,566,03/08/2023,2308-00210,0.00,48696.43,R,Acorn Care & Education Ltd (Sales),No
Http://opendatacommunities.org/id/metropolitan-district-council/leeds,Leeds City Council,31/08/2023,Children and Families,Learning,Agency Payments,SEN Placements,566,03/08/2023,2308-00211,0.00,24348.22,R,Acorn Care & Education Ltd (Sales),No
Http://opendatacommunities.org/id/metropolitan-district-council/leeds,Leeds City Council,31/08/2023,Children and Families,Learning,Agency Payments,SEN Placements,566,03/08/2023,2308-00212,0.00,37658.85,R,Acorn Care & Education Ltd (Sales),No
Http://opendatacommunities.org/id/metropolitan-district-council/leeds,Leeds City Council,31/08/2023,Children and Families,Learning,Agency Payments,SEN Placements,566,11/08/2023,2308-00213,0.00,37658.84,R,Acorn Care & Education Ltd (Sales),No
Http://opendatacommunities.org/id/metropolitan-district-council/leeds,Leeds City Council,31/08/2023,Children and Families,Learning,Agency Payments,SEN Placements,566,11/08/2023,2308-00214,0.00,-10293.55,R,Acorn Care & Education Ltd (Sales),No
Http://opendatacommunities.org/id/metropolitan-district-council/leeds,Leeds City Council,31/08/2023,Children and Families,Learning,Agency Payments,SEN Placements,566,22/08/2023,2308-00215,0.00,20421.08,R,Acorn Care & Education Ltd (Sales),No
Http://opendatacommunities.org/id/metropolitan-district-council/leeds,Leeds City Council,31/08/2023,Children and Families,Learning,Agency Payments,SEN Placements,566,23/08/2023,2308-00216,0.00,19923.08,R,Acorn Care & Education Ltd (Sales),No
Http://opendatacommunities.org/id/metropolitan-district-council/leeds,Leeds City Council,31/08/2023,Children and Families,Learning,Agency Payments,SEN Placements,566,23/08/2023,2308-00217,0.00,498.00,R,Acorn Care & Education Ltd (Sales),No
Http://opendatacommunities.org/id/metropolitan-district-council/leeds,Leeds City Council,31/08/2023,Children and Families,Learning,Agency Payments,SEN Placements,566,23/08/2023,2308-00218,0.00,7838.96,R,Acorn Care & Education Ltd (Sales),No
Http://opendatacommunities.org/id/metropolitan-district-council/leeds,Leeds City Council,31/08/2023,Children and Families,Learning,Agency Payments,SEN Placements,566,23/08/2023,2308-00219,0.00,12280.00,R,Acorn Care & Education Ltd (Sales),No
Http://opendatacommunities.org/id/metropolitan-district-council/leeds,Leeds City Council,31/08/2023,Children and Families,Learning,Agency Payments,SEN Placements,566,23/08/2023,2308-00220,0.00,496.00,R,Acorn Care & Education Ltd (Sales),No
Http://opendatacommunities.org/id/metropolitan-district-council/leeds,Leeds City Council,31/08/2023,Children and Families,Learning,Agency Payments,SEN Placements,566,23/08/2023,2308-00221,0.00,19918.58,R,Acorn Care & Education Ltd (Sales),No
Http://opendatacommunities.org/id/metropolitan-district-council/leeds,Leeds City Council,31/08/2023,Children and Families,Learning,Agency Payments,SEN Placements,566,23/08/2023,2308-00222,0.00,574.00,R,Acorn Care & Education Ltd (Sales),No
Http://opendatacommunities.org/id/metropolitan-district-council/leeds,Leeds City Council,31/08/2023,Children and Families,Learning,Agency Payments,SEN Placements,566,23/08/2023,2308-00223,0.00,22985.97,R,Acorn Care & Education Ltd (Sales),No
Http://opendatacommunities.org/id/metropolitan-district-council/leeds,Leeds City Council,31/08/2023,Children and Families,Learning,Agency Payments,SEN Placements,566,23/08/2023,2308-00224,0.00,574.00,R,Acorn Care & Education Ltd (Sales),No
Http://opendatacommunities.org/id/metropolitan-district-council/leeds,Leeds City Council,31/08/2023,Children and Families,Learning,Agency Payments,SEN Placements,566,23/08/2023,2308-00225,0.00,22985.97,R,Acorn Care & Education Ltd (Sales),No
Http://opendatacommunities.org/id/metropolitan-district-council/leeds,Leeds City Council,31/08/2023,Children and Families,Learning,Agency Payments,SEN Placements,566,24/08/2023,2308-00226,0.00,19916.58,R,Acorn Care & Education Ltd (Sales),No
Http://opendatacommunities.org/id/metropolitan-district-council/leeds,Leeds City Council,31/08/2023,Children and Families,Learning,Agency Payments,SEN Placements,566,24/08/2023,2308-00227,0.00,498.00,R,Acorn Care & Education Ltd (Sales),No
Http://opendatacommunities.org/id/metropolitan-district-council/leeds,Leeds City Council,31/08/2023,Adults and Health,Services For Older People Under 65 P/Dis,Agency Payments,Nursing Home,570,16/08/2023,2308-00228,0.00,3500.00,R,Acorn Care Home,No
Http://opendatacommunities.org/id/metropolitan-district-council/leeds,Leeds City Council,31/08/2023,Children and Families,Social Care,Agency Payments,Services Rendered By Other Organisations,511,02/08/2023,2308-00229,0.00,457.86,R,ACORNS NURSERY,No
Http://opendatacommunities.org/id/metropolitan-district-council/leeds,Leeds City Council,31/08/2023,Children and Families,Social Care,Agency Payments,Services Rendered By Other Organisations,511,04/08/2023,2308-00230,0.00,5673.26,R,ACORNS NURSERY,No
Http://opendatacommunities.org/id/metropolitan-district-council/leeds,Leeds City Council,31/08/2023,Children and Families,Social Care,Agency Payments,Services Rendered By Other Organisations,511,04/08/2023,2308-00231,0.00,218.40,R,ACORNS NURSERY,No
Http://opendatacommunities.org/id/metropolitan-district-council/leeds,Leeds City Council,31/08/2023,Children and Families,Social Care,Agency Payments,Services Rendered By Other Organisations,511,04/08/2023,2308-00232,0.00,120.90,R,ACORNS NURSERY,No
Http://opendatacommunities.org/id/metropolitan-district-council/leeds,Leeds City Council,31/08/2023,Adults and Health,Services For Older People - 65 And Over,Agency Payments,Nursing Home,570,16/08/2023,2308-00233,0.00,23550.57,R,Acre Green,No
Http://opendatacommunities.org/id/metropolitan-district-council/leeds,Leeds City Council,31/08/2023,Adults and Health,Services For Older People - 65 And Over,Agency Payments,Residential,580,16/08/2023,2308-00234,0.00,4548.80,R,Acre Green,No
Http://opendatacommunities.org/id/metropolitan-district-council/leeds,Leeds City Council,31/08/2023,Adults and Health,Services For Older People Under 65 P/Dis,Agency Payments,Nursing Home,570,16/08/2023,2308-00235,0.00,2479.64,R,Acre Green,No
Http://opendatacommunities.org/id/metropolitan-district-council/leeds,Leeds City Council,31/08/2023,Adults and Health,Services For Older People Under 65 P/Dis,Agency Payments,Residential,580,16/08/2023,2308-00236,0.00,2071.00,R,Acre Green,No
Http://opendatacommunities.org/id/metropolitan-district-council/leeds,Leeds City Council,31/08/2023,Children and Families,Social Care,Agency Payments,Services Rendered By Other Organisations,511,04/08/2023,2308-00237,0.00,6228.72,R,Acre Wood Day Nursery,No
Http://opendatacommunities.org/id/metropolitan-district-council/leeds,Leeds City Council,31/08/2023,Children and Families,Social Care,Agency Payments,Services Rendered By Other Organisations,511,04/08/2023,2308-00238,0.00,1842.75,R,Acre Wood Day Nursery,No
Http://opendatacommunities.org/id/metropolitan-district-council/leeds,Leeds City Council,31/08/2023,Children and Families,Social Care,Agency Payments,Services Rendered By Other Organisations,511,04/08/2023,2308-00239,0.00,362.70,R,Acre Wood Day Nursery,No
Http://opendatacommunities.org/id/metropolitan-district-council/leeds,Leeds City Council as Accountable Body,31/08/2023,Social Services Pooled Budgets,Jcs For People With Learning Disabilitie,Supplies and Services,Other Equipment,203,18/08/2023,2308-00240,0.00,580.00,R,Action Assist Ltd,No
Http://opendatacommunities.org/id/metropolitan-district-council/leeds,Leeds City Council,31/08/2023,Adults and Health,Services For Adults Under 65 Mental/Dis,Agency Payments,Fees - Level 4,520,04/08/2023,2308-00241,0.00,1970.00,R,Action First Assessments Ltd,No
Http://opendatacommunities.org/id/metropolitan-district-council/leeds,Leeds City Council,31/08/2023,Adults and Health,Services For Adults Under 65 Mental/Dis,Agency Payments,Fees - Level 4,520,18/08/2023,2308-00242,0.00,2220.00,R,Action First Assessments Ltd,No
Http://opendatacommunities.org/id/metropolitan-district-council/leeds,Leeds City Council,31/08/2023,Adults and Health,Services For Adults Under 65 Mental/Dis,Agency Payments,Fees - Level 4,520,25/08/2023,2308-00243,0.00,8990.00,R,Action First Assessments Ltd,No
Http://opendatacommunities.org/id/metropolitan-district-council/leeds,Leeds City Council as Accountable Body,31/08/2023,Social Services Pooled Budgets,Jcs For People With Learning Disabilitie,Agency Payments,Residential,580,16/08/2023,2308-00244,0.00,11613.36,R,Action For Care Contracts Limited,No
Http://opendatacommunities.org/id/metropolitan-district-council/leeds,Leeds City Council,31/08/2023,Children and Families,Social Care,Agency Payments,Independent Fostering Agencies,509,23/08/2023,2308-00245,0.00,4897.20,R,Action For Children Services Ltd,No
Http://opendatacommunities.org/id/metropolitan-district-council/leeds,Leeds City Council,31/08/2023,Children and Families,Social Care,Agency Payments,Independent Fostering Agencies,509,31/08/2023,2308-00246,0.00,5060.44,R,Action For Children Services Ltd,No
Http://opendatacommunities.org/id/metropolitan-district-council/leeds,Leeds City Council,31/08/2023,City Development,Recreation,Supplies and Services,Other Hired And Contracted Services,265,04/08/2023,2308-00247,0.00,10000.00,R,Action For Sport,No
Http://opendatacommunities.org/id/metropolitan-district-council/leeds,Leeds City Council,31/08/2023,City Development,Markets & City Centre Management,Supplies and Services,Publication And Promotion,267,31/08/2023,2308-00248,0.00,2460.00,R,ACTIVE HIRE (LEEDS) LTD,No
Http://opendatacommunities.org/id/metropolitan-district-council/leeds,Leeds City Council,31/08/2023,City Development,Markets & City Centre Management,Supplies and Services,Publication And Promotion,267,31/08/2023,2308-00249,0.00,480.00,R,ACTIVE HIRE (LEEDS) LTD,No
Http://opendatacommunities.org/id/metropolitan-district-council/leeds,Leeds City Council,31/08/2023,City Development,Markets & City Centre Management,Supplies and Services,Publication And Promotion,267,31/08/2023,2308-00250,0.00,480.00,R,ACTIVE HIRE (LEEDS) LTD,No
Http://opendatacommunities.org/id/metropolitan-district-council/leeds,Leeds City Council,31/08/2023,Children and Families,Social Care,Agency Payments,Services Rendered By Other Organisations,511,02/08/2023,2308-00251,0.00,2060.37,R,ACTIVE KIDS YEADON LLP,No
Http://opendatacommunities.org/id/metropolitan-district-council/leeds,Leeds City Council,31/08/2023,Children and Families,Social Care,Agency Payments,Services Rendered By Other Organisations,511,04/08/2023,2308-00252,0.00,12203.56,R,ACTIVE KIDS YEADON LLP,No
Http://opendatacommunities.org/id/metropolitan-district-council/leeds,Leeds City Council,31/08/2023,Children and Families,Social Care,Agency Payments,Services Rendered By Other Organisations,511,04/08/2023,2308-00253,0.00,752.70,R,ACTIVE KIDS YEADON LLP,No
Http://opendatacommunities.org/id/metropolitan-district-council/leeds,Leeds City Council,31/08/2023,Adults and Health,Services For Adults Under 65 Mental/Dis,Agency Payments,Sheltered Accommodation,569,16/08/2023,2308-00254,0.00,30402.02,R,Active Pathways,No
Http://opendatacommunities.org/id/metropolitan-district-council/leeds,Leeds City Council,31/08/2023,Adults and Health,Services For Older People - 65 And Over,Agency Payments,Sheltered Accommodation,569,16/08/2023,2308-00255,0.00,4150.84,R,Active Pathways,No
Http://opendatacommunities.org/id/metropolitan-district-council/leeds,Leeds City Council as Accountable Body,31/08/2023,Social Services Pooled Budgets,Jcs For People With Learning Disabilitie,Agency Payments,Sheltered Accommodation,569,16/08/2023,2308-00256,0.00,5393.77,R,Active Pathways,No
Http://opendatacommunities.org/id/metropolitan-district-council/leeds,Leeds City Council,31/08/2023,Adults and Health,Services For Adults Under 65 Mental/Dis,Agency Payments,Residential,580,16/08/2023,2308-00257,0.00,12973.80,R,Active Pathways Limited,No
Http://opendatacommunities.org/id/metropolitan-district-council/leeds,Leeds City Council,31/08/2023,Strategic Landlord,Housing Management,Supplies and Services,Other Hired And Contracted Services,265,01/08/2023,2308-00258,0.00,1250.00,R,Acuity Research & Practice Ltd,No
Http://opendatacommunities.org/id/metropolitan-district-council/leeds,Leeds City Council,31/08/2023,Strategic Landlord,Housing Management,Supplies and Services,Other Hired And Contracted Services,265,25/08/2023,2308-00259,0.00,5080.55,R,Acuity Research & Practice Ltd,No
Http://opendatacommunities.org/id/metropolitan-district-council/leeds,Leeds City Council,31/08/2023,Communities Housing and Environment,Waste Management,Supplies and Services,Waste Disposal Charges,236,02/08/2023,2308-00260,0.00,968.10,R,Acumen Waste Services Ltd,No
Http://opendatacommunities.org/id/metropolitan-district-council/leeds,Leeds City Council,31/08/2023,Communities Housing and Environment,Waste Management,Supplies and Services,Waste Disposal Charges,236,02/08/2023,2308-00261,0.00,836.90,R,Acumen Waste Services Ltd,No
Http://opendatacommunities.org/id/metropolitan-district-council/leeds,Leeds City Council,31/08/2023,Communities Housing and Environment,Waste Management,Supplies and Services,Waste Disposal Charges,236,02/08/2023,2308-00262,0.00,695.20,R,Acumen Waste Services Ltd,No
Http://opendatacommunities.org/id/metropolitan-district-council/leeds,Leeds City Council,31/08/2023,Communities Housing and Environment,Waste Management,Supplies and Services,Waste Disposal Charges,236,02/08/2023,2308-00263,0.00,800.30,R,Acumen Waste Services Ltd,No
Http://opendatacommunities.org/id/metropolitan-district-council/leeds,Leeds City Council,31/08/2023,Communities Housing and Environment,Waste Management,Supplies and Services,Waste Disposal Charges,236,02/08/2023,2308-00264,0.00,726.00,R,Acumen Waste Services Ltd,No
Http://opendatacommunities.org/id/metropolitan-district-council/leeds,Leeds City Council,31/08/2023,Communities Housing and Environment,Waste Management,Supplies and Services,Waste Disposal Charges,236,02/08/2023,2308-00265,0.00,1104.25,R,Acumen Waste Services Ltd,No
Http://opendatacommunities.org/id/metropolitan-district-council/leeds,Leeds City Council,31/08/2023,Communities Housing and Environment,Waste Management,Supplies and Services,Waste Disposal Charges,236,02/08/2023,2308-00266,0.00,850.80,R,Acumen Waste Services Ltd,No
Http://opendatacommunities.org/id/metropolitan-district-council/leeds,Leeds City Council,31/08/2023,Communities Housing and Environment,Waste Management,Supplies and Services,Waste Disposal Charges,236,02/08/2023,2308-00267,0.00,714.90,R,Acumen Waste Services Ltd,No
Http://opendatacommunities.org/id/metropolitan-district-council/leeds,Leeds City Council,31/08/2023,Communities Housing and Environment,Waste Management,Supplies and Services,Recycling & Reuse Charges,234,02/08/2023,2308-00268,0.00,5928.48,R,Acumen Waste Services Ltd,No
Http://opendatacommunities.org/id/metropolitan-district-council/leeds,Leeds City Council,31/08/2023,Communities Housing and Environment,Waste Management,Supplies and Services,Waste Disposal Charges,236,03/08/2023,2308-00269,0.00,866.60,R,Acumen Waste Services Ltd,No
Http://opendatacommunities.org/id/metropolitan-district-council/leeds,Leeds City Council,31/08/2023,Communities Housing and Environment,Waste Management,Supplies and Services,Waste Disposal Charges,236,03/08/2023,2308-00270,0.00,940.55,R,Acumen Waste Services Ltd,No
Http://opendatacommunities.org/id/metropolitan-district-council/leeds,Leeds City Council,31/08/2023,Communities Housing and Environment,Waste Management,Supplies and Services,Waste Disposal Charges,236,03/08/2023,2308-00271,0.00,1137.15,R,Acumen Waste Services Ltd,No
Http://opendatacommunities.org/id/metropolitan-district-council/leeds,Leeds City Council,31/08/2023,Communities Housing and Environment,Waste Management,Supplies and Services,Recycling & Reuse Charges,234,10/08/2023,2308-00272,0.00,5000.40,R,Acumen Waste Services Ltd,No
Http://opendatacommunities.org/id/metropolitan-district-council/leeds,Leeds City Council,31/08/2023,Communities Housing and Environment,Waste Management,Supplies and Services,Recycling & Reuse Charges,234,16/08/2023,2308-00273,0.00,5874.48,R,Acumen Waste Services Ltd,No
Http://opendatacommunities.org/id/metropolitan-district-council/leeds,Leeds City Council,31/08/2023,Communities Housing and Environment,Waste Management,Supplies and Services,Recycling & Reuse Charges,234,23/08/2023,2308-00274,0.00,7500.96,R,Acumen Waste Services Ltd,No
Http://opendatacommunities.org/id/metropolitan-district-council/leeds,Leeds City Council,31/08/2023,Communities Housing and Environment,Waste Management,Supplies and Services,Waste Disposal Charges,236,24/08/2023,2308-00275,0.00,1905.15,R,Acumen Waste Services Ltd,No
Http://opendatacommunities.org/id/metropolitan-district-council/leeds,Leeds City Council,31/08/2023,Communities Housing and Environment,Waste Management,Supplies and Services,Waste Disposal Charges,236,24/08/2023,2308-00276,0.00,898.25,R,Acumen Waste Services Ltd,No
Http://opendatacommunities.org/id/metropolitan-district-council/leeds,Leeds City Council,31/08/2023,Communities Housing and Environment,Waste Management,Supplies and Services,Recycling & Reuse Charges,234,30/08/2023,2308-00277,0.00,5008.32,R,Acumen Waste Services Ltd,No
Http://opendatacommunities.org/id/metropolitan-district-council/leeds,Leeds City Council,31/08/2023,City Development,Highways,Internal Recharges,Legal Disbursements,411,22/08/2023,2308-00278,0.00,47362.50,R,Adam Aldred,No
Http://opendatacommunities.org/id/metropolitan-district-council/leeds,Leeds City Council,31/08/2023,City Development,Highways,Internal Recharges,Legal Disbursements,411,22/08/2023,2308-00279,0.00,11700.00,R,Adam Aldred,No
Http://opendatacommunities.org/id/metropolitan-district-council/leeds,Leeds City Council,31/08/2023,City Development,Highways,Internal Recharges,Legal Disbursements,411,22/08/2023,2308-00280,0.00,22950.00,R,Adam Aldred,No
Http://opendatacommunities.org/id/metropolitan-district-council/leeds,Leeds City Council,31/08/2023,City Development,Highways,Internal Recharges,Legal Disbursements,411,31/08/2023,2308-00281,0.00,9525.00,R,Adam Aldred,No
Http://opendatacommunities.org/id/metropolitan-district-council/leeds,Leeds City Council,31/08/2023,Children and Families,Social Care,Appropriations,Leaving Care Allowances,634,07/08/2023,2308-00282,0.00,50.00,R,REDACTED PERSONAL DATA,No
Http://opendatacommunities.org/id/metropolitan-district-council/leeds,Leeds City Council,31/08/2023,City Development,Libraries Arts & Heritage,Supplies and Services,Other Hired And Contracted Services,265,04/08/2023,2308-00283,0.00,2850.00,R,Add-A-Tone Productions Ltd,No
Http://opendatacommunities.org/id/metropolitan-district-council/leeds,Leeds City Council,31/08/2023,Communities Housing and Environment,Climate Energy & Greenspaces,Internal Recharges,Professional Legal Services Charges,410,17/08/2023,2308-00284,0.00,7318.50,R,Addleshaw Goddard LLP,No
Http://opendatacommunities.org/id/metropolitan-district-council/leeds,Leeds City Council,31/08/2023,Adults and Health,Services For Older People - 65 And Over,Agency Payments,Residential,580,16/08/2023,2308-00285,0.00,2994.29,R,Adel Manor Care Centre,No
Http://opendatacommunities.org/id/metropolitan-district-council/leeds,Leeds City Council,31/08/2023,Adults and Health,Services For Older People Under 65 P/Dis,Agency Payments,Residential,580,16/08/2023,2308-00286,0.00,12321.43,R,Adel Manor Care Centre,No
Http://opendatacommunities.org/id/metropolitan-district-council/leeds,Leeds City Council,31/08/2023,Children and Families,Social Care,Agency Payments,Services Rendered By Voluntary Sector,505,02/08/2023,2308-00287,0.00,3662.88,R,ADEL PRE SCHOOL,No
Http://opendatacommunities.org/id/metropolitan-district-council/leeds,Leeds City Council,31/08/2023,Children and Families,Social Care,Agency Payments,Placement Support,550,04/08/2023,2308-00288,0.00,7803.12,R,ADEL PRE SCHOOL,No
Http://opendatacommunities.org/id/metropolitan-district-council/leeds,Leeds City Council,31/08/2023,Children and Families,Social Care,Agency Payments,Services Rendered By Voluntary Sector,505,04/08/2023,2308-00289,0.00,319.80,R,ADEL PRE SCHOOL,No
Http://opendatacommunities.org/id/metropolitan-district-council/leeds,Leeds City Council,31/08/2023,Children and Families,Social Care,Agency Payments,Services Rendered By Voluntary Sector,505,04/08/2023,2308-00290,0.00,725.40,R,ADEL PRE SCHOOL,No
Http://opendatacommunities.org/id/metropolitan-district-council/leeds,Leeds City Council,31/08/2023,City Development,Recreation,Supplies and Services,Bought In Professional Services,277,25/08/2023,2308-00291,0.00,216.00,R,Adele Battersby,No
Http://opendatacommunities.org/id/metropolitan-district-council/leeds,Leeds City Council,31/08/2023,City Development,Recreation,Supplies and Services,Bought In Professional Services,277,30/08/2023,2308-00292,0.00,216.00,R,Adele Battersby,No
Http://opendatacommunities.org/id/metropolitan-district-council/leeds,Leeds City Council,31/08/2023,City Development,Recreation,Supplies and Services,Bought In Professional Services,277,30/08/2023,2308-00293,0.00,60.00,R,Adele Battersby,No
Http://opendatacommunities.org/id/metropolitan-district-council/leeds,Leeds City Council,31/08/2023,Children and Families,Social Care,Agency Payments,Services Rendered By Other Organisations,511,02/08/2023,2308-00294,0.00,801.25,R,REDACTED PERSONAL DATA,No
Http://opendatacommunities.org/id/metropolitan-district-council/leeds,Leeds City Council,31/08/2023,Children and Families,Social Care,Agency Payments,Services Rendered By Other Organisations,511,04/08/2023,2308-00295,0.00,1343.16,R,REDACTED PERSONAL DATA,No
Http://opendatacommunities.org/id/metropolitan-district-council/leeds,Leeds City Council,31/08/2023,Children and Families,Social Care,Agency Payments,Services Rendered By Other Organisations,511,04/08/2023,2308-00296,0.00,46.80,R,REDACTED PERSONAL DATA,No
Http://opendatacommunities.org/id/metropolitan-district-council/leeds,Leeds City Council,31/08/2023,Children and Families,Social Care,Agency Payments,Services Rendered By Other Organisations,511,04/08/2023,2308-00297,0.00,120.90,R,REDACTED PERSONAL DATA,No
Http://opendatacommunities.org/id/metropolitan-district-council/leeds,Leeds City Council,31/08/2023,Children and Families,Social Care,Internal Recharges,Legal Disbursements,411,04/08/2023,2308-00298,0.00,1750.00,R,Adele Jenkins,No
Http://opendatacommunities.org/id/metropolitan-district-council/leeds,Leeds City Council,31/08/2023,Children and Families,Social Care,Agency Payments,Contact,548,08/08/2023,2308-00299,0.00,32.00,R,REDACTED PERSONAL DATA,No
Http://opendatacommunities.org/id/metropolitan-district-council/leeds,Leeds City Council,31/08/2023,Communities Housing and Environment,Communities,Supplies and Services,Other Hired And Contracted Services,265,04/08/2023,2308-00300,0.00,180.00,R,REDACTED PERSONAL DATA,No
Http://opendatacommunities.org/id/metropolitan-district-council/leeds,Leeds City Council,31/08/2023,City Development,Highways ,Supplies and Services,Office Furniture & Equipment,201,17/07/2023,2308-00301,0.00,46.99,R,Adexa.Co.Uk,Yes
Http://opendatacommunities.org/id/metropolitan-district-council/leeds,Leeds City Council,31/08/2023,City Development,Recreation ,Supplies and Services,Food & Drink,231,19/07/2023,2308-00302,0.00,167.00,R,Adexa.Co.Uk,Yes
Http://opendatacommunities.org/id/metropolitan-district-council/leeds,Leeds City Council,31/08/2023,Strategy and Resources,Technology ,Supplies and Services,Other Hired And Contracted Services,265,30/06/2023,2308-00303,0.00,218.00,R,Adi-Gardiner Ltd,Yes
Http://opendatacommunities.org/id/metropolitan-district-council/leeds,Leeds City Council,31/08/2023,Strategy and Resources,Technology ,Supplies and Services,Other Hired And Contracted Services,265,21/07/2023,2308-00304,0.00,124.00,R,Adi-Gardiner Ltd,Yes
Http://opendatacommunities.org/id/metropolitan-district-council/leeds,Leeds City Council,31/08/2023,Strategy and Resources,Leeds Building Services,Supplies and Services,Operational Materials,205,03/08/2023,2308-00305,0.00,36.53,R,ADI-Gardiner Ltd,No
Http://opendatacommunities.org/id/metropolitan-district-council/leeds,Leeds City Council,31/08/2023,Strategy and Resources,Leeds Building Services,Supplies and Services,Operational Materials,205,03/08/2023,2308-00306,0.00,12.95,R,ADI-Gardiner Ltd,No
Http://opendatacommunities.org/id/metropolitan-district-council/leeds,Leeds City Council,31/08/2023,Strategy and Resources,Leeds Building Services,Supplies and Services,Operational Materials,205,03/08/2023,2308-00307,0.00,67.13,R,ADI-Gardiner Ltd,No
Http://opendatacommunities.org/id/metropolitan-district-council/leeds,Leeds City Council,31/08/2023,Strategy and Resources,Leeds Building Services,Supplies and Services,Operational Materials,205,04/08/2023,2308-00308,0.00,14.02,R,ADI-Gardiner Ltd,No
Http://opendatacommunities.org/id/metropolitan-district-council/leeds,Leeds City Council,31/08/2023,Strategy and Resources,Leeds Building Services,Supplies and Services,Operational Materials,205,04/08/2023,2308-00309,0.00,19.96,R,ADI-Gardiner Ltd,No
Http://opendatacommunities.org/id/metropolitan-district-council/leeds,Leeds City Council,31/08/2023,Strategy and Resources,Leeds Building Services,Supplies and Services,Operational Materials,205,04/08/2023,2308-00310,0.00,65.75,R,ADI-Gardiner Ltd,No
Http://opendatacommunities.org/id/metropolitan-district-council/leeds,Leeds City Council,31/08/2023,Strategy and Resources,Leeds Building Services,Supplies and Services,Operational Materials,205,04/08/2023,2308-00311,0.00,13.20,R,ADI-Gardiner Ltd,No
Http://opendatacommunities.org/id/metropolitan-district-council/leeds,Leeds City Council,31/08/2023,Strategy and Resources,Leeds Building Services,Supplies and Services,Operational Materials,205,04/08/2023,2308-00312,0.00,47.42,R,ADI-Gardiner Ltd,No
Http://opendatacommunities.org/id/metropolitan-district-council/leeds,Leeds City Council,31/08/2023,Strategy and Resources,Leeds Building Services,Supplies and Services,Operational Materials,205,04/08/2023,2308-00313,0.00,35.28,R,ADI-Gardiner Ltd,No
Http://opendatacommunities.org/id/metropolitan-district-council/leeds,Leeds City Council,31/08/2023,Strategy and Resources,Leeds Building Services,Supplies and Services,Operational Materials,205,09/08/2023,2308-00314,0.00,1.64,R,ADI-Gardiner Ltd,No
Http://opendatacommunities.org/id/metropolitan-district-council/leeds,Leeds City Council,31/08/2023,Strategy and Resources,Leeds Building Services,Supplies and Services,Operational Materials,205,09/08/2023,2308-00315,0.00,80.14,R,ADI-Gardiner Ltd,No
Http://opendatacommunities.org/id/metropolitan-district-council/leeds,Leeds City Council,31/08/2023,Strategy and Resources,Leeds Building Services,Supplies and Services,Operational Materials,205,09/08/2023,2308-00316,0.00,47.42,R,ADI-Gardiner Ltd,No
Http://opendatacommunities.org/id/metropolitan-district-council/leeds,Leeds City Council,31/08/2023,Strategy and Resources,Leeds Building Services,Supplies and Services,Operational Materials,205,11/08/2023,2308-00317,0.00,45.98,R,ADI-Gardiner Ltd,No
Http://opendatacommunities.org/id/metropolitan-district-council/leeds,Leeds City Council,31/08/2023,Strategy and Resources,Leeds Building Services,Supplies and Services,Operational Materials,205,11/08/2023,2308-00318,0.00,14.02,R,ADI-Gardiner Ltd,No
Http://opendatacommunities.org/id/metropolitan-district-council/leeds,Leeds City Council,31/08/2023,Strategy and Resources,Leeds Building Services,Supplies and Services,Operational Materials,205,16/08/2023,2308-00319,0.00,30.40,R,ADI-Gardiner Ltd,No
Http://opendatacommunities.org/id/metropolitan-district-council/leeds,Leeds City Council,31/08/2023,Strategy and Resources,Leeds Building Services,Supplies and Services,Operational Materials,205,16/08/2023,2308-00320,0.00,29.78,R,ADI-Gardiner Ltd,No
Http://opendatacommunities.org/id/metropolitan-district-council/leeds,Leeds City Council,31/08/2023,Strategy and Resources,Leeds Building Services,Supplies and Services,Operational Materials,205,18/08/2023,2308-00321,0.00,6.08,R,ADI-Gardiner Ltd,No
Http://opendatacommunities.org/id/metropolitan-district-council/leeds,Leeds City Council,31/08/2023,Strategy and Resources,Leeds Building Services,Supplies and Services,Operational Materials,205,25/08/2023,2308-00322,0.00,23.50,R,ADI-Gardiner Ltd,No
Http://opendatacommunities.org/id/metropolitan-district-council/leeds,Leeds City Council,31/08/2023,Strategy and Resources,Leeds Building Services,Supplies and Services,Operational Materials,205,25/08/2023,2308-00323,0.00,1301.18,R,ADI-Gardiner Ltd,No
Http://opendatacommunities.org/id/metropolitan-district-council/leeds,Leeds City Council,31/08/2023,Communities Housing and Environment,Community Safety,Supplies and Services,Other Hired And Contracted Services,265,31/08/2023,2308-00324,0.00,866.84,R,ADI-Gardiner Ltd,No
Http://opendatacommunities.org/id/metropolitan-district-council/leeds,Leeds City Council,31/08/2023,Strategy and Resources,Leeds Building Services,Supplies and Services,Operational Materials,205,31/08/2023,2308-00325,0.00,825.08,R,ADI-Gardiner Ltd,No
Http://opendatacommunities.org/id/metropolitan-district-council/leeds,Leeds City Council,31/08/2023,City Development,Libraries Arts & Heritage ,Supplies and Services,Publication And Promotion,267,07/07/2023,2308-00326,0.00,43.32,R,Adobe Creative Cloud,Yes
Http://opendatacommunities.org/id/metropolitan-district-council/leeds,Leeds City Council,31/08/2023,City Development,Highways ,Supplies and Services,Computer Software & Equipment,214,14/07/2023,2308-00327,0.00,84.29,R,Adobe Systems Software,Yes
Http://opendatacommunities.org/id/metropolitan-district-council/leeds,Leeds City Council,31/08/2023,Children and Families,Social Care,Agency Payments,Independent Fostering Agencies,509,03/08/2023,2308-00328,0.00,1112.13,R,Adolescent And Childrens Trust,No
Http://opendatacommunities.org/id/metropolitan-district-council/leeds,Leeds City Council,31/08/2023,Children and Families,Social Care,Agency Payments,Independent Fostering Agencies,509,03/08/2023,2308-00329,0.00,3830.67,R,Adolescent And Childrens Trust,No
Http://opendatacommunities.org/id/metropolitan-district-council/leeds,Leeds City Council,31/08/2023,Children and Families,Social Care,Agency Payments,Independent Fostering Agencies,509,03/08/2023,2308-00330,0.00,3450.00,R,Adolescent And Childrens Trust,No
Http://opendatacommunities.org/id/metropolitan-district-council/leeds,Leeds City Council,31/08/2023,Children and Families,Social Care,Agency Payments,Independent Fostering Agencies,509,03/08/2023,2308-00331,0.00,3450.00,R,Adolescent And Childrens Trust,No
Http://opendatacommunities.org/id/metropolitan-district-council/leeds,Leeds City Council,31/08/2023,Children and Families,Social Care,Agency Payments,Independent Fostering Agencies,509,03/08/2023,2308-00332,0.00,3630.00,R,Adolescent And Childrens Trust,No
Http://opendatacommunities.org/id/metropolitan-district-council/leeds,Leeds City Council,31/08/2023,Children and Families,Social Care,Agency Payments,Independent Fostering Agencies,509,03/08/2023,2308-00333,0.00,3630.00,R,Adolescent And Childrens Trust,No
Http://opendatacommunities.org/id/metropolitan-district-council/leeds,Leeds City Council,31/08/2023,Children and Families,Social Care,Agency Payments,Independent Fostering Agencies,509,03/08/2023,2308-00334,0.00,3630.00,R,Adolescent And Childrens Trust,No
Http://opendatacommunities.org/id/metropolitan-district-council/leeds,Leeds City Council,31/08/2023,Children and Families,Social Care,Agency Payments,Independent Fostering Agencies,509,03/08/2023,2308-00335,0.00,3630.00,R,Adolescent And Childrens Trust,No
Http://opendatacommunities.org/id/metropolitan-district-council/leeds,Leeds City Council,31/08/2023,Children and Families,Social Care,Agency Payments,Independent Fostering Agencies,509,03/08/2023,2308-00336,0.00,3797.10,R,Adolescent And Childrens Trust,No
Http://opendatacommunities.org/id/metropolitan-district-council/leeds,Leeds City Council,31/08/2023,Children and Families,Social Care,Agency Payments,Independent Fostering Agencies,509,03/08/2023,2308-00337,0.00,3630.00,R,Adolescent And Childrens Trust,No
Http://opendatacommunities.org/id/metropolitan-district-council/leeds,Leeds City Council,31/08/2023,Children and Families,Social Care,Agency Payments,Independent Fostering Agencies,509,03/08/2023,2308-00338,0.00,3510.00,R,Adolescent And Childrens Trust,No
Http://opendatacommunities.org/id/metropolitan-district-council/leeds,Leeds City Council,31/08/2023,Children and Families,Social Care,Agency Payments,Independent Fostering Agencies,509,10/08/2023,2308-00339,0.00,3797.10,R,Adolescent And Childrens Trust,No
Http://opendatacommunities.org/id/metropolitan-district-council/leeds,Leeds City Council,31/08/2023,Adults and Health,Services For Adults Under 65 Mental/Dis,Agency Payments,Home Care,568,02/08/2023,2308-00340,0.00,681.66,R,Adopt Healthcare Ltd,No
Http://opendatacommunities.org/id/metropolitan-district-council/leeds,Leeds City Council,31/08/2023,Adults and Health,Services For Adults Under 65 Mental/Dis,Agency Payments,Home Care,568,02/08/2023,2308-00341,0.00,201.15,R,Adopt Healthcare Ltd,No
Http://opendatacommunities.org/id/metropolitan-district-council/leeds,Leeds City Council,31/08/2023,Adults and Health,Services For Adults Under 65 Mental/Dis,Agency Payments,Home Care,568,09/08/2023,2308-00342,0.00,681.66,R,Adopt Healthcare Ltd,No
Http://opendatacommunities.org/id/metropolitan-district-council/leeds,Leeds City Council,31/08/2023,Adults and Health,Services For Adults Under 65 Mental/Dis,Agency Payments,Home Care,568,09/08/2023,2308-00343,0.00,201.15,R,Adopt Healthcare Ltd,No
Http://opendatacommunities.org/id/metropolitan-district-council/leeds,Leeds City Council,31/08/2023,Adults and Health,Services For Adults Under 65 Mental/Dis,Agency Payments,Home Care,568,18/08/2023,2308-00344,0.00,201.15,R,Adopt Healthcare Ltd,No
Http://opendatacommunities.org/id/metropolitan-district-council/leeds,Leeds City Council,31/08/2023,Adults and Health,Services For Adults Under 65 Mental/Dis,Agency Payments,Home Care,568,18/08/2023,2308-00345,0.00,201.15,R,Adopt Healthcare Ltd,No
Http://opendatacommunities.org/id/metropolitan-district-council/leeds,Leeds City Council,31/08/2023,Adults and Health,Services For Adults Under 65 Mental/Dis,Agency Payments,HCAIT Community Support,575,23/08/2023,2308-00346,0.00,3531.32,R,Adopt Healthcare Ltd,No
Http://opendatacommunities.org/id/metropolitan-district-council/leeds,Leeds City Council,31/08/2023,Adults and Health,Services For Older People - 65 And Over,Agency Payments,Home Care,568,23/08/2023,2308-00347,0.00,-0.02,R,Adopt Healthcare Ltd,No
Http://opendatacommunities.org/id/metropolitan-district-council/leeds,Leeds City Council,31/08/2023,Adults and Health,Services For Older People Under 65 P/Dis,Agency Payments,Home Care,568,23/08/2023,2308-00348,0.00,1363.35,R,Adopt Healthcare Ltd,No
Http://opendatacommunities.org/id/metropolitan-district-council/leeds,Leeds City Council,31/08/2023,Children and Families,Social Care,Agency Payments,Placement Support,550,04/08/2023,2308-00349,0.00,20.00,R,REDACTED PERSONAL DATA,No
Http://opendatacommunities.org/id/metropolitan-district-council/leeds,Leeds City Council,31/08/2023,Children and Families,Social Care,Agency Payments,Placement Support,550,11/08/2023,2308-00350,0.00,20.00,R,REDACTED PERSONAL DATA,No
Http://opendatacommunities.org/id/metropolitan-district-council/leeds,Leeds City Council,31/08/2023,Children and Families,Social Care,Agency Payments,Placement Support,550,18/08/2023,2308-00351,0.00,20.00,R,REDACTED PERSONAL DATA,No
Http://opendatacommunities.org/id/metropolitan-district-council/leeds,Leeds City Council,31/08/2023,Children and Families,Social Care,Agency Payments,Placement Support,550,25/08/2023,2308-00352,0.00,20.00,R,REDACTED PERSONAL DATA,No
Http://opendatacommunities.org/id/metropolitan-district-council/leeds,Leeds City Council as Accountable Body,31/08/2023,Social Services Pooled Budgets,Jcs For People With Learning Disabilitie,Agency Payments,Residential,580,16/08/2023,2308-00353,0.00,2609.36,R,ADRIAN HOUSE,No
Http://opendatacommunities.org/id/metropolitan-district-council/leeds,Leeds City Council,31/08/2023,Communities Housing and Environment,Car Parking Services,External Income,Penalties Fines & Car Parking Charges,934,02/08/2023,2308-00354,0.00,5.50,R,REDACTED PERSONAL DATA,No
Http://opendatacommunities.org/id/metropolitan-district-council/leeds,Leeds City Council,31/08/2023,Strategy and Resources,Facilities Management ,Premises,Premises Security Services,162,05/07/2023,2308-00355,0.00,325.01,R,Adt Fire And Security,Yes
Http://opendatacommunities.org/id/metropolitan-district-council/leeds,Leeds City Council,31/08/2023,Children and Families,Social Care,Internal Recharges,Legal Disbursements,411,04/08/2023,2308-00356,0.00,314.58,R,ADVANCED CHILD CARE ASSESSMENTS LTD,No
Http://opendatacommunities.org/id/metropolitan-district-council/leeds,Leeds City Council,31/08/2023,Children and Families,Social Care,Internal Recharges,Legal Disbursements,411,18/08/2023,2308-00357,0.00,279.70,R,ADVANCED CHILD CARE ASSESSMENTS LTD,No
Http://opendatacommunities.org/id/metropolitan-district-council/leeds,Leeds City Council,31/08/2023,Adults and Health,Assessment And Care Management,Agency Payments,Home Care,568,16/08/2023,2308-00358,0.00,625.80,R,Advanced Medcare Ltd,No
Http://opendatacommunities.org/id/metropolitan-district-council/leeds,Leeds City Council,31/08/2023,Adults and Health,Services For Adults Under 65 Learn/Dis,Agency Payments,Home Care,568,16/08/2023,2308-00359,0.00,312.90,R,Advanced Medcare Ltd,No
Http://opendatacommunities.org/id/metropolitan-district-council/leeds,Leeds City Council,31/08/2023,Adults and Health,Services For Adults Under 65 Mental/Dis,Agency Payments,Home Care,568,16/08/2023,2308-00360,0.00,592.28,R,Advanced Medcare Ltd,No
Http://opendatacommunities.org/id/metropolitan-district-council/leeds,Leeds City Council,31/08/2023,Adults and Health,Services For Older People - 65 And Over,Agency Payments,Home Care,568,16/08/2023,2308-00361,0.00,51321.37,R,Advanced Medcare Ltd,No
Http://opendatacommunities.org/id/metropolitan-district-council/leeds,Leeds City Council,31/08/2023,Adults and Health,Services For Older People - 65 And Over,Agency Payments,HCAIT Community Support,575,16/08/2023,2308-00362,0.00,1072.80,R,Advanced Medcare Ltd,No
Http://opendatacommunities.org/id/metropolitan-district-council/leeds,Leeds City Council,31/08/2023,Adults and Health,Services For Older People Under 65 P/Dis,Agency Payments,Home Care,568,16/08/2023,2308-00363,0.00,23009.36,R,Advanced Medcare Ltd,No
Http://opendatacommunities.org/id/metropolitan-district-council/leeds,Leeds City Council,31/08/2023,Adults and Health,Services For Older People Under 65 P/Dis,Agency Payments,HCAIT Community Support,575,16/08/2023,2308-00364,0.00,379.95,R,Advanced Medcare Ltd,No
Http://opendatacommunities.org/id/metropolitan-district-council/leeds,Leeds City Council as Accountable Body,31/08/2023,Social Services Pooled Budgets,Jcs For People With Learning Disabilitie,Agency Payments,Home Care,568,16/08/2023,2308-00365,0.00,1251.60,R,Advanced Medcare Ltd,No
Http://opendatacommunities.org/id/metropolitan-district-council/leeds,Leeds City Council as Accountable Body,31/08/2023,Social Services Pooled Budgets,Jcs For People With Learning Disabilitie,Agency Payments,Nursing Home - Physical Disabl,575,16/08/2023,2308-00366,0.00,89.40,R,Advanced Medcare Ltd,No
Http://opendatacommunities.org/id/metropolitan-district-council/leeds,Leeds City Council as Accountable Body,31/08/2023,Social Services Pooled Budgets,Jcs For People With Learning Disabilitie,Agency Payments,Home Care,568,04/08/2023,2308-00367,0.00,6737.64,R,Advantage Healthcare Ltd,No
Http://opendatacommunities.org/id/metropolitan-district-council/leeds,Leeds City Council,31/08/2023,Adults and Health,Services For Older People - 65 And Over,Agency Payments,Payments To Voluntary Organisations,561,03/08/2023,2308-00368,0.00,101941.67,R,Advonet,No
Http://opendatacommunities.org/id/metropolitan-district-council/leeds,Leeds City Council,31/08/2023,Adults and Health,Services For Adults Under 65 Learn/Dis,Agency Payments,Payments To Voluntary Organisations,561,03/08/2023,2308-00369,0.00,16150.46,R,Advonet,No
Http://opendatacommunities.org/id/metropolitan-district-council/leeds,Leeds City Council,31/08/2023,Adults and Health,Services For Older People - 65 And Over,Agency Payments,Payments To Voluntary Organisations,561,15/08/2023,2308-00370,0.00,101941.67,R,Advonet,No
Http://opendatacommunities.org/id/metropolitan-district-council/leeds,Leeds City Council as Accountable Body,31/08/2023,Social Services Pooled Budgets,Jcs For People With Learning Disabilitie,Supplies and Services,Other Hired And Contracted Services,265,15/08/2023,2308-00371,0.00,122.40,R,Advonet,No
Http://opendatacommunities.org/id/metropolitan-district-council/leeds,Leeds City Council,31/08/2023,Adults and Health,Services For Adults Under 65 Mental/Dis,Agency Payments,Home Care,568,15/08/2023,2308-00372,0.00,65.10,R,Advonet,No
Http://opendatacommunities.org/id/metropolitan-district-council/leeds,Leeds City Council as Accountable Body,31/08/2023,Social Services Pooled Budgets,Jcs For People With Learning Disabilitie,Supplies and Services,Other Hired And Contracted Services,265,15/08/2023,2308-00373,0.00,9.90,R,Advonet,No
Http://opendatacommunities.org/id/metropolitan-district-council/leeds,Leeds City Council as Accountable Body,31/08/2023,Social Services Pooled Budgets,Jcs For People With Learning Disabilitie,Supplies and Services,Other Hired And Contracted Services,265,15/08/2023,2308-00374,0.00,20.10,R,Advonet,No
Http://opendatacommunities.org/id/metropolitan-district-council/leeds,Leeds City Council,31/08/2023,Children and Families,Social Care,Internal Recharges,Legal Disbursements,411,23/08/2023,2308-00375,0.00,84.90,R,Advonet,No
Http://opendatacommunities.org/id/metropolitan-district-council/leeds,Leeds City Council,31/08/2023,Children and Families,Social Care,Internal Recharges,Legal Disbursements,411,23/08/2023,2308-00376,0.00,472.50,R,Advonet,No
Http://opendatacommunities.org/id/metropolitan-district-council/leeds,Leeds City Council,31/08/2023,Adults and Health,Services For Adults Under 65 Learn/Dis,Supplies and Services,Contingency,246,23/08/2023,2308-00377,0.00,156.60,R,Advonet,No
Http://opendatacommunities.org/id/metropolitan-district-council/leeds,Leeds City Council,31/08/2023,City Development,Asset Management,Capital,OTHER COSTS,7,10/08/2023,2308-00378,0.00,1371.39,C,Aecom Limited,No
Http://opendatacommunities.org/id/metropolitan-district-council/leeds,Leeds City Council,31/08/2023,City Development,Highways,Capital,OTHER COSTS,7,17/08/2023,2308-00379,0.00,145900.35,C,Aecom Limited,No
Http://opendatacommunities.org/id/metropolitan-district-council/leeds,Leeds City Council,31/08/2023,Communities Housing and Environment,Climate Energy & Greenspaces,Supplies and Services,Consultancy Services,259,23/08/2023,2308-00380,0.00,1626.00,R,Aecom Limited,No
Http://opendatacommunities.org/id/metropolitan-district-council/leeds,Leeds City Council,31/08/2023,City Development,Highways,Capital,OTHER COSTS,7,29/08/2023,2308-00381,0.00,112755.89,C,Aecom Limited,No
Http://opendatacommunities.org/id/metropolitan-district-council/leeds,Leeds City Council,31/08/2023,Adults and Health,Services For Adults Under 65 Mental/Dis,Agency Payments,Home Care,568,02/08/2023,2308-00382,0.00,983.40,R,Aegis Care Solutions Ltd,No
Http://opendatacommunities.org/id/metropolitan-district-council/leeds,Leeds City Council,31/08/2023,Adults and Health,Services For Adults Under 65 Mental/Dis,Agency Payments,Home Care,568,02/08/2023,2308-00383,0.00,536.40,R,Aegis Care Solutions Ltd,No
Http://opendatacommunities.org/id/metropolitan-district-council/leeds,Leeds City Council,31/08/2023,Adults and Health,Services For Adults Under 65 Mental/Dis,Agency Payments,Home Care,568,02/08/2023,2308-00384,0.00,1410.75,R,Aegis Care Solutions Ltd,No
Http://opendatacommunities.org/id/metropolitan-district-council/leeds,Leeds City Council,31/08/2023,Adults and Health,Services For Adults Under 65 Mental/Dis,Agency Payments,Home Care,568,02/08/2023,2308-00385,0.00,5028.60,R,Aegis Care Solutions Ltd,No
Http://opendatacommunities.org/id/metropolitan-district-council/leeds,Leeds City Council,31/08/2023,Adults and Health,Services For Adults Under 65 Mental/Dis,Agency Payments,Home Care,568,02/08/2023,2308-00386,0.00,1215.00,R,Aegis Care Solutions Ltd,No
Http://opendatacommunities.org/id/metropolitan-district-council/leeds,Leeds City Council,31/08/2023,Adults and Health,Services For Adults Under 65 Mental/Dis,Agency Payments,Home Care,568,02/08/2023,2308-00387,0.00,2301.90,R,Aegis Care Solutions Ltd,No
Http://opendatacommunities.org/id/metropolitan-district-council/leeds,Leeds City Council,31/08/2023,Adults and Health,Services For Adults Under 65 Mental/Dis,Agency Payments,Home Care,568,02/08/2023,2308-00388,0.00,1989.31,R,Aegis Care Solutions Ltd,No
Http://opendatacommunities.org/id/metropolitan-district-council/leeds,Leeds City Council,31/08/2023,Adults and Health,Services For Adults Under 65 Mental/Dis,Agency Payments,Home Care,568,02/08/2023,2308-00389,0.00,1480.50,R,Aegis Care Solutions Ltd,No
Http://opendatacommunities.org/id/metropolitan-district-council/leeds,Leeds City Council,31/08/2023,Adults and Health,Services For Adults Under 65 Mental/Dis,Agency Payments,Home Care,568,02/08/2023,2308-00390,0.00,804.60,R,Aegis Care Solutions Ltd,No
Http://opendatacommunities.org/id/metropolitan-district-council/leeds,Leeds City Council,31/08/2023,Adults and Health,Services For Adults Under 65 Mental/Dis,Agency Payments,Home Care,568,02/08/2023,2308-00391,0.00,1341.00,R,Aegis Care Solutions Ltd,No
Http://opendatacommunities.org/id/metropolitan-district-council/leeds,Leeds City Council,31/08/2023,Adults and Health,Services For Adults Under 65 Mental/Dis,Agency Payments,Home Care,568,02/08/2023,2308-00392,0.00,402.30,R,Aegis Care Solutions Ltd,No
Http://opendatacommunities.org/id/metropolitan-district-council/leeds,Leeds City Council,31/08/2023,Adults and Health,Services For Adults Under 65 Mental/Dis,Agency Payments,Home Care,568,02/08/2023,2308-00393,0.00,659.33,R,Aegis Care Solutions Ltd,No
Http://opendatacommunities.org/id/metropolitan-district-council/leeds,Leeds City Council as Accountable Body,31/08/2023,Social Services Pooled Budgets,Jcs For People With Learning Disabilitie,Agency Payments,Home Care,568,02/08/2023,2308-00394,0.00,1452.75,R,Aegis Care Solutions Ltd,No
Http://opendatacommunities.org/id/metropolitan-district-council/leeds,Leeds City Council,31/08/2023,Adults and Health,Services For Adults Under 65 Mental/Dis,Agency Payments,HCAIT Other,577,09/08/2023,2308-00395,0.00,67.05,R,Aegis Care Solutions Ltd,No
Http://opendatacommunities.org/id/metropolitan-district-council/leeds,Leeds City Council,31/08/2023,Adults and Health,Services For Older People - 65 And Over,Agency Payments,Home Care,568,09/08/2023,2308-00396,0.00,40713.48,R,Aegis Care Solutions Ltd,No
Http://opendatacommunities.org/id/metropolitan-district-council/leeds,Leeds City Council,31/08/2023,Adults and Health,Services For Older People - 65 And Over,Agency Payments,HCAIT Community Support,575,09/08/2023,2308-00397,0.00,357.60,R,Aegis Care Solutions Ltd,No
Http://opendatacommunities.org/id/metropolitan-district-council/leeds,Leeds City Council,31/08/2023,Adults and Health,Services For Older People - 65 And Over,Agency Payments,HCAIT Other,577,09/08/2023,2308-00398,0.00,1640.68,R,Aegis Care Solutions Ltd,No
Http://opendatacommunities.org/id/metropolitan-district-council/leeds,Leeds City Council,31/08/2023,Adults and Health,Services For Older People Under 65 P/Dis,Agency Payments,Home Care,568,09/08/2023,2308-00399,0.00,7800.87,R,Aegis Care Solutions Ltd,No
Http://opendatacommunities.org/id/metropolitan-district-council/leeds,Leeds City Council as Accountable Body,31/08/2023,Social Services Pooled Budgets,Jcs For People With Learning Disabilitie,Agency Payments,Home Care,568,09/08/2023,2308-00400,0.00,4425.32,R,Aegis Care Solutions Ltd,No
Http://opendatacommunities.org/id/metropolitan-district-council/leeds,Leeds City Council,31/08/2023,Adults and Health,Services For Older People - 65 And Over,Agency Payments,Home Care,568,30/08/2023,2308-00401,0.00,40696.64,R,Aegis Care Solutions Ltd,No
Http://opendatacommunities.org/id/metropolitan-district-council/leeds,Leeds City Council,31/08/2023,Adults and Health,Services For Older People - 65 And Over,Agency Payments,HCAIT Community Support,575,30/08/2023,2308-00402,0.00,357.60,R,Aegis Care Solutions Ltd,No
Http://opendatacommunities.org/id/metropolitan-district-council/leeds,Leeds City Council,31/08/2023,Adults and Health,Services For Older People - 65 And Over,Agency Payments,HCAIT Other,577,30/08/2023,2308-00403,0.00,2006.86,R,Aegis Care Solutions Ltd,No
Http://opendatacommunities.org/id/metropolitan-district-council/leeds,Leeds City Council,31/08/2023,Adults and Health,Services For Older People Under 65 P/Dis,Agency Payments,Home Care,568,30/08/2023,2308-00404,0.00,7455.16,R,Aegis Care Solutions Ltd,No
Http://opendatacommunities.org/id/metropolitan-district-council/leeds,Leeds City Council as Accountable Body,31/08/2023,Social Services Pooled Budgets,Jcs For People With Learning Disabilitie,Agency Payments,Home Care,568,30/08/2023,2308-00405,0.00,4425.32,R,Aegis Care Solutions Ltd,No
Http://opendatacommunities.org/id/metropolitan-district-council/leeds,Leeds City Council,31/08/2023,City Development,Employment & Skills,Supplies and Services,Conference Meetings,253,09/08/2023,2308-00406,0.00,399.00,R,aelp Association of Employment,No
Http://opendatacommunities.org/id/metropolitan-district-council/leeds,Leeds City Council,31/08/2023,Adults and Health,Assessment And Care Management,Agency Payments,Home Care,568,02/08/2023,2308-00407,0.00,35.48,R,Affinity Trust,No
Http://opendatacommunities.org/id/metropolitan-district-council/leeds,Leeds City Council,31/08/2023,Adults and Health,Assessment And Care Management,Agency Payments,HCAIT Community Support,575,02/08/2023,2308-00408,0.00,38.46,R,Affinity Trust,No
Http://opendatacommunities.org/id/metropolitan-district-council/leeds,Leeds City Council,31/08/2023,Adults and Health,Services For Adults Under 65 Mental/Dis,Agency Payments,HCAIT Community Support,575,02/08/2023,2308-00409,0.00,480.61,R,Affinity Trust,No
Http://opendatacommunities.org/id/metropolitan-district-council/leeds,Leeds City Council,31/08/2023,Adults and Health,Services For Older People - 65 And Over,Agency Payments,HCAIT Community Support,575,02/08/2023,2308-00410,0.00,332.73,R,Affinity Trust,No
Http://opendatacommunities.org/id/metropolitan-district-council/leeds,Leeds City Council,31/08/2023,Adults and Health,Services For Older People Under 65 P/Dis,Agency Payments,Home Care,568,02/08/2023,2308-00411,0.00,212.88,R,Affinity Trust,No
Http://opendatacommunities.org/id/metropolitan-district-council/leeds,Leeds City Council,31/08/2023,Adults and Health,Services For Older People Under 65 P/Dis,Agency Payments,HCAIT Community Support,575,02/08/2023,2308-00412,0.00,637.43,R,Affinity Trust,No
Http://opendatacommunities.org/id/metropolitan-district-council/leeds,Leeds City Council,31/08/2023,Adults and Health,Assessment And Care Management,Agency Payments,HCAIT Community Support,575,02/08/2023,2308-00413,0.00,153.84,R,Affinity Trust,No
Http://opendatacommunities.org/id/metropolitan-district-council/leeds,Leeds City Council,31/08/2023,Adults and Health,Services For Adults Under 65 Mental/Dis,Agency Payments,HCAIT Community Support,575,02/08/2023,2308-00414,0.00,999.96,R,Affinity Trust,No
Http://opendatacommunities.org/id/metropolitan-district-council/leeds,Leeds City Council,31/08/2023,Adults and Health,Services For Older People - 65 And Over,Agency Payments,HCAIT Community Support,575,02/08/2023,2308-00415,0.00,692.28,R,Affinity Trust,No
Http://opendatacommunities.org/id/metropolitan-district-council/leeds,Leeds City Council,31/08/2023,Adults and Health,Services For Older People Under 65 P/Dis,Agency Payments,HCAIT Community Support,575,02/08/2023,2308-00416,0.00,1711.47,R,Affinity Trust,No
Http://opendatacommunities.org/id/metropolitan-district-council/leeds,Leeds City Council,31/08/2023,Adults and Health,Assessment And Care Management,Agency Payments,HCAIT Community Support,575,02/08/2023,2308-00417,0.00,153.84,R,Affinity Trust,No
Http://opendatacommunities.org/id/metropolitan-district-council/leeds,Leeds City Council,31/08/2023,Adults and Health,Services For Adults Under 65 Mental/Dis,Agency Payments,HCAIT Community Support,575,02/08/2023,2308-00418,0.00,999.96,R,Affinity Trust,No
Http://opendatacommunities.org/id/metropolitan-district-council/leeds,Leeds City Council,31/08/2023,Adults and Health,Services For Older People - 65 And Over,Agency Payments,HCAIT Community Support,575,02/08/2023,2308-00419,0.00,692.28,R,Affinity Trust,No
Http://opendatacommunities.org/id/metropolitan-district-council/leeds,Leeds City Council,31/08/2023,Adults and Health,Services For Older People Under 65 P/Dis,Agency Payments,HCAIT Community Support,575,02/08/2023,2308-00420,0.00,1769.16,R,Affinity Trust,No
Http://opendatacommunities.org/id/metropolitan-district-council/leeds,Leeds City Council,31/08/2023,Adults and Health,Assessment And Care Management,Agency Payments,HCAIT Community Support,575,02/08/2023,2308-00421,0.00,76.92,R,Affinity Trust,No
Http://opendatacommunities.org/id/metropolitan-district-council/leeds,Leeds City Council,31/08/2023,Adults and Health,Services For Adults Under 65 Mental/Dis,Agency Payments,HCAIT Community Support,575,02/08/2023,2308-00422,0.00,499.98,R,Affinity Trust,No
Http://opendatacommunities.org/id/metropolitan-district-council/leeds,Leeds City Council,31/08/2023,Adults and Health,Services For Older People - 65 And Over,Agency Payments,HCAIT Community Support,575,02/08/2023,2308-00423,0.00,346.14,R,Affinity Trust,No
Http://opendatacommunities.org/id/metropolitan-district-council/leeds,Leeds City Council,31/08/2023,Adults and Health,Services For Older People Under 65 P/Dis,Agency Payments,HCAIT Community Support,575,02/08/2023,2308-00424,0.00,884.58,R,Affinity Trust,No
Http://opendatacommunities.org/id/metropolitan-district-council/leeds,Leeds City Council,31/08/2023,Adults and Health,Assessment And Care Management,Agency Payments,HCAIT Community Support,575,02/08/2023,2308-00425,0.00,153.84,R,Affinity Trust,No
Http://opendatacommunities.org/id/metropolitan-district-council/leeds,Leeds City Council,31/08/2023,Adults and Health,Services For Adults Under 65 Mental/Dis,Agency Payments,HCAIT Community Support,575,02/08/2023,2308-00426,0.00,999.96,R,Affinity Trust,No
Http://opendatacommunities.org/id/metropolitan-district-council/leeds,Leeds City Council,31/08/2023,Adults and Health,Services For Older People - 65 And Over,Agency Payments,HCAIT Community Support,575,02/08/2023,2308-00427,0.00,692.28,R,Affinity Trust,No
Http://opendatacommunities.org/id/metropolitan-district-council/leeds,Leeds City Council,31/08/2023,Adults and Health,Services For Older People Under 65 P/Dis,Agency Payments,HCAIT Community Support,575,02/08/2023,2308-00428,0.00,1769.16,R,Affinity Trust,No
Http://opendatacommunities.org/id/metropolitan-district-council/leeds,Leeds City Council as Accountable Body,31/08/2023,Social Services Pooled Budgets,Jcs For People With Learning Disabilitie,Agency Payments,Day Centre,564,04/08/2023,2308-00429,0.00,14484.71,R,Affinity Trust,No
Http://opendatacommunities.org/id/metropolitan-district-council/leeds,Leeds City Council,31/08/2023,Adults and Health,Services For Adults Under 65 Mental/Dis,Agency Payments,Home Care,568,04/08/2023,2308-00430,0.00,141.92,R,Affinity Trust,No
Http://opendatacommunities.org/id/metropolitan-district-council/leeds,Leeds City Council,31/08/2023,Adults and Health,Services For Adults Under 65 Mental/Dis,Agency Payments,Home Care,568,04/08/2023,2308-00431,0.00,141.92,R,Affinity Trust,No
Http://opendatacommunities.org/id/metropolitan-district-council/leeds,Leeds City Council,31/08/2023,Adults and Health,Services For Adults Under 65 Mental/Dis,Agency Payments,Home Care,568,04/08/2023,2308-00432,0.00,141.92,R,Affinity Trust,No
Http://opendatacommunities.org/id/metropolitan-district-council/leeds,Leeds City Council,31/08/2023,Adults and Health,Services For Adults Under 65 Mental/Dis,Agency Payments,Home Care,568,04/08/2023,2308-00433,0.00,153.84,R,Affinity Trust,No
Http://opendatacommunities.org/id/metropolitan-district-council/leeds,Leeds City Council,31/08/2023,Adults and Health,Services For Adults Under 65 Mental/Dis,Agency Payments,Home Care,568,04/08/2023,2308-00434,0.00,137.42,R,Affinity Trust,No
Http://opendatacommunities.org/id/metropolitan-district-council/leeds,Leeds City Council,31/08/2023,Adults and Health,Services For Adults Under 65 Mental/Dis,Agency Payments,Home Care,568,04/08/2023,2308-00435,0.00,354.80,R,Affinity Trust,No
Http://opendatacommunities.org/id/metropolitan-district-council/leeds,Leeds City Council,31/08/2023,Adults and Health,Services For Adults Under 65 Mental/Dis,Agency Payments,Home Care,568,04/08/2023,2308-00436,0.00,177.40,R,Affinity Trust,No
Http://opendatacommunities.org/id/metropolitan-district-council/leeds,Leeds City Council,31/08/2023,Adults and Health,Services For Adults Under 65 Mental/Dis,Agency Payments,Home Care,568,04/08/2023,2308-00437,0.00,177.40,R,Affinity Trust,No
Http://opendatacommunities.org/id/metropolitan-district-council/leeds,Leeds City Council as Accountable Body,31/08/2023,Social Services Pooled Budgets,Jcs For People With Learning Disabilitie,Agency Payments,Day Centre,564,08/08/2023,2308-00438,0.00,14108.59,R,Affinity Trust,No
Http://opendatacommunities.org/id/metropolitan-district-council/leeds,Leeds City Council as Accountable Body,31/08/2023,Social Services Pooled Budgets,Jcs For People With Learning Disabilitie,Agency Payments,Day Centre,564,08/08/2023,2308-00439,0.00,15509.00,R,Affinity Trust,No
Http://opendatacommunities.org/id/metropolitan-district-council/leeds,Leeds City Council as Accountable Body,31/08/2023,Social Services Pooled Budgets,Jcs For People With Learning Disabilitie,Agency Payments,Day Centre,564,08/08/2023,2308-00440,0.00,31770.78,R,Affinity Trust,No
Http://opendatacommunities.org/id/metropolitan-district-council/leeds,Leeds City Council as Accountable Body,31/08/2023,Social Services Pooled Budgets,Jcs For People With Learning Disabilitie,Agency Payments,Day Centre,564,08/08/2023,2308-00441,0.00,33332.27,R,Affinity Trust,No
Http://opendatacommunities.org/id/metropolitan-district-council/leeds,Leeds City Council as Accountable Body,31/08/2023,Social Services Pooled Budgets,Jcs For People With Learning Disabilitie,Agency Payments,Day Centre,564,08/08/2023,2308-00442,0.00,33217.55,R,Affinity Trust,No
Http://opendatacommunities.org/id/metropolitan-district-council/leeds,Leeds City Council as Accountable Body,31/08/2023,Social Services Pooled Budgets,Jcs For People With Learning Disabilitie,Agency Payments,Day Centre,564,08/08/2023,2308-00443,0.00,14417.69,R,Affinity Trust,No
Http://opendatacommunities.org/id/metropolitan-district-council/leeds,Leeds City Council,31/08/2023,Adults and Health,Services For Adults Under 65 Learn/Dis,Agency Payments,Home Care,568,10/08/2023,2308-00444,0.00,362.25,R,Affinity Trust,No
Http://opendatacommunities.org/id/metropolitan-district-council/leeds,Leeds City Council,31/08/2023,Adults and Health,Services For Adults Under 65 Learn/Dis,Agency Payments,Home Care,568,10/08/2023,2308-00445,0.00,384.60,R,Affinity Trust,No
Http://opendatacommunities.org/id/metropolitan-district-council/leeds,Leeds City Council,31/08/2023,Adults and Health,Services For Adults Under 65 Learn/Dis,Agency Payments,Home Care,568,10/08/2023,2308-00446,0.00,567.29,R,Affinity Trust,No
Http://opendatacommunities.org/id/metropolitan-district-council/leeds,Leeds City Council,31/08/2023,Adults and Health,Assessment And Care Management,Agency Payments,Home Care,568,10/08/2023,2308-00447,0.00,354.80,R,Affinity Trust,No
Http://opendatacommunities.org/id/metropolitan-district-council/leeds,Leeds City Council as Accountable Body,31/08/2023,Social Services Pooled Budgets,Jcs For People With Learning Disabilitie,Agency Payments,Day Centre,564,17/08/2023,2308-00448,0.00,10128.78,R,Affinity Trust,No
Http://opendatacommunities.org/id/metropolitan-district-council/leeds,Leeds City Council as Accountable Body,31/08/2023,Social Services Pooled Budgets,Jcs For People With Learning Disabilitie,Agency Payments,Day Centre,564,17/08/2023,2308-00449,0.00,5631.44,R,Affinity Trust,No
Http://opendatacommunities.org/id/metropolitan-district-council/leeds,Leeds City Council,31/08/2023,Adults and Health,Services For Adults Under 65 Mental/Dis,Agency Payments,Home Care,568,17/08/2023,2308-00450,0.00,230.76,R,Affinity Trust,No
Http://opendatacommunities.org/id/metropolitan-district-council/leeds,Leeds City Council as Accountable Body,31/08/2023,Social Services Pooled Budgets,Jcs For People With Learning Disabilitie,Agency Payments,Sheltered Accommodation,569,16/08/2023,2308-00451,0.00,153766.06,R,Affinity Trust North Divisional Office,No
Http://opendatacommunities.org/id/metropolitan-district-council/leeds,Leeds City Council,31/08/2023,Communities Housing and Environment,Communities,Supplies and Services,Other Hired And Contracted Services,265,01/08/2023,2308-00452,0.00,445.00,R,Age Uk Leeds,No
Http://opendatacommunities.org/id/metropolitan-district-council/leeds,Leeds City Council,31/08/2023,Communities Housing and Environment,Customer Access,Supplies and Services,Bought In Professional Services,277,09/08/2023,2308-00453,0.00,13.50,R,Agnieszka J Collier,No
Http://opendatacommunities.org/id/metropolitan-district-council/leeds,Leeds City Council,31/08/2023,Communities Housing and Environment,Customer Access,Supplies and Services,Bought In Professional Services,277,16/08/2023,2308-00454,0.00,18.00,R,Agnieszka J Collier,No
Http://opendatacommunities.org/id/metropolitan-district-council/leeds,Leeds City Council,31/08/2023,Communities Housing and Environment,Customer Access,Supplies and Services,Bought In Professional Services,277,23/08/2023,2308-00455,0.00,66.10,R,Agnieszka J Collier,No
Http://opendatacommunities.org/id/metropolitan-district-council/leeds,Leeds City Council,31/08/2023,Communities Housing and Environment,Customer Access,Supplies and Services,Bought In Professional Services,277,31/08/2023,2308-00456,0.00,137.20,R,Agnieszka J Collier,No
Http://opendatacommunities.org/id/metropolitan-district-council/leeds,Leeds City Council,31/08/2023,Communities Housing and Environment,Customer Access,Supplies and Services,Bought In Professional Services,277,09/08/2023,2308-00457,0.00,18.00,R,REDACTED PERSONAL DATA,No
Http://opendatacommunities.org/id/metropolitan-district-council/leeds,Leeds City Council,31/08/2023,Communities Housing and Environment,Customer Access,Supplies and Services,Bought In Professional Services,277,09/08/2023,2308-00458,0.00,18.00,R,REDACTED PERSONAL DATA,No
Http://opendatacommunities.org/id/metropolitan-district-council/leeds,Leeds City Council,31/08/2023,Communities Housing and Environment,Customer Access,Supplies and Services,Bought In Professional Services,277,09/08/2023,2308-00459,0.00,9.00,R,REDACTED PERSONAL DATA,No
Http://opendatacommunities.org/id/metropolitan-district-council/leeds,Leeds City Council,31/08/2023,Communities Housing and Environment,Customer Access,Supplies and Services,Bought In Professional Services,277,09/08/2023,2308-00460,0.00,18.00,R,REDACTED PERSONAL DATA,No
Http://opendatacommunities.org/id/metropolitan-district-council/leeds,Leeds City Council,31/08/2023,Communities Housing and Environment,Customer Access,Supplies and Services,Bought In Professional Services,277,09/08/2023,2308-00461,0.00,18.00,R,REDACTED PERSONAL DATA,No
Http://opendatacommunities.org/id/metropolitan-district-council/leeds,Leeds City Council,31/08/2023,Communities Housing and Environment,Customer Access,Supplies and Services,Bought In Professional Services,277,09/08/2023,2308-00462,0.00,18.00,R,REDACTED PERSONAL DATA,No
Http://opendatacommunities.org/id/metropolitan-district-council/leeds,Leeds City Council,31/08/2023,Communities Housing and Environment,Customer Access,Supplies and Services,Bought In Professional Services,277,16/08/2023,2308-00463,0.00,36.00,R,REDACTED PERSONAL DATA,No
Http://opendatacommunities.org/id/metropolitan-district-council/leeds,Leeds City Council,31/08/2023,Communities Housing and Environment,Customer Access,Supplies and Services,Bought In Professional Services,277,16/08/2023,2308-00464,0.00,27.00,R,REDACTED PERSONAL DATA,No
Http://opendatacommunities.org/id/metropolitan-district-council/leeds,Leeds City Council,31/08/2023,Communities Housing and Environment,Customer Access,Supplies and Services,Bought In Professional Services,277,16/08/2023,2308-00465,0.00,18.00,R,REDACTED PERSONAL DATA,No
Http://opendatacommunities.org/id/metropolitan-district-council/leeds,Leeds City Council,31/08/2023,Communities Housing and Environment,Customer Access,Supplies and Services,Bought In Professional Services,277,31/08/2023,2308-00466,0.00,27.00,R,Ahamat Hassan,No
Http://opendatacommunities.org/id/metropolitan-district-council/leeds,Leeds City Council,31/08/2023,Children and Families,Social Care,Appropriations,Leaving Care Grants,635,07/08/2023,2308-00467,0.00,186.00,R,REDACTED PERSONAL DATA,No
Http://opendatacommunities.org/id/metropolitan-district-council/leeds,Leeds City Council,31/08/2023,Children and Families,Social Care,Agency Payments,Placement Support,550,07/08/2023,2308-00468,0.00,24.00,R,REDACTED PERSONAL DATA,No
Http://opendatacommunities.org/id/metropolitan-district-council/leeds,Leeds City Council,31/08/2023,Communities Housing and Environment,Customer Access,Supplies and Services,Bought In Professional Services,277,16/08/2023,2308-00469,0.00,13.50,R,Ahmed Moustafa Moustafa Mousa,No
Http://opendatacommunities.org/id/metropolitan-district-council/leeds,Leeds City Council,31/08/2023,Communities Housing and Environment,Customer Access,Supplies and Services,Bought In Professional Services,277,31/08/2023,2308-00470,0.00,13.50,R,Ahmed Moustafa Moustafa Mousa,No
Http://opendatacommunities.org/id/metropolitan-district-council/leeds,Leeds City Council,31/08/2023,Communities Housing and Environment,Customer Access,Supplies and Services,Bought In Professional Services,277,16/08/2023,2308-00471,0.00,19.00,R,Ahmed T. Al-Hamdi,No
Http://opendatacommunities.org/id/metropolitan-district-council/leeds,Leeds City Council,31/08/2023,Communities Housing and Environment,Customer Access,Supplies and Services,Bought In Professional Services,277,31/08/2023,2308-00472,0.00,42.20,R,Ahmed T. Al-Hamdi,No
Http://opendatacommunities.org/id/metropolitan-district-council/leeds,Leeds City Council,31/08/2023,Children and Families,Social Care ,Appropriations,Leaving Care Allowances,634,05/07/2023,2308-00473,0.00,28.50,R,Ahs Store Ltd,Yes
Http://opendatacommunities.org/id/metropolitan-district-council/leeds,Leeds City Council,31/08/2023,Children and Families,Social Care,Agency Payments,General External Residential Placements,507,16/08/2023,2308-00474,0.00,33800.00,R,AHT Care Ltd,No
Http://opendatacommunities.org/id/metropolitan-district-council/leeds,Leeds City Council,31/08/2023,Children and Families,Social Care,Agency Payments,General External Residential Placements,507,30/08/2023,2308-00475,0.00,33800.00,R,AHT Care Ltd,No
Http://opendatacommunities.org/id/metropolitan-district-council/leeds,Leeds City Council,31/08/2023,Communities Housing and Environment,Customer Access,Supplies and Services,Bought In Professional Services,277,31/08/2023,2308-00476,0.00,22.50,R,Aida Moustafa,No
Http://opendatacommunities.org/id/metropolitan-district-council/leeds,Leeds City Council as Accountable Body,31/08/2023,Social Services Pooled Budgets,Leeds Community Equip Store Pooled Budgt,Supplies and Services,Other Equipment,203,11/08/2023,2308-00477,0.00,3375.00,R,AIDAPT BATHROOMS LTD,No
Http://opendatacommunities.org/id/metropolitan-district-council/leeds,Leeds City Council as Accountable Body,31/08/2023,Social Services Pooled Budgets,Leeds Community Equip Store Pooled Budgt,Supplies and Services,Other Equipment,203,11/08/2023,2308-00478,0.00,4693.00,R,AIDAPT BATHROOMS LTD,No
Http://opendatacommunities.org/id/metropolitan-district-council/leeds,Leeds City Council as Accountable Body,31/08/2023,Social Services Pooled Budgets,Leeds Community Equip Store Pooled Budgt,Supplies and Services,Other Equipment,203,18/08/2023,2308-00479,0.00,231.50,R,AIDAPT BATHROOMS LTD,No
Http://opendatacommunities.org/id/metropolitan-district-council/leeds,Leeds City Council as Accountable Body,31/08/2023,Social Services Pooled Budgets,Leeds Community Equip Store Pooled Budgt,Supplies and Services,Other Equipment,203,18/08/2023,2308-00480,0.00,715.00,R,AIDAPT BATHROOMS LTD,No
Http://opendatacommunities.org/id/metropolitan-district-council/leeds,Leeds City Council,31/08/2023,Children and Families,Social Care,Appropriations,Leaving Care Allowances,634,04/08/2023,2308-00481,0.00,50.00,R,REDACTED PERSONAL DATA,No
Http://opendatacommunities.org/id/metropolitan-district-council/leeds,Leeds City Council,31/08/2023,Children and Families,Social Care,Employees,Training & Development,70,18/08/2023,2308-00482,0.00,2369.80,R,AIM PROJECT,No
Http://opendatacommunities.org/id/metropolitan-district-council/leeds,Leeds City Council,31/08/2023,Strategy and Resources,Leeds Building Services,Supplies and Services,Operational Materials,205,11/08/2023,2308-00483,0.00,77.20,R,Air Conditioning Accessories,No
Http://opendatacommunities.org/id/metropolitan-district-council/leeds,Leeds City Council,31/08/2023,Strategy and Resources,Leeds Building Services,Supplies and Services,Operational Materials,205,11/08/2023,2308-00484,0.00,95.00,R,Air Conditioning Accessories,No
Http://opendatacommunities.org/id/metropolitan-district-council/leeds,Leeds City Council,31/08/2023,Strategy and Resources,Leeds Building Services,Supplies and Services,Operational Materials,205,16/08/2023,2308-00485,0.00,116.78,R,Air Conditioning Accessories,No
Http://opendatacommunities.org/id/metropolitan-district-council/leeds,Leeds City Council,31/08/2023,Strategy and Resources,Leeds Building Services,Supplies and Services,Operational Materials,205,18/08/2023,2308-00486,0.00,148.81,R,Air Conditioning Accessories,No
Http://opendatacommunities.org/id/metropolitan-district-council/leeds,Leeds City Council,31/08/2023,Strategy and Resources,Leeds Building Services,Supplies and Services,Operational Materials,205,23/08/2023,2308-00487,0.00,90.05,R,Air Conditioning Accessories,No
Http://opendatacommunities.org/id/metropolitan-district-council/leeds,Leeds City Council,31/08/2023,Strategy and Resources,Leeds Building Services,Supplies and Services,Operational Materials,205,23/08/2023,2308-00488,0.00,106.59,R,Air Conditioning Accessories,No
Http://opendatacommunities.org/id/metropolitan-district-council/leeds,Leeds City Council,31/08/2023,Communities Housing and Environment,Environmental Health,Supplies and Services,Other Hired And Contracted Services,265,11/08/2023,2308-00489,0.00,11.75,R,AIR LIQUIDE UK,No
Http://opendatacommunities.org/id/metropolitan-district-council/leeds,Leeds City Council,31/08/2023,Communities Housing and Environment,Environmental Health,Supplies and Services,Other Hired And Contracted Services,265,11/08/2023,2308-00490,0.00,94.00,R,AIR LIQUIDE UK,No
Http://opendatacommunities.org/id/metropolitan-district-council/leeds,Leeds City Council,31/08/2023,Communities Housing and Environment,Environmental Health,Supplies and Services,Other Hired And Contracted Services,265,11/08/2023,2308-00491,0.00,11.75,R,AIR LIQUIDE UK,No
Http://opendatacommunities.org/id/metropolitan-district-council/leeds,Leeds City Council,31/08/2023,Communities Housing and Environment,Environmental Health,Supplies and Services,Other Hired And Contracted Services,265,11/08/2023,2308-00492,0.00,11.75,R,AIR LIQUIDE UK,No
Http://opendatacommunities.org/id/metropolitan-district-council/leeds,Leeds City Council,31/08/2023,Communities Housing and Environment,Environmental Health,Supplies and Services,Other Hired And Contracted Services,265,11/08/2023,2308-00493,0.00,11.75,R,AIR LIQUIDE UK,No
Http://opendatacommunities.org/id/metropolitan-district-council/leeds,Leeds City Council,31/08/2023,Communities Housing and Environment,Environmental Health,Supplies and Services,Other Hired And Contracted Services,265,11/08/2023,2308-00494,0.00,94.00,R,AIR LIQUIDE UK,No
Http://opendatacommunities.org/id/metropolitan-district-council/leeds,Leeds City Council,31/08/2023,Communities Housing and Environment,Environmental Health,Supplies and Services,Other Hired And Contracted Services,265,18/08/2023,2308-00495,0.00,11.75,R,AIR LIQUIDE UK,No
Http://opendatacommunities.org/id/metropolitan-district-council/leeds,Leeds City Council,31/08/2023,Communities Housing and Environment,Environmental Health,Supplies and Services,Other Hired And Contracted Services,265,18/08/2023,2308-00496,0.00,11.75,R,AIR LIQUIDE UK,No
Http://opendatacommunities.org/id/metropolitan-district-council/leeds,Leeds City Council,31/08/2023,Communities Housing and Environment,Environmental Health,Supplies and Services,Other Hired And Contracted Services,265,18/08/2023,2308-00497,0.00,11.75,R,AIR LIQUIDE UK,No
Http://opendatacommunities.org/id/metropolitan-district-council/leeds,Leeds City Council,31/08/2023,Communities Housing and Environment,Environmental Health,Supplies and Services,Other Hired And Contracted Services,265,18/08/2023,2308-00498,0.00,94.00,R,AIR LIQUIDE UK,No
Http://opendatacommunities.org/id/metropolitan-district-council/leeds,Leeds City Council,31/08/2023,Communities Housing and Environment,Environmental Health,Supplies and Services,Other Hired And Contracted Services,265,18/08/2023,2308-00499,0.00,11.75,R,AIR LIQUIDE UK,No
Http://opendatacommunities.org/id/metropolitan-district-council/leeds,Leeds City Council,31/08/2023,Communities Housing and Environment,Environmental Health,Supplies and Services,Other Hired And Contracted Services,265,18/08/2023,2308-00500,0.00,11.75,R,AIR LIQUIDE UK,No
Http://opendatacommunities.org/id/metropolitan-district-council/leeds,Leeds City Council,31/08/2023,Children and Families,Social Care ,Transport,Public Transport Expenses,310,15/07/2023,2308-00501,0.00,3116.54,R,Airbnb * Hmhtfdyazd,Yes
Http://opendatacommunities.org/id/metropolitan-district-council/leeds,Leeds City Council,31/08/2023,Children and Families,Social Care ,Agency Payments,Section 17,551,21/07/2023,2308-00502,0.00,1190.00,R,Airbnb * Hmprfbbry8,Yes
Http://opendatacommunities.org/id/metropolitan-district-council/leeds,Leeds City Council,31/08/2023,City Development,Libraries Arts & Heritage ,Transport,Public Transport Expenses,310,24/07/2023,2308-00503,0.00,664.90,R,Airbnb * Hmrt3wa244,Yes
Http://opendatacommunities.org/id/metropolitan-district-council/leeds,Leeds City Council,31/08/2023,City Development,Libraries Arts & Heritage ,Transport,Public Transport Expenses,310,24/07/2023,2308-00504,0.00,-664.90,R,Airbnb * Hmrt3wa244,Yes
Http://opendatacommunities.org/id/metropolitan-district-council/leeds,Leeds City Council,31/08/2023,Children and Families,Social Care ,Agency Payments,Section 17,551,03/07/2023,2308-00505,0.00,80.00,R,Airbnb * Hmyj55ffrp,Yes
Http://opendatacommunities.org/id/metropolitan-district-council/leeds,Leeds City Council,31/08/2023,Children and Families,Social Care ,Agency Payments,Section 17,551,03/07/2023,2308-00506,0.00,135.00,R,Airbnb * Hmyj55ffrp,Yes
Http://opendatacommunities.org/id/metropolitan-district-council/leeds,Leeds City Council,31/08/2023,Communities Housing and Environment,Customer Access ,Supplies and Services,Operational Materials,205,11/07/2023,2308-00507,0.00,-49.00,R,Aircon Direct,Yes
Http://opendatacommunities.org/id/metropolitan-district-council/leeds,Leeds City Council,31/08/2023,Communities Housing and Environment,Customer Access ,Supplies and Services,Operational Materials,205,12/07/2023,2308-00508,0.00,-59.00,R,Aircon Direct,Yes
Http://opendatacommunities.org/id/metropolitan-district-council/leeds,Leeds City Council,31/08/2023,City Development,Economic Development ,Supplies and Services,Other Hired And Contracted Services,265,27/07/2023,2308-00509,0.00,3360.00,R,Airdna Llc,Yes
Http://opendatacommunities.org/id/metropolitan-district-council/leeds,Leeds City Council,31/08/2023,City Development,Libraries Arts & Heritage,Supplies and Services,Non-Recurring Grants,227,14/08/2023,2308-00510,0.00,8280.00,R,Aire Place Studios CIC,No
Http://opendatacommunities.org/id/metropolitan-district-council/leeds,Leeds City Council,31/08/2023,Adults and Health,Public Health,Agency Payments,Public Health Commissioned Services,526,09/08/2023,2308-00511,0.00,3772.88,R,Aire Valley Surgery,No
Http://opendatacommunities.org/id/metropolitan-district-council/leeds,Leeds City Council,31/08/2023,Communities Housing and Environment,Climate Energy & Greenspaces,Supplies and Services,Other Hired And Contracted Services,265,09/08/2023,2308-00512,0.00,615.00,R,Aire Valley Tree Services Ltd,No
Http://opendatacommunities.org/id/metropolitan-district-council/leeds,Leeds City Council,31/08/2023,Communities Housing and Environment,Climate Energy & Greenspaces,Supplies and Services,Other Hired And Contracted Services,265,16/08/2023,2308-00513,0.00,1536.00,R,Aire Valley Tree Services Ltd,No
Http://opendatacommunities.org/id/metropolitan-district-council/leeds,Leeds City Council,31/08/2023,Communities Housing and Environment,Climate Energy & Greenspaces,Supplies and Services,Other Hired And Contracted Services,265,24/08/2023,2308-00514,0.00,274.00,R,Aire Valley Tree Services Ltd,No
Http://opendatacommunities.org/id/metropolitan-district-council/leeds,Leeds City Council,31/08/2023,Communities Housing and Environment,Climate Energy & Greenspaces,Supplies and Services,Other Hired And Contracted Services,265,25/08/2023,2308-00515,0.00,986.00,R,Aire Valley Tree Services Ltd,No
Http://opendatacommunities.org/id/metropolitan-district-council/leeds,Leeds City Council,31/08/2023,Adults and Health,Services For Older People - 65 And Over,Agency Payments,Residential Care Dementia,571,16/08/2023,2308-00516,0.00,61929.32,R,Aire View Residential Home,No
Http://opendatacommunities.org/id/metropolitan-district-council/leeds,Leeds City Council,31/08/2023,Adults and Health,Services For Older People - 65 And Over,Agency Payments,Residential,580,16/08/2023,2308-00517,0.00,16927.86,R,Aire View Residential Home,No
Http://opendatacommunities.org/id/metropolitan-district-council/leeds,Leeds City Council,31/08/2023,Adults and Health,Public Health,Agency Payments,Public Health Commissioned Services,526,09/08/2023,2308-00518,0.00,1506.40,R,Aireborough Family Practice,No
Http://opendatacommunities.org/id/metropolitan-district-council/leeds,Leeds City Council,31/08/2023,City Development,Recreation ,Supplies and Services,Subsistence,256,17/07/2023,2308-00519,0.00,5.75,R,Aireborough Leisure Centr,Yes
Http://opendatacommunities.org/id/metropolitan-district-council/leeds,Leeds City Council,31/08/2023,Children and Families,Social Care,Agency Payments,Placement Support,550,08/08/2023,2308-00520,0.00,275.83,R,Aireborough Skip Hire Ltd,No
Http://opendatacommunities.org/id/metropolitan-district-council/leeds,Leeds City Council,31/08/2023,Children and Families,Social Care,Supplies and Services,Operational Furniture And Equipment,203,10/08/2023,2308-00521,0.00,2762.00,R,AIREDALE CATERING EQUIPMENT LTD,No
Http://opendatacommunities.org/id/metropolitan-district-council/leeds,Leeds City Council,31/08/2023,Adults and Health,Services For Older People - 65 And Over,Agency Payments,Residential Care Dementia,571,16/08/2023,2308-00522,0.00,26939.81,R,Airedale Residential Home,No
Http://opendatacommunities.org/id/metropolitan-district-council/leeds,Leeds City Council,31/08/2023,Adults and Health,Services For Older People - 65 And Over,Agency Payments,Residential,580,16/08/2023,2308-00523,0.00,20818.43,R,Airedale Residential Home,No
Http://opendatacommunities.org/id/metropolitan-district-council/leeds,Leeds City Council,31/08/2023,Adults and Health,Services For Older People Under 65 P/Dis,Agency Payments,Residential Care Dementia,571,16/08/2023,2308-00524,0.00,2063.20,R,Airedale Residential Home,No
Http://opendatacommunities.org/id/metropolitan-district-council/leeds,Leeds City Council,31/08/2023,Children and Families,Social Care ,Appropriations,Leaving Care Allowances,634,04/07/2023,2308-00525,0.00,11.05,R,Airpay 47334367-Amber Car,Yes
Http://opendatacommunities.org/id/metropolitan-district-council/leeds,Leeds City Council,31/08/2023,Children and Families,Social Care ,Agency Payments,Placement Support,550,06/07/2023,2308-00526,0.00,22.65,R,Airpay 47360575-Amber Car,Yes
Http://opendatacommunities.org/id/metropolitan-district-council/leeds,Leeds City Council,31/08/2023,Children and Families,Social Care ,Agency Payments,Placement Support,550,06/07/2023,2308-00527,0.00,23.55,R,Airpay 47364674-Amber Car,Yes
Http://opendatacommunities.org/id/metropolitan-district-council/leeds,Leeds City Council,31/08/2023,Children and Families,Social Care ,Agency Payments,Section 17,551,08/07/2023,2308-00528,0.00,11.75,R,Airpay 47394601-Amber Car,Yes
Http://opendatacommunities.org/id/metropolitan-district-council/leeds,Leeds City Council,31/08/2023,Children and Families,Social Care ,Transport,Public Transport Expenses,310,12/07/2023,2308-00529,0.00,12.87,R,Airpay 47427233-Amber Car,Yes
Http://opendatacommunities.org/id/metropolitan-district-council/leeds,Leeds City Council,31/08/2023,Children and Families,Social Care ,Transport,Public Transport Expenses,310,12/07/2023,2308-00530,0.00,5.96,R,Airpay 47427245-Amber Car,Yes
Http://opendatacommunities.org/id/metropolitan-district-council/leeds,Leeds City Council,31/08/2023,Children and Families,Social Care ,Transport,Public Transport Expenses,310,11/07/2023,2308-00531,0.00,12.71,R,Airpay 47433323-Amber Car,Yes
Http://opendatacommunities.org/id/metropolitan-district-council/leeds,Leeds City Council,31/08/2023,Children and Families,Social Care ,Transport,Public Transport Expenses,310,12/07/2023,2308-00532,0.00,12.62,R,Airpay 47438764-Amber Car,Yes
Http://opendatacommunities.org/id/metropolitan-district-council/leeds,Leeds City Council,31/08/2023,Children and Families,Social Care ,Transport,Public Transport Expenses,310,12/07/2023,2308-00533,0.00,15.87,R,Airpay 47441710-Amber Car,Yes
Http://opendatacommunities.org/id/metropolitan-district-council/leeds,Leeds City Council,31/08/2023,Children and Families,Social Care ,Transport,Public Transport Expenses,310,12/07/2023,2308-00534,0.00,5.79,R,Airpay 47445186-Amber Car,Yes
Http://opendatacommunities.org/id/metropolitan-district-council/leeds,Leeds City Council,31/08/2023,Children and Families,Social Care ,Agency Payments,Placement Support,550,13/07/2023,2308-00535,0.00,8.45,R,Airpay 47448836-Amber Car,Yes
Http://opendatacommunities.org/id/metropolitan-district-council/leeds,Leeds City Council,31/08/2023,Children and Families,Social Care ,Transport,Public Transport Expenses,310,14/07/2023,2308-00536,0.00,23.25,R,Airpay 47460820-Amber Car,Yes
Http://opendatacommunities.org/id/metropolitan-district-council/leeds,Leeds City Council,31/08/2023,Children and Families,Social Care ,Transport,Public Transport Expenses,310,14/07/2023,2308-00537,0.00,15.65,R,Airpay 47474408-Amber Car,Yes
Http://opendatacommunities.org/id/metropolitan-district-council/leeds,Leeds City Council,31/08/2023,Children and Families,Social Care ,Agency Payments,Section 17,551,18/07/2023,2308-00538,0.00,10.15,R,Airpay 47528035-Amber Car,Yes
Http://opendatacommunities.org/id/metropolitan-district-council/leeds,Leeds City Council,31/08/2023,Children and Families,Social Care ,Agency Payments,Section 17,551,19/07/2023,2308-00539,0.00,12.65,R,Airpay 47528041-Amber Car,Yes
Http://opendatacommunities.org/id/metropolitan-district-council/leeds,Leeds City Council,31/08/2023,Children and Families,Social Care ,Agency Payments,Section 17,551,19/07/2023,2308-00540,0.00,10.65,R,Airpay 47538562-Amber Car,Yes
Http://opendatacommunities.org/id/metropolitan-district-council/leeds,Leeds City Council,31/08/2023,Children and Families,Social Care ,Transport,Public Transport Expenses,310,20/07/2023,2308-00541,0.00,17.45,R,Airpay 47545645-Amber Car,Yes
Http://opendatacommunities.org/id/metropolitan-district-council/leeds,Leeds City Council,31/08/2023,Children and Families,Social Care ,Transport,Public Transport Expenses,310,20/07/2023,2308-00542,0.00,17.05,R,Airpay 47546396-Amber Car,Yes
Http://opendatacommunities.org/id/metropolitan-district-council/leeds,Leeds City Council,31/08/2023,Children and Families,Social Care ,Agency Payments,Section 17,551,20/07/2023,2308-00543,0.00,19.35,R,Airpay 47546695-Amber Car,Yes
Http://opendatacommunities.org/id/metropolitan-district-council/leeds,Leeds City Council,31/08/2023,Children and Families,Social Care ,Agency Payments,Section 17,551,20/07/2023,2308-00544,0.00,11.35,R,Airpay 47549894-Amber Car,Yes
Http://opendatacommunities.org/id/metropolitan-district-council/leeds,Leeds City Council,31/08/2023,Children and Families,Social Care ,Transport,Public Transport Expenses,310,24/07/2023,2308-00545,0.00,6.54,R,Airpay 47561576-Amber Car,Yes
Http://opendatacommunities.org/id/metropolitan-district-council/leeds,Leeds City Council,31/08/2023,Children and Families,Social Care ,Agency Payments,Section 17,551,21/07/2023,2308-00546,0.00,10.55,R,Airpay 47562027-Amber Car,Yes
Http://opendatacommunities.org/id/metropolitan-district-council/leeds,Leeds City Council,31/08/2023,Children and Families,Social Care ,Transport,Public Transport Expenses,310,26/07/2023,2308-00547,0.00,27.25,R,Airpay 47621331-Amber Car,Yes
Http://opendatacommunities.org/id/metropolitan-district-council/leeds,Leeds City Council,31/08/2023,Children and Families,Social Care ,Appropriations,Leaving Care Allowances,634,27/07/2023,2308-00548,0.00,9.05,R,Airpay 47636052-Amber Car,Yes
Http://opendatacommunities.org/id/metropolitan-district-council/leeds,Leeds City Council,31/08/2023,Adults and Health,Services For Adults Under 65 Mental/Dis,Internal Recharges,Legal Disbursements,411,25/08/2023,2308-00549,0.00,2400.00,R,Aisling Campbell,No
Http://opendatacommunities.org/id/metropolitan-district-council/leeds,Leeds City Council,31/08/2023,Adults and Health,Services For Adults Under 65 Mental/Dis,Agency Payments,Fees - Level 4,520,02/08/2023,2308-00550,0.00,175.00,R,AIT Mitra Limited,No
Http://opendatacommunities.org/id/metropolitan-district-council/leeds,Leeds City Council as Accountable Body,31/08/2023,Social Services Pooled Budgets,Jcs For People With Learning Disabilitie,Agency Payments,Residential,580,16/08/2023,2308-00551,0.00,7677.84,R,AITCH care homes,No
Http://opendatacommunities.org/id/metropolitan-district-council/leeds,Leeds City Council,31/08/2023,Communities Housing and Environment,Benefits Wlefare and Poverty,Supplies and Services,Advertising,211,02/08/2023,2308-00552,0.00,35.00,R,AJ Media Services Ltd,No
Http://opendatacommunities.org/id/metropolitan-district-council/leeds,Leeds City Council,31/08/2023,Strategy and Resources,Leeds Building Services,Supplies and Services,Operational Furniture And Equipment,203,02/08/2023,2308-00553,0.00,260.49,R,AJM FIXINGS & POWER TOOLS LTD,No
Http://opendatacommunities.org/id/metropolitan-district-council/leeds,Leeds City Council,31/08/2023,Strategy and Resources,Leeds Building Services,Supplies and Services,Operational Furniture And Equipment,203,02/08/2023,2308-00554,0.00,535.38,R,AJM FIXINGS & POWER TOOLS LTD,No
Http://opendatacommunities.org/id/metropolitan-district-council/leeds,Leeds City Council,31/08/2023,Strategy and Resources,Leeds Building Services,Supplies and Services,Operational Furniture And Equipment,203,02/08/2023,2308-00555,0.00,25.39,R,AJM FIXINGS & POWER TOOLS LTD,No
Http://opendatacommunities.org/id/metropolitan-district-council/leeds,Leeds City Council,31/08/2023,Strategy and Resources,Leeds Building Services,Supplies and Services,Operational Furniture And Equipment,203,02/08/2023,2308-00556,0.00,508.00,R,AJM FIXINGS & POWER TOOLS LTD,No
Http://opendatacommunities.org/id/metropolitan-district-council/leeds,Leeds City Council,31/08/2023,Strategy and Resources,Leeds Building Services,Premises,Cleaning Maintenance & Toiletries,127,02/08/2023,2308-00557,0.00,125.82,R,AJM FIXINGS & POWER TOOLS LTD,No
Http://opendatacommunities.org/id/metropolitan-district-council/leeds,Leeds City Council,31/08/2023,Strategy and Resources,Leeds Building Services,Supplies and Services,Operational Furniture And Equipment,203,02/08/2023,2308-00558,0.00,195.98,R,AJM FIXINGS & POWER TOOLS LTD,No
Http://opendatacommunities.org/id/metropolitan-district-council/leeds,Leeds City Council,31/08/2023,Strategy and Resources,Leeds Building Services,Supplies and Services,Operational Furniture And Equipment,203,04/08/2023,2308-00559,0.00,168.65,R,AJM FIXINGS & POWER TOOLS LTD,No
Http://opendatacommunities.org/id/metropolitan-district-council/leeds,Leeds City Council,31/08/2023,Strategy and Resources,Leeds Building Services,Supplies and Services,Operational Furniture And Equipment,203,04/08/2023,2308-00560,0.00,181.00,R,AJM FIXINGS & POWER TOOLS LTD,No
Http://opendatacommunities.org/id/metropolitan-district-council/leeds,Leeds City Council,31/08/2023,Strategy and Resources,Leeds Building Services,Supplies and Services,Operational Furniture And Equipment,203,04/08/2023,2308-00561,0.00,48.15,R,AJM FIXINGS & POWER TOOLS LTD,No
Http://opendatacommunities.org/id/metropolitan-district-council/leeds,Leeds City Council,31/08/2023,Strategy and Resources,Leeds Building Services,Supplies and Services,Operational Furniture And Equipment,203,04/08/2023,2308-00562,0.00,125.83,R,AJM FIXINGS & POWER TOOLS LTD,No
Http://opendatacommunities.org/id/metropolitan-district-council/leeds,Leeds City Council,31/08/2023,Strategy and Resources,Leeds Building Services,Supplies and Services,Operational Furniture And Equipment,203,04/08/2023,2308-00563,0.00,356.00,R,AJM FIXINGS & POWER TOOLS LTD,No
Http://opendatacommunities.org/id/metropolitan-district-council/leeds,Leeds City Council,31/08/2023,Strategy and Resources,Leeds Building Services,Premises,Cleaning Maintenance & Toiletries,127,04/08/2023,2308-00564,0.00,150.00,R,AJM FIXINGS & POWER TOOLS LTD,No
Http://opendatacommunities.org/id/metropolitan-district-council/leeds,Leeds City Council,31/08/2023,Strategy and Resources,Leeds Building Services,Supplies and Services,Operational Furniture And Equipment,203,04/08/2023,2308-00565,0.00,101.00,R,AJM FIXINGS & POWER TOOLS LTD,No
Http://opendatacommunities.org/id/metropolitan-district-council/leeds,Leeds City Council,31/08/2023,Strategy and Resources,Leeds Building Services,Supplies and Services,Operational Furniture And Equipment,203,04/08/2023,2308-00566,0.00,359.19,R,AJM FIXINGS & POWER TOOLS LTD,No
Http://opendatacommunities.org/id/metropolitan-district-council/leeds,Leeds City Council,31/08/2023,Strategy and Resources,Leeds Building Services,Supplies and Services,Operational Furniture And Equipment,203,04/08/2023,2308-00567,0.00,101.00,R,AJM FIXINGS & POWER TOOLS LTD,No
Http://opendatacommunities.org/id/metropolitan-district-council/leeds,Leeds City Council,31/08/2023,Strategy and Resources,Leeds Building Services,Supplies and Services,Operational Furniture And Equipment,203,04/08/2023,2308-00568,0.00,56.52,R,AJM FIXINGS & POWER TOOLS LTD,No
Http://opendatacommunities.org/id/metropolitan-district-council/leeds,Leeds City Council,31/08/2023,Strategy and Resources,Leeds Building Services,Supplies and Services,Operational Furniture And Equipment,203,04/08/2023,2308-00569,0.00,168.65,R,AJM FIXINGS & POWER TOOLS LTD,No
Http://opendatacommunities.org/id/metropolitan-district-council/leeds,Leeds City Council,31/08/2023,Strategy and Resources,Leeds Building Services,Supplies and Services,Operational Furniture And Equipment,203,04/08/2023,2308-00570,0.00,168.65,R,AJM FIXINGS & POWER TOOLS LTD,No
Http://opendatacommunities.org/id/metropolitan-district-council/leeds,Leeds City Council,31/08/2023,Strategy and Resources,Leeds Building Services,Supplies and Services,Operational Furniture And Equipment,203,09/08/2023,2308-00571,0.00,269.65,R,AJM FIXINGS & POWER TOOLS LTD,No
Http://opendatacommunities.org/id/metropolitan-district-council/leeds,Leeds City Council,31/08/2023,Strategy and Resources,Leeds Building Services,Supplies and Services,Operational Furniture And Equipment,203,09/08/2023,2308-00572,0.00,97.00,R,AJM FIXINGS & POWER TOOLS LTD,No
Http://opendatacommunities.org/id/metropolitan-district-council/leeds,Leeds City Council,31/08/2023,Strategy and Resources,Leeds Building Services,Supplies and Services,Operational Furniture And Equipment,203,09/08/2023,2308-00573,0.00,114.34,R,AJM FIXINGS & POWER TOOLS LTD,No
Http://opendatacommunities.org/id/metropolitan-district-council/leeds,Leeds City Council,31/08/2023,Strategy and Resources,Leeds Building Services,Supplies and Services,Operational Furniture And Equipment,203,09/08/2023,2308-00574,0.00,359.19,R,AJM FIXINGS & POWER TOOLS LTD,No
Http://opendatacommunities.org/id/metropolitan-district-council/leeds,Leeds City Council,31/08/2023,Strategy and Resources,Leeds Building Services,Premises,Cleaning Maintenance & Toiletries,127,11/08/2023,2308-00575,0.00,340.48,R,AJM FIXINGS & POWER TOOLS LTD,No
Http://opendatacommunities.org/id/metropolitan-district-council/leeds,Leeds City Council,31/08/2023,Strategy and Resources,Leeds Building Services,Supplies and Services,Operational Furniture And Equipment,203,11/08/2023,2308-00576,0.00,848.69,R,AJM FIXINGS & POWER TOOLS LTD,No
Http://opendatacommunities.org/id/metropolitan-district-council/leeds,Leeds City Council,31/08/2023,Strategy and Resources,Leeds Building Services,Supplies and Services,Operational Furniture And Equipment,203,16/08/2023,2308-00577,0.00,89.90,R,AJM FIXINGS & POWER TOOLS LTD,No
Http://opendatacommunities.org/id/metropolitan-district-council/leeds,Leeds City Council,31/08/2023,Strategy and Resources,Leeds Building Services,Supplies and Services,Operational Furniture And Equipment,203,16/08/2023,2308-00578,0.00,174.00,R,AJM FIXINGS & POWER TOOLS LTD,No
Http://opendatacommunities.org/id/metropolitan-district-council/leeds,Leeds City Council,31/08/2023,Strategy and Resources,Leeds Building Services,Supplies and Services,Operational Furniture And Equipment,203,16/08/2023,2308-00579,0.00,359.16,R,AJM FIXINGS & POWER TOOLS LTD,No
Http://opendatacommunities.org/id/metropolitan-district-council/leeds,Leeds City Council,31/08/2023,Strategy and Resources,Leeds Building Services,Premises,Cleaning Maintenance & Toiletries,127,16/08/2023,2308-00580,0.00,588.82,R,AJM FIXINGS & POWER TOOLS LTD,No
Http://opendatacommunities.org/id/metropolitan-district-council/leeds,Leeds City Council,31/08/2023,Strategy and Resources,Leeds Building Services,Supplies and Services,Operational Furniture And Equipment,203,16/08/2023,2308-00581,0.00,97.00,R,AJM FIXINGS & POWER TOOLS LTD,No
Http://opendatacommunities.org/id/metropolitan-district-council/leeds,Leeds City Council,31/08/2023,Strategy and Resources,Leeds Building Services,Premises,Cleaning Maintenance & Toiletries,127,16/08/2023,2308-00582,0.00,11.27,R,AJM FIXINGS & POWER TOOLS LTD,No
Http://opendatacommunities.org/id/metropolitan-district-council/leeds,Leeds City Council,31/08/2023,Strategy and Resources,Leeds Building Services,Premises,Cleaning Maintenance & Toiletries,127,16/08/2023,2308-00583,0.00,487.50,R,AJM FIXINGS & POWER TOOLS LTD,No
Http://opendatacommunities.org/id/metropolitan-district-council/leeds,Leeds City Council,31/08/2023,Strategy and Resources,Leeds Building Services,Supplies and Services,Operational Furniture And Equipment,203,16/08/2023,2308-00584,0.00,114.99,R,AJM FIXINGS & POWER TOOLS LTD,No
Http://opendatacommunities.org/id/metropolitan-district-council/leeds,Leeds City Council,31/08/2023,Strategy and Resources,Leeds Building Services,Supplies and Services,Operational Furniture And Equipment,203,16/08/2023,2308-00585,0.00,89.68,R,AJM FIXINGS & POWER TOOLS LTD,No
Http://opendatacommunities.org/id/metropolitan-district-council/leeds,Leeds City Council,31/08/2023,Strategy and Resources,Leeds Building Services,Supplies and Services,Operational Furniture And Equipment,203,16/08/2023,2308-00586,0.00,54.50,R,AJM FIXINGS & POWER TOOLS LTD,No
Http://opendatacommunities.org/id/metropolitan-district-council/leeds,Leeds City Council,31/08/2023,Strategy and Resources,Leeds Building Services,Supplies and Services,Operational Furniture And Equipment,203,16/08/2023,2308-00587,0.00,1200.00,R,AJM FIXINGS & POWER TOOLS LTD,No
Http://opendatacommunities.org/id/metropolitan-district-council/leeds,Leeds City Council,31/08/2023,Strategy and Resources,Leeds Building Services,Premises,Cleaning Maintenance & Toiletries,127,16/08/2023,2308-00588,0.00,90.00,R,AJM FIXINGS & POWER TOOLS LTD,No
Http://opendatacommunities.org/id/metropolitan-district-council/leeds,Leeds City Council,31/08/2023,Strategy and Resources,Leeds Building Services,Supplies and Services,Operational Materials,205,16/08/2023,2308-00589,0.00,562.50,R,AJM FIXINGS & POWER TOOLS LTD,No
Http://opendatacommunities.org/id/metropolitan-district-council/leeds,Leeds City Council,31/08/2023,Strategy and Resources,Leeds Building Services,Premises,Cleaning Maintenance & Toiletries,127,16/08/2023,2308-00590,0.00,279.80,R,AJM FIXINGS & POWER TOOLS LTD,No
Http://opendatacommunities.org/id/metropolitan-district-council/leeds,Leeds City Council,31/08/2023,Strategy and Resources,Leeds Building Services,Supplies and Services,Operational Furniture And Equipment,203,16/08/2023,2308-00591,0.00,224.85,R,AJM FIXINGS & POWER TOOLS LTD,No
Http://opendatacommunities.org/id/metropolitan-district-council/leeds,Leeds City Council,31/08/2023,Strategy and Resources,Leeds Building Services,Premises,Cleaning Maintenance & Toiletries,127,16/08/2023,2308-00592,0.00,8.65,R,AJM FIXINGS & POWER TOOLS LTD,No
Http://opendatacommunities.org/id/metropolitan-district-council/leeds,Leeds City Council,31/08/2023,Strategy and Resources,Leeds Building Services,Supplies and Services,Operational Furniture And Equipment,203,16/08/2023,2308-00593,0.00,1650.00,R,AJM FIXINGS & POWER TOOLS LTD,No
Http://opendatacommunities.org/id/metropolitan-district-council/leeds,Leeds City Council,31/08/2023,Strategy and Resources,Leeds Building Services,Supplies and Services,Operational Furniture And Equipment,203,16/08/2023,2308-00594,0.00,59.90,R,AJM FIXINGS & POWER TOOLS LTD,No
Http://opendatacommunities.org/id/metropolitan-district-council/leeds,Leeds City Council,31/08/2023,Strategy and Resources,Leeds Building Services,Supplies and Services,Operational Furniture And Equipment,203,16/08/2023,2308-00595,0.00,16.45,R,AJM FIXINGS & POWER TOOLS LTD,No
Http://opendatacommunities.org/id/metropolitan-district-council/leeds,Leeds City Council,31/08/2023,Strategy and Resources,Leeds Building Services,Premises,Cleaning Maintenance & Toiletries,127,16/08/2023,2308-00596,0.00,11.97,R,AJM FIXINGS & POWER TOOLS LTD,No
Http://opendatacommunities.org/id/metropolitan-district-council/leeds,Leeds City Council,31/08/2023,Strategy and Resources,Leeds Building Services,Premises,Cleaning Maintenance & Toiletries,127,16/08/2023,2308-00597,0.00,183.70,R,AJM FIXINGS & POWER TOOLS LTD,No
Http://opendatacommunities.org/id/metropolitan-district-council/leeds,Leeds City Council,31/08/2023,Strategy and Resources,Leeds Building Services,Supplies and Services,Operational Furniture And Equipment,203,16/08/2023,2308-00598,0.00,125.82,R,AJM FIXINGS & POWER TOOLS LTD,No
Http://opendatacommunities.org/id/metropolitan-district-council/leeds,Leeds City Council,31/08/2023,Strategy and Resources,Leeds Building Services,Supplies and Services,Operational Furniture And Equipment,203,16/08/2023,2308-00599,0.00,34.99,R,AJM FIXINGS & POWER TOOLS LTD,No
Http://opendatacommunities.org/id/metropolitan-district-council/leeds,Leeds City Council,31/08/2023,Strategy and Resources,Leeds Building Services,Supplies and Services,Operational Furniture And Equipment,203,16/08/2023,2308-00600,0.00,88.44,R,AJM FIXINGS & POWER TOOLS LTD,No
Http://opendatacommunities.org/id/metropolitan-district-council/leeds,Leeds City Council,31/08/2023,Strategy and Resources,Leeds Building Services,Premises,Cleaning Maintenance & Toiletries,127,16/08/2023,2308-00601,0.00,25.98,R,AJM FIXINGS & POWER TOOLS LTD,No
Http://opendatacommunities.org/id/metropolitan-district-council/leeds,Leeds City Council,31/08/2023,Strategy and Resources,Leeds Building Services,Supplies and Services,Operational Furniture And Equipment,203,16/08/2023,2308-00602,0.00,365.02,R,AJM FIXINGS & POWER TOOLS LTD,No
Http://opendatacommunities.org/id/metropolitan-district-council/leeds,Leeds City Council,31/08/2023,Strategy and Resources,Leeds Building Services,Supplies and Services,Operational Furniture And Equipment,203,16/08/2023,2308-00603,0.00,14.90,R,AJM FIXINGS & POWER TOOLS LTD,No
Http://opendatacommunities.org/id/metropolitan-district-council/leeds,Leeds City Council,31/08/2023,Strategy and Resources,Leeds Building Services,Supplies and Services,Operational Furniture And Equipment,203,16/08/2023,2308-00604,0.00,25.39,R,AJM FIXINGS & POWER TOOLS LTD,No
Http://opendatacommunities.org/id/metropolitan-district-council/leeds,Leeds City Council,31/08/2023,Strategy and Resources,Leeds Building Services,Premises,Cleaning Maintenance & Toiletries,127,16/08/2023,2308-00605,0.00,4012.00,R,AJM FIXINGS & POWER TOOLS LTD,No
Http://opendatacommunities.org/id/metropolitan-district-council/leeds,Leeds City Council,31/08/2023,Strategy and Resources,Leeds Building Services,Supplies and Services,Operational Furniture And Equipment,203,16/08/2023,2308-00606,0.00,163.60,R,AJM FIXINGS & POWER TOOLS LTD,No
Http://opendatacommunities.org/id/metropolitan-district-council/leeds,Leeds City Council,31/08/2023,Strategy and Resources,Leeds Building Services,Premises,Cleaning Maintenance & Toiletries,127,16/08/2023,2308-00607,0.00,119.80,R,AJM FIXINGS & POWER TOOLS LTD,No
Http://opendatacommunities.org/id/metropolitan-district-council/leeds,Leeds City Council,31/08/2023,Strategy and Resources,Leeds Building Services,Premises,Cleaning Maintenance & Toiletries,127,16/08/2023,2308-00608,0.00,29.90,R,AJM FIXINGS & POWER TOOLS LTD,No
Http://opendatacommunities.org/id/metropolitan-district-council/leeds,Leeds City Council,31/08/2023,Strategy and Resources,Leeds Building Services,Premises,Cleaning Maintenance & Toiletries,127,16/08/2023,2308-00609,0.00,48.90,R,AJM FIXINGS & POWER TOOLS LTD,No
Http://opendatacommunities.org/id/metropolitan-district-council/leeds,Leeds City Council,31/08/2023,Strategy and Resources,Leeds Building Services,Premises,Cleaning Maintenance & Toiletries,127,16/08/2023,2308-00610,0.00,117.98,R,AJM FIXINGS & POWER TOOLS LTD,No
Http://opendatacommunities.org/id/metropolitan-district-council/leeds,Leeds City Council,31/08/2023,Strategy and Resources,Leeds Building Services,Supplies and Services,Operational Furniture And Equipment,203,16/08/2023,2308-00611,0.00,50.78,R,AJM FIXINGS & POWER TOOLS LTD,No
Http://opendatacommunities.org/id/metropolitan-district-council/leeds,Leeds City Council,31/08/2023,Strategy and Resources,Leeds Building Services,Supplies and Services,Operational Furniture And Equipment,203,16/08/2023,2308-00612,0.00,181.00,R,AJM FIXINGS & POWER TOOLS LTD,No
Http://opendatacommunities.org/id/metropolitan-district-council/leeds,Leeds City Council,31/08/2023,Strategy and Resources,Leeds Building Services,Supplies and Services,Operational Furniture And Equipment,203,16/08/2023,2308-00613,0.00,5.70,R,AJM FIXINGS & POWER TOOLS LTD,No
Http://opendatacommunities.org/id/metropolitan-district-council/leeds,Leeds City Council,31/08/2023,Strategy and Resources,Leeds Building Services,Premises,Cleaning Maintenance & Toiletries,127,16/08/2023,2308-00614,0.00,208.50,R,AJM FIXINGS & POWER TOOLS LTD,No
Http://opendatacommunities.org/id/metropolitan-district-council/leeds,Leeds City Council,31/08/2023,Strategy and Resources,Leeds Building Services,Premises,Cleaning Maintenance & Toiletries,127,18/08/2023,2308-00615,0.00,384.00,R,AJM FIXINGS & POWER TOOLS LTD,No
Http://opendatacommunities.org/id/metropolitan-district-council/leeds,Leeds City Council,31/08/2023,Strategy and Resources,Leeds Building Services,Supplies and Services,Operational Furniture And Equipment,203,18/08/2023,2308-00616,0.00,1711.47,R,AJM FIXINGS & POWER TOOLS LTD,No
Http://opendatacommunities.org/id/metropolitan-district-council/leeds,Leeds City Council,31/08/2023,Strategy and Resources,Leeds Building Services,Premises,Cleaning Maintenance & Toiletries,127,18/08/2023,2308-00617,0.00,283.15,R,AJM FIXINGS & POWER TOOLS LTD,No
Http://opendatacommunities.org/id/metropolitan-district-council/leeds,Leeds City Council,31/08/2023,Strategy and Resources,Leeds Building Services,Premises,Cleaning Maintenance & Toiletries,127,18/08/2023,2308-00618,0.00,36.88,R,AJM FIXINGS & POWER TOOLS LTD,No
Http://opendatacommunities.org/id/metropolitan-district-council/leeds,Leeds City Council,31/08/2023,Strategy and Resources,Leeds Building Services,Premises,Cleaning Maintenance & Toiletries,127,18/08/2023,2308-00619,0.00,236.15,R,AJM FIXINGS & POWER TOOLS LTD,No
Http://opendatacommunities.org/id/metropolitan-district-council/leeds,Leeds City Council,31/08/2023,Strategy and Resources,Leeds Building Services,Supplies and Services,Operational Furniture And Equipment,203,18/08/2023,2308-00620,0.00,99.00,R,AJM FIXINGS & POWER TOOLS LTD,No
Http://opendatacommunities.org/id/metropolitan-district-council/leeds,Leeds City Council,31/08/2023,Strategy and Resources,Leeds Building Services,Supplies and Services,Operational Furniture And Equipment,203,18/08/2023,2308-00621,0.00,311.28,R,AJM FIXINGS & POWER TOOLS LTD,No
Http://opendatacommunities.org/id/metropolitan-district-council/leeds,Leeds City Council,31/08/2023,Strategy and Resources,Leeds Building Services,Premises,Cleaning Maintenance & Toiletries,127,25/08/2023,2308-00622,0.00,487.50,R,AJM FIXINGS & POWER TOOLS LTD,No
Http://opendatacommunities.org/id/metropolitan-district-council/leeds,Leeds City Council,31/08/2023,Strategy and Resources,Leeds Building Services,Premises,Cleaning Maintenance & Toiletries,127,25/08/2023,2308-00623,0.00,27.70,R,AJM FIXINGS & POWER TOOLS LTD,No
Http://opendatacommunities.org/id/metropolitan-district-council/leeds,Leeds City Council,31/08/2023,Strategy and Resources,Leeds Building Services,Premises,Cleaning Maintenance & Toiletries,127,25/08/2023,2308-00624,0.00,531.80,R,AJM FIXINGS & POWER TOOLS LTD,No
Http://opendatacommunities.org/id/metropolitan-district-council/leeds,Leeds City Council,31/08/2023,Strategy and Resources,Leeds Building Services,Supplies and Services,Operational Furniture And Equipment,203,25/08/2023,2308-00625,0.00,467.65,R,AJM FIXINGS & POWER TOOLS LTD,No
Http://opendatacommunities.org/id/metropolitan-district-council/leeds,Leeds City Council,31/08/2023,Strategy and Resources,Leeds Building Services,Supplies and Services,Operational Furniture And Equipment,203,25/08/2023,2308-00626,0.00,181.00,R,AJM FIXINGS & POWER TOOLS LTD,No
Http://opendatacommunities.org/id/metropolitan-district-council/leeds,Leeds City Council,31/08/2023,Strategy and Resources,Leeds Building Services,Premises,Cleaning Maintenance & Toiletries,127,25/08/2023,2308-00627,0.00,1114.00,R,AJM FIXINGS & POWER TOOLS LTD,No
Http://opendatacommunities.org/id/metropolitan-district-council/leeds,Leeds City Council,31/08/2023,Strategy and Resources,Leeds Building Services,Supplies and Services,Operational Furniture And Equipment,203,25/08/2023,2308-00628,0.00,1249.55,R,AJM FIXINGS & POWER TOOLS LTD,No
Http://opendatacommunities.org/id/metropolitan-district-council/leeds,Leeds City Council,31/08/2023,Strategy and Resources,Leeds Building Services,Supplies and Services,Operational Furniture And Equipment,203,25/08/2023,2308-00629,0.00,67.00,R,AJM FIXINGS & POWER TOOLS LTD,No
Http://opendatacommunities.org/id/metropolitan-district-council/leeds,Leeds City Council,31/08/2023,Strategy and Resources,Leeds Building Services,Premises,Cleaning Maintenance & Toiletries,127,30/08/2023,2308-00630,0.00,359.19,R,AJM FIXINGS & POWER TOOLS LTD,No
Http://opendatacommunities.org/id/metropolitan-district-council/leeds,Leeds City Council,31/08/2023,Strategy and Resources,Leeds Building Services,Supplies and Services,Operational Furniture And Equipment,203,30/08/2023,2308-00631,0.00,888.27,R,AJM FIXINGS & POWER TOOLS LTD,No
Http://opendatacommunities.org/id/metropolitan-district-council/leeds,Leeds City Council,31/08/2023,Strategy and Resources,Leeds Building Services,Premises,Cleaning Maintenance & Toiletries,127,30/08/2023,2308-00632,0.00,56.75,R,AJM FIXINGS & POWER TOOLS LTD,No
Http://opendatacommunities.org/id/metropolitan-district-council/leeds,Leeds City Council,31/08/2023,Communities Housing and Environment,Strategic Housing Partnership & Support,Capital,CONSTRUCTION,3,25/08/2023,2308-00633,0.00,5670.00,C,AKR Construction Ltd,No
Http://opendatacommunities.org/id/metropolitan-district-council/leeds,Leeds City Council,31/08/2023,Communities Housing and Environment,Strategic Housing Partnership & Support,Capital,CONSTRUCTION,3,25/08/2023,2308-00634,0.00,10000.00,C,AKR Construction Ltd,No
Http://opendatacommunities.org/id/metropolitan-district-council/leeds,Leeds City Council,31/08/2023,Children and Families,Social Care,Appropriations,Leaving Care Allowances,634,04/08/2023,2308-00635,0.00,50.00,R,REDACTED PERSONAL DATA,No
Http://opendatacommunities.org/id/metropolitan-district-council/leeds,Leeds City Council,31/08/2023,Children and Families,Social Care,Appropriations,Leaving Care Allowances,634,11/08/2023,2308-00636,0.00,50.00,R,REDACTED PERSONAL DATA,No
Http://opendatacommunities.org/id/metropolitan-district-council/leeds,Leeds City Council,31/08/2023,Children and Families,Social Care,Appropriations,Leaving Care Allowances,634,18/08/2023,2308-00637,0.00,50.00,R,REDACTED PERSONAL DATA,No
Http://opendatacommunities.org/id/metropolitan-district-council/leeds,Leeds City Council,31/08/2023,Children and Families,Social Care,Agency Payments,Services Rendered By Other Organisations,511,04/08/2023,2308-00638,0.00,959.40,R,REDACTED PERSONAL DATA,No
Http://opendatacommunities.org/id/metropolitan-district-council/leeds,Leeds City Council,31/08/2023,Children and Families,Social Care,Agency Payments,Services Rendered By Other Organisations,511,04/08/2023,2308-00639,0.00,312.00,R,REDACTED PERSONAL DATA,No
Http://opendatacommunities.org/id/metropolitan-district-council/leeds,Leeds City Council,31/08/2023,Children and Families,Social Care,Agency Payments,Services Rendered By Other Organisations,511,04/08/2023,2308-00640,0.00,120.90,R,REDACTED PERSONAL DATA,No
Http://opendatacommunities.org/id/metropolitan-district-council/leeds,Leeds City Council,31/08/2023,Children and Families,Social Care,Supplies and Services,Operational Furniture And Equipment,203,10/08/2023,2308-00641,0.00,452.94,R,Alarm Radio Monitoring Ltd,No
Http://opendatacommunities.org/id/metropolitan-district-council/leeds,Leeds City Council,31/08/2023,Children and Families,Social Care ,Supplies and Services,Food & Drink,231,10/07/2023,2308-00642,0.00,21.42,R,Aldi,Yes
Http://opendatacommunities.org/id/metropolitan-district-council/leeds,Leeds City Council,31/08/2023,Children and Families,Social Care ,Agency Payments,Section 17,551,10/07/2023,2308-00643,0.00,5.37,R,Aldi 4 779,Yes
Http://opendatacommunities.org/id/metropolitan-district-council/leeds,Leeds City Council,31/08/2023,Children and Families,Social Care ,Supplies and Services,Food & Drink,231,10/07/2023,2308-00644,0.00,0.91,R,Aldi 40 779,Yes
Http://opendatacommunities.org/id/metropolitan-district-council/leeds,Leeds City Council,31/08/2023,Communities Housing and Environment,Communities ,Supplies and Services,Operational Materials,205,17/07/2023,2308-00645,0.00,5.89,R,Aldi 40 779,Yes
Http://opendatacommunities.org/id/metropolitan-district-council/leeds,Leeds City Council,31/08/2023,Communities Housing and Environment,Communities ,Supplies and Services,Operational Materials,205,24/07/2023,2308-00646,0.00,14.65,R,Aldi 40 779,Yes
Http://opendatacommunities.org/id/metropolitan-district-council/leeds,Leeds City Council,31/08/2023,Children and Families,Social Care ,Appropriations,Leaving Care Allowances,634,21/07/2023,2308-00647,0.00,14.80,R,Aldi 49 779,Yes
Http://opendatacommunities.org/id/metropolitan-district-council/leeds,Leeds City Council,31/08/2023,Children and Families,Social Care ,Supplies and Services,Food & Drink,231,21/07/2023,2308-00648,0.00,26.38,R,Aldi 49 779,Yes
Http://opendatacommunities.org/id/metropolitan-district-council/leeds,Leeds City Council,31/08/2023,Children and Families,Social Care ,Appropriations,Young Peoples Rewards,653,29/07/2023,2308-00649,0.00,50.00,R,Aldi 49 779,Yes
Http://opendatacommunities.org/id/metropolitan-district-council/leeds,Leeds City Council,31/08/2023,Children and Families,Social Care ,Supplies and Services,Food & Drink,231,21/07/2023,2308-00650,0.00,19.74,R,Aldi 71 779,Yes
Http://opendatacommunities.org/id/metropolitan-district-council/leeds,Leeds City Council,31/08/2023,Children and Families,Social Care ,Supplies and Services,Teaching Materials,202,13/07/2023,2308-00651,0.00,7.97,R,Aldi 779117,Yes
Http://opendatacommunities.org/id/metropolitan-district-council/leeds,Leeds City Council,31/08/2023,Children and Families,Social Care ,Employees,Gratuities,30,06/07/2023,2308-00652,0.00,24.95,R,Aldi 779-126,Yes
Http://opendatacommunities.org/id/metropolitan-district-council/leeds,Leeds City Council,31/08/2023,Children and Families,Social Care ,Supplies and Services,Food & Drink,231,19/07/2023,2308-00653,0.00,19.62,R,Aldi 85 779,Yes
Http://opendatacommunities.org/id/metropolitan-district-council/leeds,Leeds City Council,31/08/2023,Communities Housing and Environment,Communities ,Supplies and Services,Food & Drink,231,20/07/2023,2308-00654,0.00,15.39,R,Aldi 85 779,Yes
Http://opendatacommunities.org/id/metropolitan-district-council/leeds,Leeds City Council,31/08/2023,Strategy and Resources,Commercial Services ,Supplies and Services,Food & Drink,231,28/07/2023,2308-00655,0.00,14.19,R,Aldi 85 779,Yes
Http://opendatacommunities.org/id/metropolitan-district-council/leeds,Leeds City Council,31/08/2023,Communities Housing and Environment,Communities ,Supplies and Services,Food & Drink,231,05/07/2023,2308-00656,0.00,11.48,R,Aldi 88 779,Yes
Http://opendatacommunities.org/id/metropolitan-district-council/leeds,Leeds City Council,31/08/2023,Children and Families,Social Care ,Supplies and Services,Food & Drink,231,17/07/2023,2308-00657,0.00,200.98,R,Aldi 88 779,Yes
Http://opendatacommunities.org/id/metropolitan-district-council/leeds,Leeds City Council,31/08/2023,Children and Families,Social Care ,Supplies and Services,Food & Drink,231,19/07/2023,2308-00658,0.00,13.33,R,Aldi 88 779,Yes
Http://opendatacommunities.org/id/metropolitan-district-council/leeds,Leeds City Council,31/08/2023,Communities Housing and Environment,Communities ,Supplies and Services,Food & Drink,231,19/07/2023,2308-00659,0.00,17.85,R,Aldi 88 779,Yes
Http://opendatacommunities.org/id/metropolitan-district-council/leeds,Leeds City Council,31/08/2023,Children and Families,Social Care ,Appropriations,Leaving Care Allowances,634,21/07/2023,2308-00660,0.00,46.67,R,Aldi 88 779,Yes
Http://opendatacommunities.org/id/metropolitan-district-council/leeds,Leeds City Council,31/08/2023,Children and Families,Social Care ,Supplies and Services,Food & Drink,231,24/07/2023,2308-00661,0.00,55.82,R,Aldi 88 779,Yes
Http://opendatacommunities.org/id/metropolitan-district-council/leeds,Leeds City Council,31/08/2023,Children and Families,Social Care ,Appropriations,Young People Expenses,654,03/07/2023,2308-00662,0.00,15.00,R,Aldi 89 779,Yes
Http://opendatacommunities.org/id/metropolitan-district-council/leeds,Leeds City Council,31/08/2023,Children and Families,Social Care ,Supplies and Services,Food & Drink,231,04/07/2023,2308-00663,0.00,220.17,R,Aldi 89 779,Yes
Http://opendatacommunities.org/id/metropolitan-district-council/leeds,Leeds City Council,31/08/2023,Communities Housing and Environment,Communities ,Supplies and Services,Food & Drink,231,11/07/2023,2308-00664,0.00,41.34,R,Aldi 89 779,Yes
Http://opendatacommunities.org/id/metropolitan-district-council/leeds,Leeds City Council,31/08/2023,Children and Families,Social Care ,Supplies and Services,Food & Drink,231,15/07/2023,2308-00665,0.00,66.58,R,Aldi 89 779,Yes
Http://opendatacommunities.org/id/metropolitan-district-council/leeds,Leeds City Council,31/08/2023,Children and Families,Social Care ,Appropriations,Young People Expenses,654,19/07/2023,2308-00666,0.00,26.63,R,Aldi 89 779,Yes
Http://opendatacommunities.org/id/metropolitan-district-council/leeds,Leeds City Council,31/08/2023,Children and Families,Social Care ,Supplies and Services,Food & Drink,231,20/07/2023,2308-00667,0.00,12.61,R,Aldi 89 779,Yes
Http://opendatacommunities.org/id/metropolitan-district-council/leeds,Leeds City Council,31/08/2023,Communities Housing and Environment,Communities ,Supplies and Services,Food & Drink,231,21/07/2023,2308-00668,0.00,13.83,R,Aldi 89 779,Yes
Http://opendatacommunities.org/id/metropolitan-district-council/leeds,Leeds City Council,31/08/2023,Children and Families,Social Care ,Supplies and Services,Food & Drink,231,23/07/2023,2308-00669,0.00,34.31,R,Aldi 89 779,Yes
Http://opendatacommunities.org/id/metropolitan-district-council/leeds,Leeds City Council,31/08/2023,Children and Families,Social Care ,Supplies and Services,Food & Drink,231,24/07/2023,2308-00670,0.00,54.04,R,Aldi 89 779,Yes
Http://opendatacommunities.org/id/metropolitan-district-council/leeds,Leeds City Council,31/08/2023,Children and Families,Social Care ,Supplies and Services,Food & Drink,231,24/07/2023,2308-00671,0.00,201.86,R,Aldi 89 779,Yes
Http://opendatacommunities.org/id/metropolitan-district-council/leeds,Leeds City Council,31/08/2023,Children and Families,Social Care ,Supplies and Services,Food & Drink,231,25/07/2023,2308-00672,0.00,5.15,R,Aldi 89 779,Yes
Http://opendatacommunities.org/id/metropolitan-district-council/leeds,Leeds City Council,31/08/2023,Children and Families,Social Care ,Supplies and Services,Food & Drink,231,30/07/2023,2308-00673,0.00,49.19,R,Aldi 89 779,Yes
Http://opendatacommunities.org/id/metropolitan-district-council/leeds,Leeds City Council,31/08/2023,Children and Families,Social Care ,Agency Payments,Placement Support,550,06/07/2023,2308-00674,0.00,40.05,R,Aldi 99 779,Yes
Http://opendatacommunities.org/id/metropolitan-district-council/leeds,Leeds City Council,31/08/2023,Adults and Health,Assessment And Care Management ,Supplies and Services,Subsistence,256,07/07/2023,2308-00675,0.00,79.07,R,Aldi Stores,Yes
Http://opendatacommunities.org/id/metropolitan-district-council/leeds,Leeds City Council,31/08/2023,Children and Families,Social Care ,Supplies and Services,Food & Drink,231,11/07/2023,2308-00676,0.00,16.02,R,Aldi Stores,Yes
Http://opendatacommunities.org/id/metropolitan-district-council/leeds,Leeds City Council,31/08/2023,Communities Housing and Environment,Communities ,Supplies and Services,Food & Drink,231,14/07/2023,2308-00677,0.00,18.01,R,Aldi Stores,Yes
Http://opendatacommunities.org/id/metropolitan-district-council/leeds,Leeds City Council,31/08/2023,Children and Families,Social Care ,Employees,Gratuities,30,21/07/2023,2308-00678,0.00,6.20,R,Aldi Stores,Yes
Http://opendatacommunities.org/id/metropolitan-district-council/leeds,Leeds City Council,31/08/2023,Children and Families,Social Care ,Supplies and Services,Food & Drink,231,27/07/2023,2308-00679,0.00,10.12,R,Aldi Stores,Yes
Http://opendatacommunities.org/id/metropolitan-district-council/leeds,Leeds City Council,31/08/2023,Children and Families,Social Care,Agency Payments,Section 17,551,07/08/2023,2308-00680,0.00,150.00,R,REDACTED PERSONAL DATA,No
Http://opendatacommunities.org/id/metropolitan-district-council/leeds,Leeds City Council,31/08/2023,Communities Housing and Environment,Climate Energy & Greenspaces ,Supplies and Services,Resaleable Materials,204,11/07/2023,2308-00681,0.00,258.60,R,Alex Clark Art Ltd,Yes
Http://opendatacommunities.org/id/metropolitan-district-council/leeds,Leeds City Council,31/08/2023,Communities Housing and Environment,Car Parking Services,External Income,Penalties Fines & Car Parking Charges,934,10/08/2023,2308-00682,0.00,35.00,R,REDACTED PERSONAL DATA,No
Http://opendatacommunities.org/id/metropolitan-district-council/leeds,Leeds City Council,31/08/2023,Children and Families,Social Care,Agency Payments,Placement Support,550,09/08/2023,2308-00683,0.00,318.04,R,REDACTED PERSONAL DATA,No
Http://opendatacommunities.org/id/metropolitan-district-council/leeds,Leeds City Council,31/08/2023,Children and Families,Social Care,Agency Payments,Placement Support,550,11/08/2023,2308-00684,0.00,14.60,R,REDACTED PERSONAL DATA,No
Http://opendatacommunities.org/id/metropolitan-district-council/leeds,Leeds City Council,31/08/2023,Children and Families,Social Care,Agency Payments,Placement Support,550,15/08/2023,2308-00685,0.00,50.90,R,REDACTED PERSONAL DATA,No
Http://opendatacommunities.org/id/metropolitan-district-council/leeds,Leeds City Council,31/08/2023,Children and Families,Social Care,Agency Payments,Section 17,551,24/08/2023,2308-00686,0.00,20.00,R,REDACTED PERSONAL DATA,No
Http://opendatacommunities.org/id/metropolitan-district-council/leeds,Leeds City Council,31/08/2023,Children and Families,Social Care,Agency Payments,Placement Support,550,29/08/2023,2308-00687,0.00,17.84,R,REDACTED PERSONAL DATA,No
Http://opendatacommunities.org/id/metropolitan-district-council/leeds,Leeds City Council,31/08/2023,Children and Families,Social Care,Agency Payments,Section 17,551,30/08/2023,2308-00688,0.00,20.00,R,REDACTED PERSONAL DATA,No
Http://opendatacommunities.org/id/metropolitan-district-council/leeds,Leeds City Council,31/08/2023,Children and Families,Social Care,Internal Recharges,Legal Disbursements,411,30/08/2023,2308-00689,0.00,829.00,R,Alex Taylor,No
Http://opendatacommunities.org/id/metropolitan-district-council/leeds,Leeds City Council,31/08/2023,Children and Families,Social Care,Internal Recharges,Legal Disbursements,411,30/08/2023,2308-00690,0.00,910.00,R,Alex Taylor,No
Http://opendatacommunities.org/id/metropolitan-district-council/leeds,Leeds City Council,31/08/2023,Children and Families,Social Care,Internal Recharges,Legal Disbursements,411,30/08/2023,2308-00691,0.00,541.00,R,Alex Taylor,No
Http://opendatacommunities.org/id/metropolitan-district-council/leeds,Leeds City Council,31/08/2023,Strategy and Resources,Commercial Services,Supplies and Services,Other Hired And Contracted Services,265,10/08/2023,2308-00692,0.00,250.00,R,ALEX WAGG,No
Http://opendatacommunities.org/id/metropolitan-district-council/leeds,Leeds City Council,31/08/2023,Strategy and Resources,Commercial Services,Supplies and Services,Other Hired And Contracted Services,265,10/08/2023,2308-00693,0.00,70.00,R,ALEX WAGG,No
Http://opendatacommunities.org/id/metropolitan-district-council/leeds,Leeds City Council,31/08/2023,Strategy and Resources,Commercial Services,Supplies and Services,Other Hired And Contracted Services,265,10/08/2023,2308-00694,0.00,200.00,R,ALEX WAGG,No
Http://opendatacommunities.org/id/metropolitan-district-council/leeds,Leeds City Council,31/08/2023,Strategy and Resources,Commercial Services,Supplies and Services,Other Hired And Contracted Services,265,10/08/2023,2308-00695,0.00,225.00,R,ALEX WAGG,No
Http://opendatacommunities.org/id/metropolitan-district-council/leeds,Leeds City Council,31/08/2023,Strategy and Resources,Commercial Services,Supplies and Services,Other Hired And Contracted Services,265,16/08/2023,2308-00696,0.00,636.00,R,ALEX WAGG,No
Http://opendatacommunities.org/id/metropolitan-district-council/leeds,Leeds City Council,31/08/2023,Strategy and Resources,Commercial Services,Supplies and Services,Other Hired And Contracted Services,265,16/08/2023,2308-00697,0.00,175.00,R,ALEX WAGG,No
Http://opendatacommunities.org/id/metropolitan-district-council/leeds,Leeds City Council,31/08/2023,Strategy and Resources,Commercial Services,Supplies and Services,Other Hired And Contracted Services,265,22/08/2023,2308-00698,0.00,398.78,R,ALEX WAGG,No
Http://opendatacommunities.org/id/metropolitan-district-council/leeds,Leeds City Council,31/08/2023,Strategy and Resources,Commercial Services,Supplies and Services,Other Hired And Contracted Services,265,22/08/2023,2308-00699,0.00,870.00,R,ALEX WAGG,No
Http://opendatacommunities.org/id/metropolitan-district-council/leeds,Leeds City Council,31/08/2023,Strategy and Resources,Commercial Services,Supplies and Services,Other Hired And Contracted Services,265,29/08/2023,2308-00700,0.00,334.00,R,ALEX WAGG,No
Http://opendatacommunities.org/id/metropolitan-district-council/leeds,Leeds City Council,31/08/2023,Strategy and Resources,Commercial Services,Supplies and Services,Other Hired And Contracted Services,265,29/08/2023,2308-00701,0.00,200.00,R,ALEX WAGG,No
Http://opendatacommunities.org/id/metropolitan-district-council/leeds,Leeds City Council,31/08/2023,Strategy and Resources,Commercial Services,Supplies and Services,Other Hired And Contracted Services,265,29/08/2023,2308-00702,0.00,655.00,R,ALEX WAGG,No
Http://opendatacommunities.org/id/metropolitan-district-council/leeds,Leeds City Council,31/08/2023,Adults and Health,Services For Older People - 65 And Over,Agency Payments,Residential Care Dementia,571,16/08/2023,2308-00703,0.00,19550.15,R,ALEXANDER RESIDENTIAL HOME,No
Http://opendatacommunities.org/id/metropolitan-district-council/leeds,Leeds City Council,31/08/2023,Adults and Health,Services For Older People - 65 And Over,Agency Payments,Residential,580,16/08/2023,2308-00704,0.00,20235.16,R,ALEXANDER RESIDENTIAL HOME,No
Http://opendatacommunities.org/id/metropolitan-district-council/leeds,Leeds City Council as Accountable Body,31/08/2023,Social Services Pooled Budgets,Jcs For People With Learning Disabilitie,Agency Payments,Residential,580,16/08/2023,2308-00705,0.00,3096.00,R,ALEXANDER RESIDENTIAL HOME,No
Http://opendatacommunities.org/id/metropolitan-district-council/leeds,Leeds City Council,31/08/2023,Children and Families,Social Care,Supplies and Services,Food & Drink,231,02/08/2023,2308-00706,0.00,22.83,R,REDACTED PERSONAL DATA,No
Http://opendatacommunities.org/id/metropolitan-district-council/leeds,Leeds City Council,31/08/2023,Adults and Health,Services For Older People - 65 And Over,Agency Payments,Residential Care Dementia,571,16/08/2023,2308-00707,0.00,6612.36,R,ALEXANDRA COURT,No
Http://opendatacommunities.org/id/metropolitan-district-council/leeds,Leeds City Council,31/08/2023,Adults and Health,Services For Older People - 65 And Over,Agency Payments,Residential,580,16/08/2023,2308-00708,0.00,6301.56,R,ALEXANDRA COURT,No
Http://opendatacommunities.org/id/metropolitan-district-council/leeds,Leeds City Council,31/08/2023,Children and Families,Social Care,Agency Payments,Placement Support,550,17/08/2023,2308-00709,0.00,15.49,R,REDACTED PERSONAL DATA,No
Http://opendatacommunities.org/id/metropolitan-district-council/leeds,Leeds City Council,31/08/2023,Children and Families,Social Care,Agency Payments,Placement Support,550,10/08/2023,2308-00710,0.00,200.00,R,REDACTED PERSONAL DATA,No
Http://opendatacommunities.org/id/metropolitan-district-council/leeds,Leeds City Council,31/08/2023,Children and Families,Social Care,Agency Payments,Services Rendered By Other Organisations,511,04/08/2023,2308-00711,0.00,319.80,R,REDACTED PERSONAL DATA,No
Http://opendatacommunities.org/id/metropolitan-district-council/leeds,Leeds City Council,31/08/2023,Children and Families,Social Care,Agency Payments,Services Rendered By Other Organisations,511,04/08/2023,2308-00712,0.00,46.80,R,REDACTED PERSONAL DATA,No
Http://opendatacommunities.org/id/metropolitan-district-council/leeds,Leeds City Council,31/08/2023,Adults and Health,Services For Older People - 65 And Over ,Supplies and Services,Clothing & Uniforms,241,11/07/2023,2308-00713,0.00,121.62,R,Alexandra Website,Yes
Http://opendatacommunities.org/id/metropolitan-district-council/leeds,Leeds City Council,31/08/2023,Adults and Health,Services For Older People - 65 And Over ,Supplies and Services,Clothing & Uniforms,241,25/07/2023,2308-00714,0.00,46.65,R,Alexandra Website,Yes
Http://opendatacommunities.org/id/metropolitan-district-council/leeds,Leeds City Council,31/08/2023,Children and Families,Social Care,Appropriations,Leaving Care Grants,635,02/08/2023,2308-00715,0.00,349.00,R,REDACTED PERSONAL DATA,No
Http://opendatacommunities.org/id/metropolitan-district-council/leeds,Leeds City Council,31/08/2023,Communities Housing and Environment,Car Parking Services,External Income,Penalties Fines & Car Parking Charges,934,17/08/2023,2308-00716,0.00,35.00,R,REDACTED PERSONAL DATA,No
Http://opendatacommunities.org/id/metropolitan-district-council/leeds,Leeds City Council,31/08/2023,Strategy and Resources,Leeds Building Services,Supplies and Services,Other Hired And Contracted Services,265,02/08/2023,2308-00717,0.00,350.00,R,Alfred Bagnall & Sons (Leeds) Ltd,No
Http://opendatacommunities.org/id/metropolitan-district-council/leeds,Leeds City Council,31/08/2023,Strategy and Resources,Leeds Building Services,Supplies and Services,Other Hired And Contracted Services,265,02/08/2023,2308-00718,0.00,2970.00,R,Alfred Bagnall & Sons (Leeds) Ltd,No
Http://opendatacommunities.org/id/metropolitan-district-council/leeds,Leeds City Council,31/08/2023,City Development,Recreation,Premises,Maintenance Of Buildings,101,02/08/2023,2308-00719,0.00,6731.18,R,Alfred Bagnall & Sons (Leeds) Ltd,No
Http://opendatacommunities.org/id/metropolitan-district-council/leeds,Leeds City Council,31/08/2023,Communities Housing and Environment,Climate Energy & Greenspaces,Supplies and Services,Other Hired And Contracted Services,265,02/08/2023,2308-00720,0.00,2550.36,R,Alfred Bagnall & Sons (Leeds) Ltd,No
Http://opendatacommunities.org/id/metropolitan-district-council/leeds,Leeds City Council,31/08/2023,Strategy and Resources,Leeds Building Services,Supplies and Services,Other Hired And Contracted Services,265,04/08/2023,2308-00721,0.00,890.00,R,Alfred Bagnall & Sons (Leeds) Ltd,No
Http://opendatacommunities.org/id/metropolitan-district-council/leeds,Leeds City Council,31/08/2023,Strategy and Resources,Leeds Building Services,Supplies and Services,Other Hired And Contracted Services,265,09/08/2023,2308-00722,0.00,3884.00,R,Alfred Bagnall & Sons (Leeds) Ltd,No
Http://opendatacommunities.org/id/metropolitan-district-council/leeds,Leeds City Council,31/08/2023,Strategy and Resources,Leeds Building Services,Supplies and Services,Other Hired And Contracted Services,265,11/08/2023,2308-00723,0.00,1975.00,R,Alfred Bagnall & Sons (Leeds) Ltd,No
Http://opendatacommunities.org/id/metropolitan-district-council/leeds,Leeds City Council,31/08/2023,Strategy and Resources,Leeds Building Services,Supplies and Services,Other Hired And Contracted Services,265,11/08/2023,2308-00724,0.00,320.00,R,Alfred Bagnall & Sons (Leeds) Ltd,No
Http://opendatacommunities.org/id/metropolitan-district-council/leeds,Leeds City Council,31/08/2023,Strategy and Resources,Leeds Building Services,Supplies and Services,Other Hired And Contracted Services,265,23/08/2023,2308-00725,0.00,352.00,R,Alfred Bagnall & Sons (Leeds) Ltd,No
Http://opendatacommunities.org/id/metropolitan-district-council/leeds,Leeds City Council,31/08/2023,Strategy and Resources,Leeds Building Services,Supplies and Services,Other Hired And Contracted Services,265,24/08/2023,2308-00726,0.00,2390.00,R,Alfred Bagnall & Sons (Leeds) Ltd,No
Http://opendatacommunities.org/id/metropolitan-district-council/leeds,Leeds City Council,31/08/2023,Strategy and Resources,Leeds Building Services,Supplies and Services,Other Hired And Contracted Services,265,25/08/2023,2308-00727,0.00,1380.00,R,Alfred Bagnall & Sons (Leeds) Ltd,No
Http://opendatacommunities.org/id/metropolitan-district-council/leeds,Leeds City Council,31/08/2023,Strategy and Resources,Leeds Building Services,Supplies and Services,Other Hired And Contracted Services,265,25/08/2023,2308-00728,0.00,3500.00,R,Alfred Bagnall & Sons (Leeds) Ltd,No
Http://opendatacommunities.org/id/metropolitan-district-council/leeds,Leeds City Council,31/08/2023,Strategy and Resources,Leeds Building Services,Supplies and Services,Other Hired And Contracted Services,265,25/08/2023,2308-00729,0.00,6300.00,R,Alfred Bagnall & Sons (Leeds) Ltd,No
Http://opendatacommunities.org/id/metropolitan-district-council/leeds,Leeds City Council,31/08/2023,Strategy and Resources,Leeds Building Services,Supplies and Services,Other Hired And Contracted Services,265,25/08/2023,2308-00730,0.00,4850.00,R,Alfred Bagnall & Sons (Leeds) Ltd,No
Http://opendatacommunities.org/id/metropolitan-district-council/leeds,Leeds City Council,31/08/2023,Strategy and Resources,Leeds Building Services,Supplies and Services,Other Hired And Contracted Services,265,25/08/2023,2308-00731,0.00,2320.00,R,Alfred Bagnall & Sons (Leeds) Ltd,No
Http://opendatacommunities.org/id/metropolitan-district-council/leeds,Leeds City Council,31/08/2023,Strategy and Resources,Leeds Building Services,Supplies and Services,Other Hired And Contracted Services,265,25/08/2023,2308-00732,0.00,890.00,R,Alfred Bagnall & Sons (Leeds) Ltd,No
Http://opendatacommunities.org/id/metropolitan-district-council/leeds,Leeds City Council,31/08/2023,Strategy and Resources,Leeds Building Services,Supplies and Services,Other Hired And Contracted Services,265,25/08/2023,2308-00733,0.00,750.00,R,Alfred Bagnall & Sons (Leeds) Ltd,No
Http://opendatacommunities.org/id/metropolitan-district-council/leeds,Leeds City Council,31/08/2023,Strategy and Resources,Leeds Building Services,Supplies and Services,Other Hired And Contracted Services,265,25/08/2023,2308-00734,0.00,2482.19,R,Alfred Bagnall & Sons (Leeds) Ltd,No
Http://opendatacommunities.org/id/metropolitan-district-council/leeds,Leeds City Council,31/08/2023,Strategy and Resources,Leeds Building Services,Supplies and Services,Other Hired And Contracted Services,265,25/08/2023,2308-00735,0.00,850.00,R,Alfred Bagnall & Sons (Leeds) Ltd,No
Http://opendatacommunities.org/id/metropolitan-district-council/leeds,Leeds City Council,31/08/2023,Strategy and Resources,Leeds Building Services,Supplies and Services,Other Hired And Contracted Services,265,25/08/2023,2308-00736,0.00,670.00,R,Alfred Bagnall & Sons (Leeds) Ltd,No
Http://opendatacommunities.org/id/metropolitan-district-council/leeds,Leeds City Council,31/08/2023,Strategy and Resources,Leeds Building Services,Supplies and Services,Other Hired And Contracted Services,265,30/08/2023,2308-00737,0.00,2034.90,R,Alfred Bagnall & Sons (Leeds) Ltd,No
Http://opendatacommunities.org/id/metropolitan-district-council/leeds,Leeds City Council,31/08/2023,Strategy and Resources,Leeds Building Services,Supplies and Services,Other Hired And Contracted Services,265,30/08/2023,2308-00738,0.00,20985.00,R,Alfred Bagnall & Sons (Leeds) Ltd,No
Http://opendatacommunities.org/id/metropolitan-district-council/leeds,Leeds City Council,31/08/2023,Strategy and Resources,Leeds Building Services,Supplies and Services,Other Hired And Contracted Services,265,30/08/2023,2308-00739,0.00,1350.00,R,Alfred Bagnall & Sons (Leeds) Ltd,No
Http://opendatacommunities.org/id/metropolitan-district-council/leeds,Leeds City Council,31/08/2023,Communities Housing and Environment,Climate Energy & Greenspaces,Transport,Hire Of Movable Plant & Machinery,315,25/08/2023,2308-00740,0.00,158.30,R,ALGECO UK LIMITED,No
Http://opendatacommunities.org/id/metropolitan-district-council/leeds,Leeds City Council,31/08/2023,Communities Housing and Environment,Customer Access,Supplies and Services,Bought In Professional Services,277,02/08/2023,2308-00741,0.00,22.50,R,Ali Pourakaberian,No
Http://opendatacommunities.org/id/metropolitan-district-council/leeds,Leeds City Council,31/08/2023,Communities Housing and Environment,Customer Access,Supplies and Services,Bought In Professional Services,277,02/08/2023,2308-00742,0.00,22.50,R,Ali Pourakaberian,No
Http://opendatacommunities.org/id/metropolitan-district-council/leeds,Leeds City Council,31/08/2023,Communities Housing and Environment,Customer Access,Supplies and Services,Bought In Professional Services,277,02/08/2023,2308-00743,0.00,24.00,R,Ali Pourakaberian,No
Http://opendatacommunities.org/id/metropolitan-district-council/leeds,Leeds City Council,31/08/2023,Communities Housing and Environment,Customer Access,Supplies and Services,Bought In Professional Services,277,09/08/2023,2308-00744,0.00,18.00,R,Ali Pourakaberian,No
Http://opendatacommunities.org/id/metropolitan-district-council/leeds,Leeds City Council,31/08/2023,Communities Housing and Environment,Customer Access,Supplies and Services,Bought In Professional Services,277,09/08/2023,2308-00745,0.00,27.00,R,Ali Pourakaberian,No
Http://opendatacommunities.org/id/metropolitan-district-council/leeds,Leeds City Council,31/08/2023,Communities Housing and Environment,Customer Access,Supplies and Services,Bought In Professional Services,277,16/08/2023,2308-00746,0.00,13.50,R,Ali Pourakaberian,No
Http://opendatacommunities.org/id/metropolitan-district-council/leeds,Leeds City Council,31/08/2023,Communities Housing and Environment,Customer Access,Supplies and Services,Bought In Professional Services,277,16/08/2023,2308-00747,0.00,18.00,R,Ali Pourakaberian,No
Http://opendatacommunities.org/id/metropolitan-district-council/leeds,Leeds City Council,31/08/2023,Communities Housing and Environment,Customer Access,Supplies and Services,Bought In Professional Services,277,23/08/2023,2308-00748,0.00,98.70,R,Ali Pourakaberian,No
Http://opendatacommunities.org/id/metropolitan-district-council/leeds,Leeds City Council,31/08/2023,Communities Housing and Environment,Customer Access,Supplies and Services,Bought In Professional Services,277,23/08/2023,2308-00749,0.00,13.50,R,Ali Pourakaberian,No
Http://opendatacommunities.org/id/metropolitan-district-council/leeds,Leeds City Council,31/08/2023,Communities Housing and Environment,Customer Access,Supplies and Services,Bought In Professional Services,277,31/08/2023,2308-00750,0.00,9.00,R,Ali Pourakaberian,No
Http://opendatacommunities.org/id/metropolitan-district-council/leeds,Leeds City Council,31/08/2023,City Development,Recreation,External Income,Sporting & Other Recreational Fees,928,15/08/2023,2308-00751,0.00,25.95,R,REDACTED PERSONAL DATA,No
Http://opendatacommunities.org/id/metropolitan-district-council/leeds,Leeds City Council,31/08/2023,City Development,Recreation,Supplies and Services,Bought In Professional Services,277,30/08/2023,2308-00752,0.00,60.00,R,Alice M Richardson,No
Http://opendatacommunities.org/id/metropolitan-district-council/leeds,Leeds City Council,31/08/2023,City Development,Recreation,Supplies and Services,Bought In Professional Services,277,30/08/2023,2308-00753,0.00,80.00,R,Alice M Richardson,No
Http://opendatacommunities.org/id/metropolitan-district-council/leeds,Leeds City Council,31/08/2023,City Development,Recreation,Supplies and Services,Bought In Professional Services,277,30/08/2023,2308-00754,0.00,40.00,R,Alice M Richardson,No
Http://opendatacommunities.org/id/metropolitan-district-council/leeds,Leeds City Council,31/08/2023,City Development,Recreation,Supplies and Services,Bought In Professional Services,277,30/08/2023,2308-00755,0.00,20.00,R,Alice M Richardson,No
Http://opendatacommunities.org/id/metropolitan-district-council/leeds,Leeds City Council,31/08/2023,Children and Families,Social Care,Agency Payments,Placement Support,550,22/08/2023,2308-00756,0.00,131.20,R,REDACTED PERSONAL DATA,No
Http://opendatacommunities.org/id/metropolitan-district-council/leeds,Leeds City Council,31/08/2023,Children and Families,Social Care,Appropriations,Leaving Care Allowances,634,08/08/2023,2308-00757,0.00,23.00,R,REDACTED PERSONAL DATA,No
Http://opendatacommunities.org/id/metropolitan-district-council/leeds,Leeds City Council,31/08/2023,Children and Families,Social Care,Agency Payments,Contact,548,16/08/2023,2308-00758,0.00,60.00,R,REDACTED PERSONAL DATA,No
Http://opendatacommunities.org/id/metropolitan-district-council/leeds,Leeds City Council,31/08/2023,Children and Families,Social Care,Agency Payments,Contact,548,16/08/2023,2308-00759,0.00,60.00,R,REDACTED PERSONAL DATA,No
Http://opendatacommunities.org/id/metropolitan-district-council/leeds,Leeds City Council,31/08/2023,Children and Families,Social Care,Agency Payments,Services Rendered By Other Organisations,511,04/08/2023,2308-00760,0.00,959.40,R,REDACTED PERSONAL DATA,No
Http://opendatacommunities.org/id/metropolitan-district-council/leeds,Leeds City Council,31/08/2023,Children and Families,Social Care,Internal Recharges,Legal Disbursements,411,18/08/2023,2308-00761,0.00,630.00,R,Alison Davenport,No
Http://opendatacommunities.org/id/metropolitan-district-council/leeds,Leeds City Council,31/08/2023,Insurance,Insurance,Supplies and Services,Insurance Claims,248,16/08/2023,2308-00762,0.00,2189.49,R,REDACTED PERSONAL DATA,No
Http://opendatacommunities.org/id/metropolitan-district-council/leeds,Leeds City Council,31/08/2023,Strategy and Resources,Commercial Services,Supplies and Services,Other Hired And Contracted Services,265,02/08/2023,2308-00763,0.00,294.00,R,REDACTED PERSONAL DATA,No
Http://opendatacommunities.org/id/metropolitan-district-council/leeds,Leeds City Council,31/08/2023,Children and Families,Social Care,Agency Payments,Section 17,551,11/08/2023,2308-00764,0.00,23.50,R,REDACTED PERSONAL DATA,No
Http://opendatacommunities.org/id/metropolitan-district-council/leeds,Leeds City Council,31/08/2023,Communities Housing and Environment,Communities,Supplies and Services,'Well Being' Large Grants Projects,230,21/08/2023,2308-00765,0.00,80.00,R,All Hallows Church,No
Http://opendatacommunities.org/id/metropolitan-district-council/leeds,Leeds City Council,31/08/2023,Children and Families,Social Care,Agency Payments,Services Rendered By Other Organisations,511,02/08/2023,2308-00766,0.00,1872.53,R,All Stars Childcare,No
Http://opendatacommunities.org/id/metropolitan-district-council/leeds,Leeds City Council,31/08/2023,Children and Families,Social Care,Agency Payments,Services Rendered By Other Organisations,511,04/08/2023,2308-00767,0.00,10745.28,R,All Stars Childcare,No
Http://opendatacommunities.org/id/metropolitan-district-council/leeds,Leeds City Council,31/08/2023,Children and Families,Social Care,Agency Payments,Services Rendered By Other Organisations,511,04/08/2023,2308-00768,0.00,958.75,R,All Stars Childcare,No
Http://opendatacommunities.org/id/metropolitan-district-council/leeds,Leeds City Council,31/08/2023,Children and Families,Social Care,Agency Payments,Services Rendered By Other Organisations,511,04/08/2023,2308-00769,0.00,120.90,R,All Stars Childcare,No
Http://opendatacommunities.org/id/metropolitan-district-council/leeds,Leeds City Council,31/08/2023,Adults and Health,Services For Adults Under 65 Mental/Dis,Supplies and Services,Operational Furniture And Equipment,203,16/08/2023,2308-00770,0.00,108.00,R,ALLANSOUND COMMUNICATIONS,No
Http://opendatacommunities.org/id/metropolitan-district-council/leeds,Leeds City Council as Accountable Body,31/08/2023,Social Services Pooled Budgets,Jcs For People With Learning Disabilitie,Agency Payments,Sheltered Accommodation,569,16/08/2023,2308-00771,0.00,25207.52,R,Allerton Avenue,No
Http://opendatacommunities.org/id/metropolitan-district-council/leeds,Leeds City Council,31/08/2023,Adults and Health,Public Health,Agency Payments,Public Health Commissioned Services,526,09/08/2023,2308-00772,0.00,1709.76,R,Allerton Medical Centre,No
Http://opendatacommunities.org/id/metropolitan-district-council/leeds,Leeds City Council,31/08/2023,Strategy and Resources,Finance,Supplies and Services,Bank Charges,263,04/08/2023,2308-00773,0.00,100.00,R,ALLIANCE & LEICESTER COMMERCIAL BANK,No
Http://opendatacommunities.org/id/metropolitan-district-council/leeds,Leeds City Council,31/08/2023,Strategy and Resources,Finance,Supplies and Services,Bank Charges,263,04/08/2023,2308-00774,0.00,210.58,R,ALLIANCE & LEICESTER COMMERCIAL BANK,No
